Workbook

Sheet AVISO LEGAL
H2: Fecha de actualización: | J2: 2019-05-13
J23: www.ree.es

Sheet Emisiones mensual nacional
O1: 13
M4: Sistema eléctrico
M5: Horizonte temporal
M6: Periodo
C8: Ene. | D8: Feb. | E8: Mar. | F8: Abr. | G8: May. | H8: Jun. | I8: Jul. | J8: Ago. | K8: Sep. | L8: Oct. | M8: Nov. | N8: Dic. | O8: =OFFSET(Año!B19,($O$1-1),0) -> 2019
B10: Carbón | C10: =OFFSET(Emisiones!D64,0,($O$1-1)*12) -> 3148919.216 | D10: =OFFSET(Emisiones!E64,0,($O$1-1)*12) -> 2306341.907 | E10: =OFFSET(Emisiones!F64,0,($O$1-1)*12) -> 931512.533 | F10: =OFFSET(Emisiones!G64,0,($O$1-1)*12) -> 819323.1493 | G10: =OFFSET(Emisiones!H64,0,($O$1-1)*12) -> - | H10: =OFFSET(Emisiones!I64,0,($O$1-1)*12) -> - | I10: =OFFSET(Emisiones!J64,0,($O$1-1)*12) -> - | J10: =OFFSET(Emisiones!K64,0,($O$1-1)*12) -> - | K10: =OFFSET(Emisiones!L64,0,($O$1-1)*12) -> - | L10: =OFFSET(Emisiones!M64,0,($O$1-1)*12) -> - | M10: =OFFSET(Emisiones!N64,0,($O$1-1)*12) -> - | N10: =OFFSET(Emisiones!O64,0,($O$1-1)*12) -> - | O10: =IF(SUM(C10:N10)=0,"-",SUM(C10:N10)) -> 7206096.805
B11: Fuel + Gas (1) | C11: =OFFSET(Emisiones!D65,0,($O$1-1)*12) -> 406774.3966 | D11: =OFFSET(Emisiones!E65,0,($O$1-1)*12) -> 375396.0822 | E11: =OFFSET(Emisiones!F65,0,($O$1-1)*12) -> 382902.1119 | F11: =OFFSET(Emisiones!G65,0,($O$1-1)*12) -> 376283.7496 | G11: =OFFSET(Emisiones!H65,0,($O$1-1)*12) -> - | H11: =OFFSET(Emisiones!I65,0,($O$1-1)*12) -> - | I11: =OFFSET(Emisiones!J65,0,($O$1-1)*12) -> - | J11: =OFFSET(Emisiones!K65,0,($O$1-1)*12) -> - | K11: =OFFSET(Emisiones!L65,0,($O$1-1)*12) -> - | L11: =OFFSET(Emisiones!M65,0,($O$1-1)*12) -> - | M11: =OFFSET(Emisiones!N65,0,($O$1-1)*12) -> - | N11: =OFFSET(Emisiones!O65,0,($O$1-1)*12) -> - | O11: =IF(SUM(C11:N11)=0,"-",SUM(C11:N11)) -> 1541356.34
B12: Ciclo combinado (2) | C12: =OFFSET(Emisiones!D66,0,($O$1-1)*12) -> 1356347.521 | D12: =OFFSET(Emisiones!E66,0,($O$1-1)*12) -> 1063637.181 | E12: =OFFSET(Emisiones!F66,0,($O$1-1)*12) -> 956969.8982 | F12: =OFFSET(Emisiones!G66,0,($O$1-1)*12) -> 1180349.358 | G12: =OFFSET(Emisiones!H66,0,($O$1-1)*12) -> - | H12: =OFFSET(Emisiones!I66,0,($O$1-1)*12) -> - | I12: =OFFSET(Emisiones!J66,0,($O$1-1)*12) -> - | J12: =OFFSET(Emisiones!K66,0,($O$1-1)*12) -> - | K12: =OFFSET(Emisiones!L66,0,($O$1-1)*12) -> - | L12: =OFFSET(Emisiones!M66,0,($O$1-1)*12) -> - | M12: =OFFSET(Emisiones!N66,0,($O$1-1)*12) -> - | N12: =OFFSET(Emisiones!O66,0,($O$1-1)*12) -> - | O12: =IF(SUM(C12:N12)=0,"-",SUM(C12:N12)) -> 4557303.959
B13: Térmica renovable (3) | C13: =OFFSET(Emisiones!D67,0,($O$1-1)*12) -> - | D13: =OFFSET(Emisiones!E67,0,($O$1-1)*12) -> - | E13: =OFFSET(Emisiones!F67,0,($O$1-1)*12) -> - | F13: =OFFSET(Emisiones!G67,0,($O$1-1)*12) -> - | G13: =OFFSET(Emisiones!H67,0,($O$1-1)*12) -> - | H13: =OFFSET(Emisiones!I67,0,($O$1-1)*12) -> - | I13: =OFFSET(Emisiones!J67,0,($O$1-1)*12) -> - | J13: =OFFSET(Emisiones!K67,0,($O$1-1)*12) -> - | K13: =OFFSET(Emisiones!L67,0,($O$1-1)*12) -> - | L13: =OFFSET(Emisiones!M67,0,($O$1-1)*12) -> - | M13: =OFFSET(Emisiones!N67,0,($O$1-1)*12) -> - | N13: =OFFSET(Emisiones!O67,0,($O$1-1)*12) -> - | O13: -
B14: Térmica no renovable/Cogeneración y resto/Cogeneración (3) | C14: =OFFSET(Emisiones!D68,0,($O$1-1)*12) -> 984098.5456 | D14: =OFFSET(Emisiones!E68,0,($O$1-1)*12) -> 885626.3856 | E14: =OFFSET(Emisiones!F68,0,($O$1-1)*12) -> 959124.9983 | F14: =OFFSET(Emisiones!G68,0,($O$1-1)*12) -> 921773.1493 | G14: =OFFSET(Emisiones!H68,0,($O$1-1)*12) -> - | H14: =OFFSET(Emisiones!I68,0,($O$1-1)*12) -> - | I14: =OFFSET(Emisiones!J68,0,($O$1-1)*12) -> - | J14: =OFFSET(Emisiones!K68,0,($O$1-1)*12) -> - | K14: =OFFSET(Emisiones!L68,0,($O$1-1)*12) -> - | L14: =OFFSET(Emisiones!M68,0,($O$1-1)*12) -> - | M14: =OFFSET(Emisiones!N68,0,($O$1-1)*12) -> - | N14: =OFFSET(Emisiones!O68,0,($O$1-1)*12) -> - | O14: 3750623.079
B15: Residuos no renovables | C15: =OFFSET(Emisiones!D69,0,($O$1-1)*12) -> 49609.2042 | D15: =OFFSET(Emisiones!E69,0,($O$1-1)*12) -> 45143.75292 | E15: =OFFSET(Emisiones!F69,0,($O$1-1)*12) -> 50976.23136 | F15: =OFFSET(Emisiones!G69,0,($O$1-1)*12) -> 45421.269 | G15: =OFFSET(Emisiones!H69,0,($O$1-1)*12) -> - | H15: =OFFSET(Emisiones!I69,0,($O$1-1)*12) -> - | I15: =OFFSET(Emisiones!J69,0,($O$1-1)*12) -> - | J15: =OFFSET(Emisiones!K69,0,($O$1-1)*12) -> - | K15: =OFFSET(Emisiones!L69,0,($O$1-1)*12) -> - | L15: =OFFSET(Emisiones!M69,0,($O$1-1)*12) -> - | M15: =OFFSET(Emisiones!N69,0,($O$1-1)*12) -> - | N15: =OFFSET(Emisiones!O69,0,($O$1-1)*12) -> - | O15: 191150.4575
B17: Emisiones (tCO2) | C17: =IF(SUM(C10:C16)=0,"-",SUM(C10:C16)) -> 5945748.884 | D17: =IF(SUM(D10:D16)=0,"-",SUM(D10:D16)) -> 4676145.309 | E17: 3281485.773 | F17: 3343150.676 | G17: - | H17: - | I17: - | J17: - | K17: - | L17: - | M17: - | N17: =IF(SUM(N10:N16)=0,"-",SUM(N10:N16)) -> - | O17: =IF(SUM(C17:N17)=0,"-",SUM(C17:N17)) -> 17246530.64
B18: Factor de emision de CO2 (tCO2/MWh) | C18: =OFFSET(Emisiones!D72,0,($O$1-1)*12) -> 0.2419274321 | D18: =OFFSET(Emisiones!E72,0,($O$1-1)*12) -> 0.227386055 | E18: =OFFSET(Emisiones!F72,0,($O$1-1)*12) -> 0.1572290344 | F18: =OFFSET(Emisiones!G72,0,($O$1-1)*12) -> 0.168828771 | G18: =OFFSET(Emisiones!H72,0,($O$1-1)*12) -> - | H18: =OFFSET(Emisiones!I72,0,($O$1-1)*12) -> - | I18: =OFFSET(Emisiones!J72,0,($O$1-1)*12) -> - | J18: =OFFSET(Emisiones!K72,0,($O$1-1)*12) -> - | K18: =OFFSET(Emisiones!L72,0,($O$1-1)*12) -> - | L18: =OFFSET(Emisiones!M72,0,($O$1-1)*12) -> - | M18: =OFFSET(Emisiones!N72,0,($O$1-1)*12) -> - | N18: =OFFSET(Emisiones!O72,0,($O$1-1)*12) -> - | O18: =OFFSET(Emisiones!D133,0,($O$1-1)) -> 0.2009754381
B19: (1) En el sistema eléctrico de Baleares y Canarias se incluye la generación con grupos auxiliares.
B20: (2) Incluye funcionamiento en ciclo abierto. En el sistema eléctrico de Canarias utiliza gasoil como combustible principal.
B21: (3) Incluye residuos hasta el 31/12/2010.
B22: =IF(MONTH(O4)=1,"",CONCATENATE(" Para el año ",YEAR(O4), " valores acumulados hasta ",TEXT(O4-30,"mmmm")," de ",YEAR(O4),".")) -> 

Sheet Emisiones anual nacional
J1: 2
H4: Sistema eléctrico
H5: Horizonte temporal
H6: Periodo
C8: =OFFSET(Emisiones!D124,0,($J$1-1)*8) -> 2015 | D8: =OFFSET(Emisiones!E124,0,($J$1-1)*8) -> 2016 | E8: =OFFSET(Emisiones!F124,0,($J$1-1)*8) -> 2017 | F8: =OFFSET(Emisiones!G124,0,($J$1-1)*8) -> 2018 | G8: =OFFSET(Emisiones!H124,0,($J$1-1)*8) -> 2019 | H8: =OFFSET(Emisiones!I124,0,($J$1-1)*8) -> 2020 | I8: =OFFSET(Emisiones!J124,0,($J$1-1)*8) -> 2021 | J8: =OFFSET(Emisiones!K124,0,($J$1-1)*8) -> 2022
B10: Carbón | C10: =OFFSET(Emisiones!D125,0,($J$1-1)*8) -> 49985653.72 | D10: =OFFSET(Emisiones!E125,0,($J$1-1)*8) -> 35448088.86 | E10: =OFFSET(Emisiones!F125,0,($J$1-1)*8) -> 42768449.37 | F10: =OFFSET(Emisiones!G125,0,($J$1-1)*8) -> 35649409.42 | G10: =OFFSET(Emisiones!H125,0,($J$1-1)*8) -> 7206096.805 | H10: =OFFSET(Emisiones!I125,0,($J$1-1)*8) -> - | I10: =OFFSET(Emisiones!J125,0,($J$1-1)*8) -> - | J10: =OFFSET(Emisiones!K125,0,($J$1-1)*8) -> -
B11: Fuel + Gas (1) | C11: =OFFSET(Emisiones!D126,0,($J$1-1)*8) -> 5245262.596 | D11: =OFFSET(Emisiones!E126,0,($J$1-1)*8) -> 5481851.841 | E11: =OFFSET(Emisiones!F126,0,($J$1-1)*8) -> 5686516.346 | F11: =OFFSET(Emisiones!G126,0,($J$1-1)*8) -> 5383399.024 | G11: =OFFSET(Emisiones!H126,0,($J$1-1)*8) -> 1541356.34 | H11: =OFFSET(Emisiones!I126,0,($J$1-1)*8) -> - | I11: =OFFSET(Emisiones!J126,0,($J$1-1)*8) -> - | J11: =OFFSET(Emisiones!K126,0,($J$1-1)*8) -> -
B12: Ciclo combinado (2) | C12: =OFFSET(Emisiones!D127,0,($J$1-1)*8) -> 12047200.34 | D12: =OFFSET(Emisiones!E127,0,($J$1-1)*8) -> 11965815.21 | E12: =OFFSET(Emisiones!F127,0,($J$1-1)*8) -> 14943265.77 | F12: =OFFSET(Emisiones!G127,0,($J$1-1)*8) -> 11841809.92 | G12: =OFFSET(Emisiones!H127,0,($J$1-1)*8) -> 4557303.959 | H12: =OFFSET(Emisiones!I127,0,($J$1-1)*8) -> - | I12: =OFFSET(Emisiones!J127,0,($J$1-1)*8) -> - | J12: =OFFSET(Emisiones!K127,0,($J$1-1)*8) -> -
B13: Térmica renovable (3) | C13: =OFFSET(Emisiones!D128,0,($J$1-1)*8) -> - | D13: =OFFSET(Emisiones!E128,0,($J$1-1)*8) -> - | E13: =OFFSET(Emisiones!F128,0,($J$1-1)*8) -> - | F13: =OFFSET(Emisiones!G128,0,($J$1-1)*8) -> - | G13: =OFFSET(Emisiones!H128,0,($J$1-1)*8) -> - | H13: =OFFSET(Emisiones!I128,0,($J$1-1)*8) -> - | I13: =OFFSET(Emisiones!J128,0,($J$1-1)*8) -> - | J13: =OFFSET(Emisiones!K128,0,($J$1-1)*8) -> -
B14: Térmica no renovable/Cogeneración y resto/Cogeneración (3) | C14: =OFFSET(Emisiones!D129,0,($J$1-1)*8) -> 9324324.773 | D14: =OFFSET(Emisiones!E129,0,($J$1-1)*8) -> 9586198.117 | E14: =OFFSET(Emisiones!F129,0,($J$1-1)*8) -> 10438368.48 | F14: =OFFSET(Emisiones!G129,0,($J$1-1)*8) -> 10735825.63 | G14: =OFFSET(Emisiones!H129,0,($J$1-1)*8) -> 3750623.079 | H14: =OFFSET(Emisiones!I129,0,($J$1-1)*8) -> - | I14: =OFFSET(Emisiones!J129,0,($J$1-1)*8) -> - | J14: =OFFSET(Emisiones!K129,0,($J$1-1)*8) -> -
B15: Residuos no renovables | C15: =OFFSET(Emisiones!D130,0,($J$1-1)*8) -> 595226.1524 | D15: =OFFSET(Emisiones!E130,0,($J$1-1)*8) -> 625671.3035 | E15: =OFFSET(Emisiones!F130,0,($J$1-1)*8) -> 625916.2836 | F15: =OFFSET(Emisiones!G130,0,($J$1-1)*8) -> 584389.4052 | G15: =OFFSET(Emisiones!H130,0,($J$1-1)*8) -> 191150.4575 | H15: =OFFSET(Emisiones!I130,0,($J$1-1)*8) -> - | I15: =OFFSET(Emisiones!J130,0,($J$1-1)*8) -> - | J15: =OFFSET(Emisiones!K130,0,($J$1-1)*8) -> -
B17: Emisiones (tCO2) | C17: =IF(SUM(C10:C16)=0,"-",SUM(C10:C16)) -> 77197667.58 | D17: =IF(SUM(D10:D16)=0,"-",SUM(D10:D16)) -> 63107625.33 | E17: =IF(SUM(E10:E16)=0,"-",SUM(E10:E16)) -> 74462516.25 | F17: 64194833.4 | G17: 17246530.64 | H17: - | I17: - | J17: =IF(SUM(J10:J16)=0,"-",SUM(J10:J16)) -> -
B18: Factor de emision de CO2 (tCO2/MWh) | C18: =OFFSET(Emisiones!D133,0,($J$1-1)*8) -> 0.2886392084 | D18: =OFFSET(Emisiones!E133,0,($J$1-1)*8) -> 0.2410199502 | E18: =OFFSET(Emisiones!F133,0,($J$1-1)*8) -> 0.2838767886 | F18: =OFFSET(Emisiones!G133,0,($J$1-1)*8) -> 0.2459821042 | G18: =OFFSET(Emisiones!H133,0,($J$1-1)*8) -> 0.2009754381 | H18: =OFFSET(Emisiones!I133,0,($J$1-1)*8) -> - | I18: =OFFSET(Emisiones!J133,0,($J$1-1)*8) -> - | J18: =OFFSET(Emisiones!K133,0,($J$1-1)*8) -> -
B19: (1) En el sistema eléctrico de Baleares y Canarias se incluye la generación con grupos auxiliares.
B20: (2) Incluye funcionamiento en ciclo abierto. En el sistema eléctrico de Canarias utiliza gasoil como combustible principal.
B21: (3) Incluye residuos hasta el 31/12/2010.
B22: =IF(MONTH('AVISO LEGAL'!J2)=1,"",CONCATENATE(" Para el año ",YEAR('AVISO LEGAL'!J2), " valores hasta ",TEXT('AVISO LEGAL'!J2-30,"mmmm")," de ",YEAR('AVISO LEGAL'!J2),".")) -> Para el año 2019 valores hasta abril de 2019.

Sheet Emisiones mensual Peninsular
O1: 30
M4: Sistema eléctrico
M5: Horizonte temporal
M6: Periodo
C8: Ene. | D8: Feb. | E8: Mar. | F8: Abr. | G8: May. | H8: Jun. | I8: Jul. | J8: Ago. | K8: Sep. | L8: Oct. | M8: Nov. | N8: Dic. | O8: =OFFSET(Año!B2,($O$1-1),0) -> 2019
B10: Carbón | C10: =OFFSET(Emisiones!D3,0,($O$1-1)*12) -> 2921291.646 | D10: =OFFSET(Emisiones!E3,0,($O$1-1)*12) -> 2134473.607 | E10: =OFFSET(Emisiones!F3,0,($O$1-1)*12) -> 783436.5266 | F10: =OFFSET(Emisiones!G3,0,($O$1-1)*12) -> 686805.9589 | G10: =OFFSET(Emisiones!H3,0,($O$1-1)*12) -> - | H10: =OFFSET(Emisiones!I3,0,($O$1-1)*12) -> - | I10: =OFFSET(Emisiones!J3,0,($O$1-1)*12) -> - | J10: =OFFSET(Emisiones!K3,0,($O$1-1)*12) -> - | K10: =OFFSET(Emisiones!L3,0,($O$1-1)*12) -> - | L10: =OFFSET(Emisiones!M3,0,($O$1-1)*12) -> - | M10: =OFFSET(Emisiones!N3,0,($O$1-1)*12) -> - | N10: =OFFSET(Emisiones!O3,0,($O$1-1)*12) -> - | O10: =IF(SUM(C10:N10)=0,"-",SUM(C10:N10)) -> 6526007.738
B11: Fuel + Gas | C11: =OFFSET(Emisiones!D4,0,($O$1-1)*12) -> - | D11: =OFFSET(Emisiones!E4,0,($O$1-1)*12) -> - | E11: =OFFSET(Emisiones!F4,0,($O$1-1)*12) -> - | F11: =OFFSET(Emisiones!G4,0,($O$1-1)*12) -> - | G11: =OFFSET(Emisiones!H4,0,($O$1-1)*12) -> - | H11: =OFFSET(Emisiones!I4,0,($O$1-1)*12) -> - | I11: =OFFSET(Emisiones!J4,0,($O$1-1)*12) -> - | J11: =OFFSET(Emisiones!K4,0,($O$1-1)*12) -> - | K11: =OFFSET(Emisiones!L4,0,($O$1-1)*12) -> - | L11: =OFFSET(Emisiones!M4,0,($O$1-1)*12) -> - | M11: =OFFSET(Emisiones!N4,0,($O$1-1)*12) -> - | N11: =OFFSET(Emisiones!O4,0,($O$1-1)*12) -> - | O11: =IF(SUM(C11:N11)=0,"-",SUM(C11:N11)) -> -
B12: Ciclo combinado (1) | C12: =OFFSET(Emisiones!D5,0,($O$1-1)*12) -> 1183534.181 | D12: =OFFSET(Emisiones!E5,0,($O$1-1)*12) -> 907743.4065 | E12: =OFFSET(Emisiones!F5,0,($O$1-1)*12) -> 787845.5924 | F12: =OFFSET(Emisiones!G5,0,($O$1-1)*12) -> 1004270.718 | G12: =OFFSET(Emisiones!H5,0,($O$1-1)*12) -> - | H12: =OFFSET(Emisiones!I5,0,($O$1-1)*12) -> - | I12: =OFFSET(Emisiones!J5,0,($O$1-1)*12) -> - | J12: =OFFSET(Emisiones!K5,0,($O$1-1)*12) -> - | K12: =OFFSET(Emisiones!L5,0,($O$1-1)*12) -> - | L12: =OFFSET(Emisiones!M5,0,($O$1-1)*12) -> - | M12: =OFFSET(Emisiones!N5,0,($O$1-1)*12) -> - | N12: =OFFSET(Emisiones!O5,0,($O$1-1)*12) -> - | O12: 3883393.899
B13: Térmica renovable (2) | C13: =OFFSET(Emisiones!D6,0,($O$1-1)*12) -> - | D13: =OFFSET(Emisiones!E6,0,($O$1-1)*12) -> - | E13: =OFFSET(Emisiones!F6,0,($O$1-1)*12) -> - | F13: =OFFSET(Emisiones!G6,0,($O$1-1)*12) -> - | G13: =OFFSET(Emisiones!H6,0,($O$1-1)*12) -> - | H13: =OFFSET(Emisiones!I6,0,($O$1-1)*12) -> - | I13: =OFFSET(Emisiones!J6,0,($O$1-1)*12) -> - | J13: =OFFSET(Emisiones!K6,0,($O$1-1)*12) -> - | K13: =OFFSET(Emisiones!L6,0,($O$1-1)*12) -> - | L13: =OFFSET(Emisiones!M6,0,($O$1-1)*12) -> - | M13: =OFFSET(Emisiones!N6,0,($O$1-1)*12) -> - | N13: =OFFSET(Emisiones!O6,0,($O$1-1)*12) -> - | O13: -
B14: Térmica no renovable/Cogeneración y resto/Cogeneración (3) | C14: =OFFSET(Emisiones!D7,0,($O$1-1)*12) -> 982862.1732 | D14: =OFFSET(Emisiones!E7,0,($O$1-1)*12) -> 884337.4773 | E14: =OFFSET(Emisiones!F7,0,($O$1-1)*12) -> 957916.0392 | F14: =OFFSET(Emisiones!G7,0,($O$1-1)*12) -> 920694.4817 | G14: =OFFSET(Emisiones!H7,0,($O$1-1)*12) -> - | H14: =OFFSET(Emisiones!I7,0,($O$1-1)*12) -> - | I14: =OFFSET(Emisiones!J7,0,($O$1-1)*12) -> - | J14: =OFFSET(Emisiones!K7,0,($O$1-1)*12) -> - | K14: =OFFSET(Emisiones!L7,0,($O$1-1)*12) -> - | L14: =OFFSET(Emisiones!M7,0,($O$1-1)*12) -> - | M14: =OFFSET(Emisiones!N7,0,($O$1-1)*12) -> - | N14: =OFFSET(Emisiones!O7,0,($O$1-1)*12) -> - | O14: 3745810.171
B15: Residuos no renovables | C15: =OFFSET(Emisiones!D8,0,($O$1-1)*12) -> 47182.81296 | D15: =OFFSET(Emisiones!E8,0,($O$1-1)*12) -> 43379.81856 | E15: =OFFSET(Emisiones!F8,0,($O$1-1)*12) -> 48186.9282 | F15: =OFFSET(Emisiones!G8,0,($O$1-1)*12) -> 42082.22736 | G15: =OFFSET(Emisiones!H8,0,($O$1-1)*12) -> - | H15: =OFFSET(Emisiones!I8,0,($O$1-1)*12) -> - | I15: =OFFSET(Emisiones!J8,0,($O$1-1)*12) -> - | J15: =OFFSET(Emisiones!K8,0,($O$1-1)*12) -> - | K15: =OFFSET(Emisiones!L8,0,($O$1-1)*12) -> - | L15: =OFFSET(Emisiones!M8,0,($O$1-1)*12) -> - | M15: =OFFSET(Emisiones!N8,0,($O$1-1)*12) -> - | N15: =OFFSET(Emisiones!O8,0,($O$1-1)*12) -> - | O15: 180831.7871
B17: Emisiones (tCO2) | C17: =IF(SUM(C10:C16)=0,"-",SUM(C10:C16)) -> 5134870.814 | D17: =IF(SUM(D10:D16)=0,"-",SUM(D10:D16)) -> 3969934.309 | E17: 2577385.086 | F17: 2653853.386 | G17: - | H17: - | I17: - | J17: - | K17: - | L17: - | M17: - | N17: =IF(SUM(N10:N16)=0,"-",SUM(N10:N16)) -> - | O17: =IF(SUM(C17:N17)=0,"-",SUM(C17:N17)) -> 14336043.6
B18: Factor de emision de CO2 (tCO2/MWh) | C18: =OFFSET(Emisiones!D11,0,($O$1-1)*12) -> 0.2190148531 | D18: =OFFSET(Emisiones!E11,0,($O$1-1)*12) -> 0.2029721839 | E18: =OFFSET(Emisiones!F11,0,($O$1-1)*12) -> 0.1302633318 | F18: =OFFSET(Emisiones!G11,0,($O$1-1)*12) -> 0.1415397199 | G18: =OFFSET(Emisiones!H11,0,($O$1-1)*12) -> - | H18: =OFFSET(Emisiones!I11,0,($O$1-1)*12) -> - | I18: =OFFSET(Emisiones!J11,0,($O$1-1)*12) -> - | J18: =OFFSET(Emisiones!K11,0,($O$1-1)*12) -> - | K18: =OFFSET(Emisiones!L11,0,($O$1-1)*12) -> - | L18: =OFFSET(Emisiones!M11,0,($O$1-1)*12) -> - | M18: =OFFSET(Emisiones!N11,0,($O$1-1)*12) -> - | N18: =OFFSET(Emisiones!O11,0,($O$1-1)*12) -> - | O18: =OFFSET(Emisiones!D83,0,($O$1-1)) -> 0.1758157407
B19: (1) Incluye funcionamiento en ciclo abierto.
B20: (2) Incluye residuos hasta el 31/12/2010.
B21: =IF(MONTH(O4)=1,"",CONCATENATE(" Para el año ",YEAR(O4), " valores acumulados hasta ",TEXT(O4-30,"mmmm")," de ",YEAR(O4),".")) -> 

Sheet Emisiones anual Peninsular
J1: 4
H4: Sistema eléctrico
H5: Horizonte temporal
H6: Periodo
C8: =OFFSET(Emisiones!D74,0,($J$1-1)*8) -> 2014 | D8: =OFFSET(Emisiones!E74,0,($J$1-1)*8) -> 2015 | E8: =OFFSET(Emisiones!F74,0,($J$1-1)*8) -> 2016 | F8: =OFFSET(Emisiones!G74,0,($J$1-1)*8) -> 2017 | G8: =OFFSET(Emisiones!H74,0,($J$1-1)*8) -> 2018 | H8: =OFFSET(Emisiones!I74,0,($J$1-1)*8) -> 2019 | I8: =OFFSET(Emisiones!J74,0,($J$1-1)*8) -> 2020 | J8: =OFFSET(Emisiones!K74,0,($J$1-1)*8) -> 2021
B10: Carbón | C10: =OFFSET(Emisiones!D75,0,($J$1-1)*8) -> 39005364.83 | D10: =OFFSET(Emisiones!E75,0,($J$1-1)*8) -> 48217054.79 | E10: =OFFSET(Emisiones!F75,0,($J$1-1)*8) -> 33260364.29 | F10: =OFFSET(Emisiones!G75,0,($J$1-1)*8) -> 40300794.13 | G10: =OFFSET(Emisiones!H75,0,($J$1-1)*8) -> 33137558.21 | H10: =OFFSET(Emisiones!I75,0,($J$1-1)*8) -> 6526007.738 | I10: =OFFSET(Emisiones!J75,0,($J$1-1)*8) -> - | J10: =OFFSET(Emisiones!K75,0,($J$1-1)*8) -> -
B11: Fuel + Gas | C11: =OFFSET(Emisiones!D76,0,($J$1-1)*8) -> - | D11: =OFFSET(Emisiones!E76,0,($J$1-1)*8) -> - | E11: =OFFSET(Emisiones!F76,0,($J$1-1)*8) -> - | F11: =OFFSET(Emisiones!G76,0,($J$1-1)*8) -> - | G11: =OFFSET(Emisiones!H76,0,($J$1-1)*8) -> - | H11: =OFFSET(Emisiones!I76,0,($J$1-1)*8) -> - | I11: =OFFSET(Emisiones!J76,0,($J$1-1)*8) -> - | J11: =OFFSET(Emisiones!K76,0,($J$1-1)*8) -> -
B12: Ciclo combinado (1) | C12: =OFFSET(Emisiones!D77,0,($J$1-1)*8) -> 7814588.191 | D12: =OFFSET(Emisiones!E77,0,($J$1-1)*8) -> 9262781.857 | E12: =OFFSET(Emisiones!F77,0,($J$1-1)*8) -> 9421334.515 | F12: =OFFSET(Emisiones!G77,0,($J$1-1)*8) -> 12449752.89 | G12: =OFFSET(Emisiones!H77,0,($J$1-1)*8) -> 9769081.638 | H12: =OFFSET(Emisiones!I77,0,($J$1-1)*8) -> 3883393.899 | I12: =OFFSET(Emisiones!J77,0,($J$1-1)*8) -> - | J12: =OFFSET(Emisiones!K77,0,($J$1-1)*8) -> -
B13: Térmica renovable (2) | C13: =OFFSET(Emisiones!D78,0,($J$1-1)*8) -> - | D13: =OFFSET(Emisiones!E78,0,($J$1-1)*8) -> - | E13: =OFFSET(Emisiones!F78,0,($J$1-1)*8) -> - | F13: =OFFSET(Emisiones!G78,0,($J$1-1)*8) -> - | G13: =OFFSET(Emisiones!H78,0,($J$1-1)*8) -> - | H13: =OFFSET(Emisiones!I78,0,($J$1-1)*8) -> - | I13: =OFFSET(Emisiones!J78,0,($J$1-1)*8) -> - | J13: =OFFSET(Emisiones!K78,0,($J$1-1)*8) -> -
B14: Térmica no renovable/Cogeneración y resto/Cogeneración (3) | C14: =OFFSET(Emisiones!D79,0,($J$1-1)*8) -> 8927367.88 | D14: =OFFSET(Emisiones!E79,0,($J$1-1)*8) -> 9312651.374 | E14: =OFFSET(Emisiones!F79,0,($J$1-1)*8) -> 9573358.63 | F14: =OFFSET(Emisiones!G79,0,($J$1-1)*8) -> 10424958.11 | G14: =OFFSET(Emisiones!H79,0,($J$1-1)*8) -> 10722885.08 | H14: =OFFSET(Emisiones!I79,0,($J$1-1)*8) -> 3745810.171 | I14: =OFFSET(Emisiones!J79,0,($J$1-1)*8) -> - | J14: =OFFSET(Emisiones!K79,0,($J$1-1)*8) -> -
B15: Residuos no renovables | C15: =OFFSET(Emisiones!D80,0,($J$1-1)*8) -> 440002.4537 | D15: =OFFSET(Emisiones!E80,0,($J$1-1)*8) -> 557931.5378 | E15: =OFFSET(Emisiones!F80,0,($J$1-1)*8) -> 593114.0749 | F15: =OFFSET(Emisiones!G80,0,($J$1-1)*8) -> 590190.9266 | G15: =OFFSET(Emisiones!H80,0,($J$1-1)*8) -> 550524.3052 | H15: =OFFSET(Emisiones!I80,0,($J$1-1)*8) -> 180831.7871 | I15: =OFFSET(Emisiones!J80,0,($J$1-1)*8) -> - | J15: =OFFSET(Emisiones!K80,0,($J$1-1)*8) -> -
B17: Emisiones (tCO2) | C17: =IF(SUM(C10:C16)=0,"-",SUM(C10:C16)) -> 56187323.36 | D17: =IF(SUM(D10:D16)=0,"-",SUM(D10:D16)) -> 67350419.55 | E17: 52848171.51 | F17: 63765696.06 | G17: =IF(SUM(G10:G16)=0,"-",SUM(G10:G16)) -> 54180049.23 | H17: 14336043.6 | I17: - | J17: =IF(SUM(J10:J16)=0,"-",SUM(J10:J16)) -> -
B18: Factor de emision de CO2 (tCO2/MWh) | C18: =OFFSET(Emisiones!D83,0,($J$1-1)*8) -> 0.2218522545 | D18: =OFFSET(Emisiones!E83,0,($J$1-1)*8) -> 0.2652100498 | E18: =OFFSET(Emisiones!F83,0,($J$1-1)*8) -> 0.2130115608 | F18: =OFFSET(Emisiones!G83,0,($J$1-1)*8) -> 0.256990936 | G18: =OFFSET(Emisiones!H83,0,($J$1-1)*8) -> 0.2194477396 | H18: =OFFSET(Emisiones!I83,0,($J$1-1)*8) -> 0.1758157407 | I18: =OFFSET(Emisiones!J83,0,($J$1-1)*8) -> - | J18: =OFFSET(Emisiones!K83,0,($J$1-1)*8) -> -
B19: (1) Incluye funcionamiento en ciclo abierto.
B20: (2) Incluye residuos hasta el 31/12/2010.
B21: =IF(MONTH('AVISO LEGAL'!J2)=1,"",CONCATENATE(" Para el año ",YEAR('AVISO LEGAL'!J2), " valores hasta ",TEXT('AVISO LEGAL'!J2-30,"mmmm")," de ",YEAR('AVISO LEGAL'!J2),".")) -> Para el año 2019 valores hasta abril de 2019.

Sheet Emisiones mensual Baleares
O1: 14
M4: Sistema eléctrico
M5: Horizonte temporal
M6: Periodo
C8: Ene. | D8: Feb. | E8: Mar. | F8: Abr. | G8: May. | H8: Jun. | I8: Jul. | J8: Ago. | K8: Sep. | L8: Oct. | M8: Nov. | N8: Dic. | O8: =OFFSET(Año!B18,($O$1-1),0) -> 2019
B10: Carbón | C10: =OFFSET(Emisiones!D14,0,($O$1-1)*12) -> 227627.5701 | D10: =OFFSET(Emisiones!E14,0,($O$1-1)*12) -> 171868.2998 | E10: =OFFSET(Emisiones!F14,0,($O$1-1)*12) -> 148076.0064 | F10: =OFFSET(Emisiones!G14,0,($O$1-1)*12) -> 132517.1904 | G10: =OFFSET(Emisiones!H14,0,($O$1-1)*12) -> - | H10: =OFFSET(Emisiones!I14,0,($O$1-1)*12) -> - | I10: =OFFSET(Emisiones!J14,0,($O$1-1)*12) -> - | J10: =OFFSET(Emisiones!K14,0,($O$1-1)*12) -> - | K10: =OFFSET(Emisiones!L14,0,($O$1-1)*12) -> - | L10: =OFFSET(Emisiones!M14,0,($O$1-1)*12) -> - | M10: =OFFSET(Emisiones!N14,0,($O$1-1)*12) -> - | N10: =OFFSET(Emisiones!O14,0,($O$1-1)*12) -> - | O10: =IF(SUM(C10:N10)=0,"-",SUM(C10:N10)) -> 680089.0666
B11: Motores diesel | C11: =OFFSET(Emisiones!D20,0,($O$1-1)*12) -> 23592.20616 | D11: =OFFSET(Emisiones!E20,0,($O$1-1)*12) -> 17806.54109 | E11: =OFFSET(Emisiones!F20,0,($O$1-1)*12) -> 11145.97595 | F11: =OFFSET(Emisiones!G20,0,($O$1-1)*12) -> 20235.77751 | G11: =OFFSET(Emisiones!H20,0,($O$1-1)*12) -> - | H11: =OFFSET(Emisiones!I20,0,($O$1-1)*12) -> - | I11: =OFFSET(Emisiones!J20,0,($O$1-1)*12) -> - | J11: =OFFSET(Emisiones!K20,0,($O$1-1)*12) -> - | K11: =OFFSET(Emisiones!L20,0,($O$1-1)*12) -> - | L11: =OFFSET(Emisiones!M20,0,($O$1-1)*12) -> - | M11: =OFFSET(Emisiones!N20,0,($O$1-1)*12) -> - | N11: =OFFSET(Emisiones!O20,0,($O$1-1)*12) -> - | O11: =IF(SUM(C11:N11)=0,"-",SUM(C11:N11)) -> 72780.50071
B12: Turbina de gas | C12: =OFFSET(Emisiones!D27,0,($O$1-1)*12) -> 21398.2636 | D12: =OFFSET(Emisiones!E27,0,($O$1-1)*12) -> 21470.817 | E12: =OFFSET(Emisiones!F27,0,($O$1-1)*12) -> 32821.06645 | F12: =OFFSET(Emisiones!G27,0,($O$1-1)*12) -> 28662.8965 | G12: =OFFSET(Emisiones!H27,0,($O$1-1)*12) -> - | H12: =OFFSET(Emisiones!I27,0,($O$1-1)*12) -> - | I12: =OFFSET(Emisiones!J27,0,($O$1-1)*12) -> - | J12: =OFFSET(Emisiones!K27,0,($O$1-1)*12) -> - | K12: =OFFSET(Emisiones!L27,0,($O$1-1)*12) -> - | L12: =OFFSET(Emisiones!M27,0,($O$1-1)*12) -> - | M12: =OFFSET(Emisiones!N27,0,($O$1-1)*12) -> - | N12: =OFFSET(Emisiones!O27,0,($O$1-1)*12) -> - | O12: =IF(SUM(C12:N12)=0,"-",SUM(C12:N12)) -> 104353.0436
B13: Ciclo combinado (1) | C13: =OFFSET(Emisiones!D28,0,($O$1-1)*12) -> 14108.97576 | D13: =OFFSET(Emisiones!E28,0,($O$1-1)*12) -> 22714.88109 | E13: =OFFSET(Emisiones!F28,0,($O$1-1)*12) -> 34410.61735 | F13: =OFFSET(Emisiones!G28,0,($O$1-1)*12) -> 38262.45173 | G13: =OFFSET(Emisiones!H28,0,($O$1-1)*12) -> - | H13: =OFFSET(Emisiones!I28,0,($O$1-1)*12) -> - | I13: =OFFSET(Emisiones!J28,0,($O$1-1)*12) -> - | J13: =OFFSET(Emisiones!K28,0,($O$1-1)*12) -> - | K13: =OFFSET(Emisiones!L28,0,($O$1-1)*12) -> - | L13: =OFFSET(Emisiones!M28,0,($O$1-1)*12) -> - | M13: =OFFSET(Emisiones!N28,0,($O$1-1)*12) -> - | N13: =OFFSET(Emisiones!O28,0,($O$1-1)*12) -> - | O13: 109496.9259
B14: Generación auxiliar (2) | C14: =OFFSET(Emisiones!D29,0,($O$1-1)*12) -> - | D14: =OFFSET(Emisiones!E29,0,($O$1-1)*12) -> - | E14: =OFFSET(Emisiones!F29,0,($O$1-1)*12) -> - | F14: =OFFSET(Emisiones!G29,0,($O$1-1)*12) -> - | G14: =OFFSET(Emisiones!H29,0,($O$1-1)*12) -> - | H14: =OFFSET(Emisiones!I29,0,($O$1-1)*12) -> - | I14: =OFFSET(Emisiones!J29,0,($O$1-1)*12) -> - | J14: =OFFSET(Emisiones!K29,0,($O$1-1)*12) -> - | K14: =OFFSET(Emisiones!L29,0,($O$1-1)*12) -> - | L14: =OFFSET(Emisiones!M29,0,($O$1-1)*12) -> - | M14: =OFFSET(Emisiones!N29,0,($O$1-1)*12) -> - | N14: =OFFSET(Emisiones!O29,0,($O$1-1)*12) -> - | O14: -
B15: Térmica no renovable/Cogeneración y resto/Cogeneración (3) | C15: =OFFSET(Emisiones!D30,0,($O$1-1)*12) -> - | D15: =OFFSET(Emisiones!E30,0,($O$1-1)*12) -> - | E15: =OFFSET(Emisiones!F30,0,($O$1-1)*12) -> - | F15: =OFFSET(Emisiones!G30,0,($O$1-1)*12) -> - | G15: =OFFSET(Emisiones!H30,0,($O$1-1)*12) -> - | H15: =OFFSET(Emisiones!I30,0,($O$1-1)*12) -> - | I15: =OFFSET(Emisiones!J30,0,($O$1-1)*12) -> - | J15: =OFFSET(Emisiones!K30,0,($O$1-1)*12) -> - | K15: =OFFSET(Emisiones!L30,0,($O$1-1)*12) -> - | L15: =OFFSET(Emisiones!M30,0,($O$1-1)*12) -> - | M15: =OFFSET(Emisiones!N30,0,($O$1-1)*12) -> - | N15: =OFFSET(Emisiones!O30,0,($O$1-1)*12) -> - | O15: -
B16: Cogeneración | C16: =OFFSET(Emisiones!D31,0,($O$1-1)*12) -> 1236.37239 | D16: =OFFSET(Emisiones!E31,0,($O$1-1)*12) -> 1288.90832 | E16: =OFFSET(Emisiones!F31,0,($O$1-1)*12) -> 1208.95909 | F16: =OFFSET(Emisiones!G31,0,($O$1-1)*12) -> 1078.66766 | G16: =OFFSET(Emisiones!H31,0,($O$1-1)*12) -> - | H16: =OFFSET(Emisiones!I31,0,($O$1-1)*12) -> - | I16: =OFFSET(Emisiones!J31,0,($O$1-1)*12) -> - | J16: =OFFSET(Emisiones!K31,0,($O$1-1)*12) -> - | K16: =OFFSET(Emisiones!L31,0,($O$1-1)*12) -> - | L16: =OFFSET(Emisiones!M31,0,($O$1-1)*12) -> - | M16: =OFFSET(Emisiones!N31,0,($O$1-1)*12) -> - | N16: =OFFSET(Emisiones!O31,0,($O$1-1)*12) -> - | O16: 4812.90746
B17: Residuos no renovables | C17: =OFFSET(Emisiones!D32,0,($O$1-1)*12) -> 2294.52948 | D17: =OFFSET(Emisiones!E32,0,($O$1-1)*12) -> 1646.40708 | E17: =OFFSET(Emisiones!F32,0,($O$1-1)*12) -> 2660.079 | F17: =OFFSET(Emisiones!G32,0,($O$1-1)*12) -> 3229.51932 | G17: =OFFSET(Emisiones!H32,0,($O$1-1)*12) -> - | H17: =OFFSET(Emisiones!I32,0,($O$1-1)*12) -> - | I17: =OFFSET(Emisiones!J32,0,($O$1-1)*12) -> - | J17: =OFFSET(Emisiones!K32,0,($O$1-1)*12) -> - | K17: =OFFSET(Emisiones!L32,0,($O$1-1)*12) -> - | L17: =OFFSET(Emisiones!M32,0,($O$1-1)*12) -> - | M17: =OFFSET(Emisiones!N32,0,($O$1-1)*12) -> - | N17: =OFFSET(Emisiones!O32,0,($O$1-1)*12) -> - | O17: 9830.53488
B19: Emisiones (tCO2) | C19: =IF(SUM(C10:C18)=0,"-",SUM(C10:C18)) -> 290257.9175 | D19: =IF(SUM(D10:D18)=0,"-",SUM(D10:D18)) -> 236795.8543 | E19: 230322.7042 | F19: 223986.5031 | G19: - | H19: - | I19: - | J19: - | K19: - | L19: - | M19: - | N19: =IF(SUM(N10:N18)=0,"-",SUM(N10:N18)) -> - | O19: =IF(SUM(C19:N19)=0,"-",SUM(C19:N19)) -> 981362.9792
B20: Factor de emision de CO2 (tCO2/MWh) | C20: =OFFSET(Emisiones!D35,0,($O$1-1)*12) -> 0.8547302201 | D20: =OFFSET(Emisiones!E35,0,($O$1-1)*12) -> 0.8016962399 | E20: =OFFSET(Emisiones!F35,0,($O$1-1)*12) -> 0.7342921273 | F20: =OFFSET(Emisiones!G35,0,($O$1-1)*12) -> 0.6975963235 | G20: =OFFSET(Emisiones!H35,0,($O$1-1)*12) -> - | H20: =OFFSET(Emisiones!I35,0,($O$1-1)*12) -> - | I20: =OFFSET(Emisiones!J35,0,($O$1-1)*12) -> - | J20: =OFFSET(Emisiones!K35,0,($O$1-1)*12) -> - | K20: =OFFSET(Emisiones!L35,0,($O$1-1)*12) -> - | L20: =OFFSET(Emisiones!M35,0,($O$1-1)*12) -> - | M20: =OFFSET(Emisiones!N35,0,($O$1-1)*12) -> - | N20: =OFFSET(Emisiones!O35,0,($O$1-1)*12) -> - | O20: =OFFSET(Emisiones!D96,0,($O$1-1)) -> 0.7729043291
B21: (1) Incluye funcionamiento en ciclo abierto.
B22: (2) Grupos de emergencia que se instalan de forma transitoria en determinadas zonas para cubrir un déficit de generación.
B23: (3) Incluye residuos hasta el 31/12/2010.
B24: =IF(MONTH(O4)=1,"",CONCATENATE(" Para el año ",YEAR(O4), " valores acumulados hasta ",TEXT(O4-30,"mmmm")," de ",YEAR(O4),".")) -> 

Sheet Emisiones anual Baleares
J1: 2
H4: Sistema eléctrico
H5: Horizonte temporal
H6: Periodo
C8: =OFFSET(Emisiones!D85,0,($J$1-1)*8) -> 2014 | D8: =OFFSET(Emisiones!E85,0,($J$1-1)*8) -> 2015 | E8: =OFFSET(Emisiones!F85,0,($J$1-1)*8) -> 2016 | F8: =OFFSET(Emisiones!G85,0,($J$1-1)*8) -> 2017 | G8: =OFFSET(Emisiones!H85,0,($J$1-1)*8) -> 2018 | H8: =OFFSET(Emisiones!I85,0,($J$1-1)*8) -> 2019 | I8: =OFFSET(Emisiones!J85,0,($J$1-1)*8) -> 2020 | J8: =OFFSET(Emisiones!K85,0,($J$1-1)*8) -> 2021
B10: Carbón | C10: =OFFSET(Emisiones!D86,0,($J$1-1)*8) -> 2078388.84 | D10: =OFFSET(Emisiones!E86,0,($J$1-1)*8) -> 1768598.933 | E10: =OFFSET(Emisiones!F86,0,($J$1-1)*8) -> 2187724.572 | F10: =OFFSET(Emisiones!G86,0,($J$1-1)*8) -> 2467655.245 | G10: =OFFSET(Emisiones!H86,0,($J$1-1)*8) -> 2511851.218 | H10: =OFFSET(Emisiones!I86,0,($J$1-1)*8) -> 680089.0666 | I10: =OFFSET(Emisiones!J86,0,($J$1-1)*8) -> - | J10: =OFFSET(Emisiones!K86,0,($J$1-1)*8) -> -
B11: Motores diesel | C11: =OFFSET(Emisiones!D87,0,($J$1-1)*8) -> 413405.8072 | D11: =OFFSET(Emisiones!E87,0,($J$1-1)*8) -> 413240.8635 | E11: =OFFSET(Emisiones!F87,0,($J$1-1)*8) -> 547918.6674 | F11: =OFFSET(Emisiones!G87,0,($J$1-1)*8) -> 453712.9092 | G11: =OFFSET(Emisiones!H87,0,($J$1-1)*8) -> 425362.8632 | H11: =OFFSET(Emisiones!I87,0,($J$1-1)*8) -> 72780.50071 | I11: =OFFSET(Emisiones!J87,0,($J$1-1)*8) -> - | J11: =OFFSET(Emisiones!K87,0,($J$1-1)*8) -> -
B12: Turbina de gas | C12: =OFFSET(Emisiones!D88,0,($J$1-1)*8) -> 286840.0622 | D12: =OFFSET(Emisiones!E88,0,($J$1-1)*8) -> 299160.5425 | E12: =OFFSET(Emisiones!F88,0,($J$1-1)*8) -> 173276.7152 | F12: =OFFSET(Emisiones!G88,0,($J$1-1)*8) -> 283827.5327 | G12: =OFFSET(Emisiones!H88,0,($J$1-1)*8) -> 726749.0643 | H12: =OFFSET(Emisiones!I88,0,($J$1-1)*8) -> 104353.0436 | I12: =OFFSET(Emisiones!J88,0,($J$1-1)*8) -> - | J12: =OFFSET(Emisiones!K88,0,($J$1-1)*8) -> -
B13: Ciclo combinado (1) | C13: =OFFSET(Emisiones!D89,0,($J$1-1)*8) -> 155264.2544 | D13: =OFFSET(Emisiones!E89,0,($J$1-1)*8) -> 297734.1848 | E13: =OFFSET(Emisiones!F89,0,($J$1-1)*8) -> 197980.3751 | F13: =OFFSET(Emisiones!G89,0,($J$1-1)*8) -> 155558.8617 | G13: =OFFSET(Emisiones!H89,0,($J$1-1)*8) -> 242115.3127 | H13: =OFFSET(Emisiones!I89,0,($J$1-1)*8) -> 109496.9259 | I13: =OFFSET(Emisiones!J89,0,($J$1-1)*8) -> - | J13: =OFFSET(Emisiones!K89,0,($J$1-1)*8) -> -
B14: Generación auxiliar (2) | C14: =OFFSET(Emisiones!D90,0,($J$1-1)*8) -> 5693.62956 | D14: =OFFSET(Emisiones!E90,0,($J$1-1)*8) -> 7828.0826 | E14: =OFFSET(Emisiones!F90,0,($J$1-1)*8) -> 7468.68606 | F14: =OFFSET(Emisiones!G90,0,($J$1-1)*8) -> 10912.3841 | G14: =OFFSET(Emisiones!H90,0,($J$1-1)*8) -> 8841.46956 | H14: =OFFSET(Emisiones!I90,0,($J$1-1)*8) -> - | I14: =OFFSET(Emisiones!J90,0,($J$1-1)*8) -> - | J14: =OFFSET(Emisiones!K90,0,($J$1-1)*8) -> -
B15: Térmica no renovable/Cogeneración y resto/Cogeneración (3) | C15: =OFFSET(Emisiones!D91,0,($J$1-1)*8) -> 9332.35608 | D15: =OFFSET(Emisiones!E91,0,($J$1-1)*8) -> - | E15: =OFFSET(Emisiones!F91,0,($J$1-1)*8) -> - | F15: =OFFSET(Emisiones!G91,0,($J$1-1)*8) -> - | G15: =OFFSET(Emisiones!H91,0,($J$1-1)*8) -> - | H15: =OFFSET(Emisiones!I91,0,($J$1-1)*8) -> - | I15: =OFFSET(Emisiones!J91,0,($J$1-1)*8) -> - | J15: =OFFSET(Emisiones!K91,0,($J$1-1)*8) -> -
B16: Cogeneración | C16: =OFFSET(Emisiones!D92,0,($J$1-1)*8) -> - | D16: =OFFSET(Emisiones!E92,0,($J$1-1)*8) -> 11673.39899 | E16: =OFFSET(Emisiones!F92,0,($J$1-1)*8) -> 12839.48729 | F16: =OFFSET(Emisiones!G92,0,($J$1-1)*8) -> 13410.36658 | G16: =OFFSET(Emisiones!H92,0,($J$1-1)*8) -> 12940.54502 | H16: =OFFSET(Emisiones!I92,0,($J$1-1)*8) -> 4812.90746 | I16: =OFFSET(Emisiones!J92,0,($J$1-1)*8) -> - | J16: =OFFSET(Emisiones!K92,0,($J$1-1)*8) -> -
B17: Residuos no renovables | C17: =OFFSET(Emisiones!D93,0,($J$1-1)*8) -> 30740.23908 | D17: =OFFSET(Emisiones!E93,0,($J$1-1)*8) -> 36263.45508 | E17: =OFFSET(Emisiones!F93,0,($J$1-1)*8) -> 31393.21596 | F17: =OFFSET(Emisiones!G93,0,($J$1-1)*8) -> 34530.88032 | G17: =OFFSET(Emisiones!H93,0,($J$1-1)*8) -> 32581.85868 | H17: =OFFSET(Emisiones!I93,0,($J$1-1)*8) -> 9830.53488 | I17: =OFFSET(Emisiones!J93,0,($J$1-1)*8) -> - | J17: =OFFSET(Emisiones!K93,0,($J$1-1)*8) -> -
B19: Emisiones (tCO2) | C19: =IF(SUM(C10:C18)=0,"-",SUM(C10:C18)) -> 2979665.188 | D19: =IF(SUM(D10:D18)=0,"-",SUM(D10:D18)) -> 2834499.46 | E19: 3158601.719 | F19: 3419608.18 | G19: =IF(SUM(G10:G18)=0,"-",SUM(G10:G18)) -> 3960442.331 | H19: 981362.9792 | I19: - | J19: =IF(SUM(J10:J18)=0,"-",SUM(J10:J18)) -> -
B20: Factor de emision de CO2 (tCO2/MWh) | C20: =OFFSET(Emisiones!D96,0,($J$1-1)*8) -> 0.6963105886 | D20: =OFFSET(Emisiones!E96,0,($J$1-1)*8) -> 0.6366547681 | E20: =OFFSET(Emisiones!F96,0,($J$1-1)*8) -> 0.6907661014 | F20: =OFFSET(Emisiones!G96,0,($J$1-1)*8) -> 0.7069528339 | G20: =OFFSET(Emisiones!H96,0,($J$1-1)*8) -> 0.8216941157 | H20: =OFFSET(Emisiones!I96,0,($J$1-1)*8) -> 0.7729043291 | I20: =OFFSET(Emisiones!J96,0,($J$1-1)*8) -> - | J20: =OFFSET(Emisiones!K96,0,($J$1-1)*8) -> -
B21: (1) Incluye funcionamiento en ciclo abierto.
B22: (2) Grupos de emergencia que se instalan de forma transitoria en determinadas zonas para cubrir un déficit de generación.
B23: (3) Incluye residuos hasta el 31/12/2010.
B24: =IF(MONTH('AVISO LEGAL'!J2)=1,"",CONCATENATE(" Para el año ",YEAR('AVISO LEGAL'!J2), " valores hasta ",TEXT('AVISO LEGAL'!J2-30,"mmmm")," de ",YEAR('AVISO LEGAL'!J2),".")) -> Para el año 2019 valores hasta abril de 2019.

Sheet Emisiones mensual Canarias
O1: 14
M4: Sistema eléctrico
M5: Horizonte temporal
M6: Periodo
C8: Ene. | D8: Feb. | E8: Mar. | F8: Abr. | G8: May. | H8: Jun. | I8: Jul. | J8: Ago. | K8: Sep. | L8: Oct. | M8: Nov. | N8: Dic. | O8: =OFFSET(Año!B18,($O$1-1),0) -> 2019
B10: Motores diesel | C10: =OFFSET(Emisiones!D38,0,($O$1-1)*12) -> 113271.7768 | D10: =OFFSET(Emisiones!E38,0,($O$1-1)*12) -> 99350.45705 | E10: =OFFSET(Emisiones!F38,0,($O$1-1)*12) -> 104667.6989 | F10: =OFFSET(Emisiones!G38,0,($O$1-1)*12) -> 102092.1915 | G10: =OFFSET(Emisiones!H38,0,($O$1-1)*12) -> - | H10: =OFFSET(Emisiones!I38,0,($O$1-1)*12) -> - | I10: =OFFSET(Emisiones!J38,0,($O$1-1)*12) -> - | J10: =OFFSET(Emisiones!K38,0,($O$1-1)*12) -> - | K10: =OFFSET(Emisiones!L38,0,($O$1-1)*12) -> - | L10: =OFFSET(Emisiones!M38,0,($O$1-1)*12) -> - | M10: =OFFSET(Emisiones!N38,0,($O$1-1)*12) -> - | N10: =OFFSET(Emisiones!O38,0,($O$1-1)*12) -> - | O10: =IF(SUM(C10:N10)=0,"-",SUM(C10:N10)) -> 419382.1242
B11: Turbina de gas | C11: =OFFSET(Emisiones!D39,0,($O$1-1)*12) -> 24579.10336 | D11: =OFFSET(Emisiones!E39,0,($O$1-1)*12) -> 21215.34128 | E11: =OFFSET(Emisiones!F39,0,($O$1-1)*12) -> 21367.724 | F11: =OFFSET(Emisiones!G39,0,($O$1-1)*12) -> 22410.31184 | G11: =OFFSET(Emisiones!H39,0,($O$1-1)*12) -> - | H11: =OFFSET(Emisiones!I39,0,($O$1-1)*12) -> - | I11: =OFFSET(Emisiones!J39,0,($O$1-1)*12) -> - | J11: =OFFSET(Emisiones!K39,0,($O$1-1)*12) -> - | K11: =OFFSET(Emisiones!L39,0,($O$1-1)*12) -> - | L11: =OFFSET(Emisiones!M39,0,($O$1-1)*12) -> - | M11: =OFFSET(Emisiones!N39,0,($O$1-1)*12) -> - | N11: =OFFSET(Emisiones!O39,0,($O$1-1)*12) -> - | O11: =IF(SUM(C11:N11)=0,"-",SUM(C11:N11)) -> 89572.48048
B12: Turbina de vapor | C12: =OFFSET(Emisiones!D40,0,($O$1-1)*12) -> 196785.5508 | D12: =OFFSET(Emisiones!E40,0,($O$1-1)*12) -> 191683.6299 | E12: =OFFSET(Emisiones!F40,0,($O$1-1)*12) -> 188154.279 | F12: =OFFSET(Emisiones!G40,0,($O$1-1)*12) -> 179959.1166 | G12: =OFFSET(Emisiones!H40,0,($O$1-1)*12) -> - | H12: =OFFSET(Emisiones!I40,0,($O$1-1)*12) -> - | I12: =OFFSET(Emisiones!J40,0,($O$1-1)*12) -> - | J12: =OFFSET(Emisiones!K40,0,($O$1-1)*12) -> - | K12: =OFFSET(Emisiones!L40,0,($O$1-1)*12) -> - | L12: =OFFSET(Emisiones!M40,0,($O$1-1)*12) -> - | M12: =OFFSET(Emisiones!N40,0,($O$1-1)*12) -> - | N12: =OFFSET(Emisiones!O40,0,($O$1-1)*12) -> - | O12: 756582.5763
B13: Ciclo combinado (1) | C13: =OFFSET(Emisiones!D41,0,($O$1-1)*12) -> 158704.3638 | D13: =OFFSET(Emisiones!E41,0,($O$1-1)*12) -> 133178.8938 | E13: =OFFSET(Emisiones!F41,0,($O$1-1)*12) -> 134713.6884 | F13: =OFFSET(Emisiones!G41,0,($O$1-1)*12) -> 137816.1882 | G13: =OFFSET(Emisiones!H41,0,($O$1-1)*12) -> - | H13: =OFFSET(Emisiones!I41,0,($O$1-1)*12) -> - | I13: =OFFSET(Emisiones!J41,0,($O$1-1)*12) -> - | J13: =OFFSET(Emisiones!K41,0,($O$1-1)*12) -> - | K13: =OFFSET(Emisiones!L41,0,($O$1-1)*12) -> - | L13: =OFFSET(Emisiones!M41,0,($O$1-1)*12) -> - | M13: =OFFSET(Emisiones!N41,0,($O$1-1)*12) -> - | N13: =OFFSET(Emisiones!O41,0,($O$1-1)*12) -> - | O13: 564413.1342
B14: Generación auxiliar (2) | C14: =OFFSET(Emisiones!D42,0,($O$1-1)*12) -> - | D14: =OFFSET(Emisiones!E42,0,($O$1-1)*12) -> - | E14: =OFFSET(Emisiones!F42,0,($O$1-1)*12) -> - | F14: =OFFSET(Emisiones!G42,0,($O$1-1)*12) -> - | G14: =OFFSET(Emisiones!H42,0,($O$1-1)*12) -> - | H14: =OFFSET(Emisiones!I42,0,($O$1-1)*12) -> - | I14: =OFFSET(Emisiones!J42,0,($O$1-1)*12) -> - | J14: =OFFSET(Emisiones!K42,0,($O$1-1)*12) -> - | K14: =OFFSET(Emisiones!L42,0,($O$1-1)*12) -> - | L14: =OFFSET(Emisiones!M42,0,($O$1-1)*12) -> - | M14: =OFFSET(Emisiones!N42,0,($O$1-1)*12) -> - | N14: =OFFSET(Emisiones!O42,0,($O$1-1)*12) -> - | O14: -
B15: Térmica no renovable/Cogeneración y resto | C15: =OFFSET(Emisiones!D43,0,($O$1-1)*12) -> - | D15: =OFFSET(Emisiones!E43,0,($O$1-1)*12) -> - | E15: =OFFSET(Emisiones!F43,0,($O$1-1)*12) -> - | F15: =OFFSET(Emisiones!G43,0,($O$1-1)*12) -> - | G15: =OFFSET(Emisiones!H43,0,($O$1-1)*12) -> - | H15: =OFFSET(Emisiones!I43,0,($O$1-1)*12) -> - | I15: =OFFSET(Emisiones!J43,0,($O$1-1)*12) -> - | J15: =OFFSET(Emisiones!K43,0,($O$1-1)*12) -> - | K15: =OFFSET(Emisiones!L43,0,($O$1-1)*12) -> - | L15: =OFFSET(Emisiones!M43,0,($O$1-1)*12) -> - | M15: =OFFSET(Emisiones!N43,0,($O$1-1)*12) -> - | N15: =OFFSET(Emisiones!O43,0,($O$1-1)*12) -> - | O15: -
B16: Cogeneración | C16: =OFFSET(Emisiones!D44,0,($O$1-1)*12) -> - | D16: =OFFSET(Emisiones!E44,0,($O$1-1)*12) -> - | E16: =OFFSET(Emisiones!F44,0,($O$1-1)*12) -> - | F16: =OFFSET(Emisiones!G44,0,($O$1-1)*12) -> - | G16: =OFFSET(Emisiones!H44,0,($O$1-1)*12) -> - | H16: =OFFSET(Emisiones!I44,0,($O$1-1)*12) -> - | I16: =OFFSET(Emisiones!J44,0,($O$1-1)*12) -> - | J16: =OFFSET(Emisiones!K44,0,($O$1-1)*12) -> - | K16: =OFFSET(Emisiones!L44,0,($O$1-1)*12) -> - | L16: =OFFSET(Emisiones!M44,0,($O$1-1)*12) -> - | M16: =OFFSET(Emisiones!N44,0,($O$1-1)*12) -> - | N16: =OFFSET(Emisiones!O44,0,($O$1-1)*12) -> - | O16: -
B17: Emisiones (tCO2) | C17: =IF(SUM(C10:C16)=0,"-",SUM(C10:C16)) -> 493340.7948 | D17: =IF(SUM(D10:D16)=0,"-",SUM(D10:D16)) -> 445428.322 | E17: 448903.3903 | F17: 442277.8081 | G17: - | H17: - | I17: - | J17: - | K17: - | L17: - | M17: - | N17: =IF(SUM(N10:N16)=0,"-",SUM(N10:N16)) -> - | O17: =IF(SUM(C17:N17)=0,"-",SUM(C17:N17)) -> 1829950.315
B18: Factor de emision de CO2 (tCO2/MWh) | C18: =OFFSET(Emisiones!D46,0,($O$1-1)*12) -> 0.6531539241 | D18: =OFFSET(Emisiones!E46,0,($O$1-1)*12) -> 0.6565618117 | E18: =OFFSET(Emisiones!F46,0,($O$1-1)*12) -> 0.6083609336 | F18: =OFFSET(Emisiones!G46,0,($O$1-1)*12) -> 0.6314997731 | G18: =OFFSET(Emisiones!H46,0,($O$1-1)*12) -> - | H18: =OFFSET(Emisiones!I46,0,($O$1-1)*12) -> - | I18: =OFFSET(Emisiones!J46,0,($O$1-1)*12) -> - | J18: =OFFSET(Emisiones!K46,0,($O$1-1)*12) -> - | K18: =OFFSET(Emisiones!L46,0,($O$1-1)*12) -> - | L18: =OFFSET(Emisiones!M46,0,($O$1-1)*12) -> - | M18: =OFFSET(Emisiones!N46,0,($O$1-1)*12) -> - | N18: =OFFSET(Emisiones!O46,0,($O$1-1)*12) -> - | O18: =OFFSET(Emisiones!D107,0,($O$1-1)) -> 0.637169919
B19: (1) Utiliza gasoil como combustible principal. Incluye funcionamiento en ciclo abierto.
B20: (2) Grupos de emergencia que se instalan de forma transitoria en determinadas zonas para cubrir un déficit de generación.
B21: =IF(MONTH(O4)=1,"",CONCATENATE(" Para el año ",YEAR(O4), " valores acumulados hasta ",TEXT(O4-30,"mmmm")," de ",YEAR(O4),".")) -> 

Sheet Emisiones anual Canarias
J1: 2
H4: Sistema eléctrico
H5: Horizonte temporal
H6: Periodo
C8: =OFFSET(Emisiones!D85,0,($J$1-1)*8) -> 2014 | D8: =OFFSET(Emisiones!E85,0,($J$1-1)*8) -> 2015 | E8: =OFFSET(Emisiones!F85,0,($J$1-1)*8) -> 2016 | F8: =OFFSET(Emisiones!G85,0,($J$1-1)*8) -> 2017 | G8: =OFFSET(Emisiones!H85,0,($J$1-1)*8) -> 2018 | H8: =OFFSET(Emisiones!I85,0,($J$1-1)*8) -> 2019 | I8: =OFFSET(Emisiones!J85,0,($J$1-1)*8) -> 2020 | J8: =OFFSET(Emisiones!K85,0,($J$1-1)*8) -> 2021
B10: Motores diesel | C10: =OFFSET(Emisiones!D99,0,($J$1-1)*8) -> 1753322.717 | D10: =OFFSET(Emisiones!E99,0,($J$1-1)*8) -> 1805916.768 | E10: =OFFSET(Emisiones!F99,0,($J$1-1)*8) -> 1822287.265 | F10: =OFFSET(Emisiones!G99,0,($J$1-1)*8) -> 1838705.867 | G10: =OFFSET(Emisiones!H99,0,($J$1-1)*8) -> 1378742.36 | H10: =OFFSET(Emisiones!I99,0,($J$1-1)*8) -> 419382.1242 | I10: =OFFSET(Emisiones!J99,0,($J$1-1)*8) -> - | J10: =OFFSET(Emisiones!K99,0,($J$1-1)*8) -> -
B11: Turbina de gas | C11: =OFFSET(Emisiones!D100,0,($J$1-1)*8) -> 468967.5835 | D11: =OFFSET(Emisiones!E100,0,($J$1-1)*8) -> 426146.8523 | E11: =OFFSET(Emisiones!F100,0,($J$1-1)*8) -> 358670.8112 | F11: =OFFSET(Emisiones!G100,0,($J$1-1)*8) -> 408649.4178 | G11: =OFFSET(Emisiones!H100,0,($J$1-1)*8) -> 318476.2661 | H11: =OFFSET(Emisiones!I100,0,($J$1-1)*8) -> 89572.48048 | I11: =OFFSET(Emisiones!J100,0,($J$1-1)*8) -> - | J11: =OFFSET(Emisiones!K100,0,($J$1-1)*8) -> -
B12: Turbina de vapor | C12: =OFFSET(Emisiones!D101,0,($J$1-1)*8) -> 1842986.571 | D12: =OFFSET(Emisiones!E101,0,($J$1-1)*8) -> 1978426.005 | E12: =OFFSET(Emisiones!F101,0,($J$1-1)*8) -> 2257167.273 | F12: =OFFSET(Emisiones!G101,0,($J$1-1)*8) -> 2380210.527 | G12: =OFFSET(Emisiones!H101,0,($J$1-1)*8) -> 2209889.134 | H12: =OFFSET(Emisiones!I101,0,($J$1-1)*8) -> 756582.5763 | I12: =OFFSET(Emisiones!J101,0,($J$1-1)*8) -> - | J12: =OFFSET(Emisiones!K101,0,($J$1-1)*8) -> -
B13: Ciclo combinado (1) | C13: =OFFSET(Emisiones!D102,0,($J$1-1)*8) -> 2527661.523 | D13: =OFFSET(Emisiones!E102,0,($J$1-1)*8) -> 2486684.295 | E13: =OFFSET(Emisiones!F102,0,($J$1-1)*8) -> 2346500.318 | F13: =OFFSET(Emisiones!G102,0,($J$1-1)*8) -> 2337954.019 | G13: =OFFSET(Emisiones!H102,0,($J$1-1)*8) -> 1830612.965 | H13: =OFFSET(Emisiones!I102,0,($J$1-1)*8) -> 564413.1342 | I13: =OFFSET(Emisiones!J102,0,($J$1-1)*8) -> - | J13: =OFFSET(Emisiones!K102,0,($J$1-1)*8) -> -
B14: Generación auxiliar (2) | C14: =OFFSET(Emisiones!D103,0,($J$1-1)*8) -> - | D14: =OFFSET(Emisiones!E103,0,($J$1-1)*8) -> - | E14: =OFFSET(Emisiones!F103,0,($J$1-1)*8) -> - | F14: =OFFSET(Emisiones!G103,0,($J$1-1)*8) -> - | G14: =OFFSET(Emisiones!H103,0,($J$1-1)*8) -> - | H14: =OFFSET(Emisiones!I103,0,($J$1-1)*8) -> - | I14: =OFFSET(Emisiones!J103,0,($J$1-1)*8) -> - | J14: =OFFSET(Emisiones!K103,0,($J$1-1)*8) -> -
B15: Térmica no renovable/Cogeneración y resto | C15: =OFFSET(Emisiones!D104,0,($J$1-1)*8) -> - | D15: =OFFSET(Emisiones!E104,0,($J$1-1)*8) -> - | E15: =OFFSET(Emisiones!F104,0,($J$1-1)*8) -> - | F15: =OFFSET(Emisiones!G104,0,($J$1-1)*8) -> - | G15: =OFFSET(Emisiones!H104,0,($J$1-1)*8) -> - | H15: =OFFSET(Emisiones!I104,0,($J$1-1)*8) -> - | I15: =OFFSET(Emisiones!J104,0,($J$1-1)*8) -> - | J15: =OFFSET(Emisiones!K104,0,($J$1-1)*8) -> -
B16: Cogeneración | C16: =OFFSET(Emisiones!D105,0,($J$1-1)*8) -> - | D16: =OFFSET(Emisiones!E105,0,($J$1-1)*8) -> - | E16: =OFFSET(Emisiones!F105,0,($J$1-1)*8) -> - | F16: =OFFSET(Emisiones!G105,0,($J$1-1)*8) -> - | G16: =OFFSET(Emisiones!H105,0,($J$1-1)*8) -> - | H16: =OFFSET(Emisiones!I105,0,($J$1-1)*8) -> - | I16: =OFFSET(Emisiones!J105,0,($J$1-1)*8) -> - | J16: =OFFSET(Emisiones!K105,0,($J$1-1)*8) -> -
B17: Emisiones (tCO2) | C17: =IF(SUM(C10:C16)=0,"-",SUM(C10:C16)) -> 6592938.394 | D17: =IF(SUM(D10:D16)=0,"-",SUM(D10:D16)) -> 6697173.92 | E17: 6784625.667 | F17: 6965519.831 | G17: 5737720.725 | H17: 1829950.315 | I17: - | J17: =IF(SUM(J10:J16)=0,"-",SUM(J10:J16)) -> -
B18: Factor de emision de CO2 (tCO2/MWh) | C18: =OFFSET(Emisiones!D107,0,($J$1-1)*8) -> 0.7760856653 | D18: =OFFSET(Emisiones!E107,0,($J$1-1)*8) -> 0.775745213 | E18: =OFFSET(Emisiones!F107,0,($J$1-1)*8) -> 0.7759087522 | F18: =OFFSET(Emisiones!G107,0,($J$1-1)*8) -> 0.7799205773 | G18: =OFFSET(Emisiones!H107,0,($J$1-1)*8) -> 0.6490107418 | H18: =OFFSET(Emisiones!I107,0,($J$1-1)*8) -> 0.637169919 | I18: =OFFSET(Emisiones!J107,0,($J$1-1)*8) -> - | J18: =OFFSET(Emisiones!K107,0,($J$1-1)*8) -> -
B19: (1) Utiliza gasoil como combustible principal. Incluye funcionamiento en ciclo abierto.
B20: (2) Grupos de emergencia que se instalan de forma transitoria en determinadas zonas para cubrir un déficit de generación.
B21: =IF(MONTH('AVISO LEGAL'!J2)=1,"",CONCATENATE(" Para el año ",YEAR('AVISO LEGAL'!J2), " valores hasta ",TEXT('AVISO LEGAL'!J2-30,"mmmm")," de ",YEAR('AVISO LEGAL'!J2),".")) -> Para el año 2019 valores hasta abril de 2019.

Sheet Emisiones mensual Ceuta
O1: 13
M4: Sistema eléctrico
M5: Horizonte temporal
M6: Periodo
C8: Ene. | D8: Feb. | E8: Mar. | F8: Abr. | G8: May. | H8: Jun. | I8: Jul. | J8: Ago. | K8: Sep. | L8: Oct. | M8: Nov. | N8: Dic. | O8: =OFFSET(Año!B19,($O$1-1),0) -> 2019
B10: Motores diesel | C10: =OFFSET(Emisiones!D49,0,($O$1-1)*12) -> 13729.0076 | D10: =OFFSET(Emisiones!E49,0,($O$1-1)*12) -> 12334.51373 | E10: =OFFSET(Emisiones!F49,0,($O$1-1)*12) -> 12780.15816 | F10: =OFFSET(Emisiones!G49,0,($O$1-1)*12) -> 11719.27141 | G10: =OFFSET(Emisiones!H49,0,($O$1-1)*12) -> - | H10: =OFFSET(Emisiones!I49,0,($O$1-1)*12) -> - | I10: =OFFSET(Emisiones!J49,0,($O$1-1)*12) -> - | J10: =OFFSET(Emisiones!K49,0,($O$1-1)*12) -> - | K10: =OFFSET(Emisiones!L49,0,($O$1-1)*12) -> - | L10: =OFFSET(Emisiones!M49,0,($O$1-1)*12) -> - | M10: =OFFSET(Emisiones!N49,0,($O$1-1)*12) -> - | N10: =OFFSET(Emisiones!O49,0,($O$1-1)*12) -> - | O10: =IF(SUM(C10:N10)=0,"-",SUM(C10:N10)) -> 50562.9509
B11: Turbina de gas | C11: =OFFSET(Emisiones!D50,0,($O$1-1)*12) -> 0.26566 | D11: =OFFSET(Emisiones!E50,0,($O$1-1)*12) -> 0.50172 | E11: =OFFSET(Emisiones!F50,0,($O$1-1)*12) -> 0.46398 | F11: =OFFSET(Emisiones!G50,0,($O$1-1)*12) -> 0.93314 | G11: =OFFSET(Emisiones!H50,0,($O$1-1)*12) -> - | H11: =OFFSET(Emisiones!I50,0,($O$1-1)*12) -> - | I11: =OFFSET(Emisiones!J50,0,($O$1-1)*12) -> - | J11: =OFFSET(Emisiones!K50,0,($O$1-1)*12) -> - | K11: =OFFSET(Emisiones!L50,0,($O$1-1)*12) -> - | L11: =OFFSET(Emisiones!M50,0,($O$1-1)*12) -> - | M11: =OFFSET(Emisiones!N50,0,($O$1-1)*12) -> - | N11: =OFFSET(Emisiones!O50,0,($O$1-1)*12) -> - | O11: =IF(SUM(C11:N11)=0,"-",SUM(C11:N11)) -> 2.1645
B12: Emisiones (tCO2) | C12: =IF(SUM(C10:C11)=0,"-",SUM(C10:C11)) -> 13729.27326 | D12: =IF(SUM(D10:D11)=0,"-",SUM(D10:D11)) -> 12335.01545 | E12: 12780.62214 | F12: 11720.20455 | G12: - | H12: - | I12: - | J12: - | K12: - | L12: - | M12: - | N12: =IF(SUM(N10:N11)=0,"-",SUM(N10:N11)) -> - | O12: =IF(SUM(C12:N12)=0,"-",SUM(C12:N12)) -> 50565.1154
B13: Factor de emision de CO2 (tCO2/MWh) | C13: =OFFSET(Emisiones!D52,0,($O$1-1)*12) -> 0.769999396 | D13: =OFFSET(Emisiones!E52,0,($O$1-1)*12) -> 0.7699987303 | E13: =OFFSET(Emisiones!F52,0,($O$1-1)*12) -> 0.7699988667 | F13: =OFFSET(Emisiones!G52,0,($O$1-1)*12) -> 0.7699975146 | G13: =OFFSET(Emisiones!H52,0,($O$1-1)*12) -> - | H13: =OFFSET(Emisiones!I52,0,($O$1-1)*12) -> - | I13: =OFFSET(Emisiones!J52,0,($O$1-1)*12) -> - | J13: =OFFSET(Emisiones!K52,0,($O$1-1)*12) -> - | K13: =OFFSET(Emisiones!L52,0,($O$1-1)*12) -> - | L13: =OFFSET(Emisiones!M52,0,($O$1-1)*12) -> - | M13: =OFFSET(Emisiones!N52,0,($O$1-1)*12) -> - | N13: =OFFSET(Emisiones!O52,0,($O$1-1)*12) -> - | O13: =OFFSET(Emisiones!D113,0,($O$1-1)) -> 0.7699986638
B14: =IF(MONTH(O4)=1,"",CONCATENATE(" Para el año ",YEAR(O4), " valores acumulados hasta ",TEXT(O4-30,"mmmm")," de ",YEAR(O4),".")) -> 

Sheet Emisiones anual Ceuta
J1: 2
H4: Sistema eléctrico
H5: Horizonte temporal
H6: Periodo
C8: =OFFSET(Emisiones!D109,0,($J$1-1)*8) -> 2015 | D8: =OFFSET(Emisiones!E109,0,($J$1-1)*8) -> 2016 | E8: =OFFSET(Emisiones!F109,0,($J$1-1)*8) -> 2017 | F8: =OFFSET(Emisiones!G109,0,($J$1-1)*8) -> 2018 | G8: =OFFSET(Emisiones!H109,0,($J$1-1)*8) -> 2019 | H8: =OFFSET(Emisiones!I109,0,($J$1-1)*8) -> 2020 | I8: =OFFSET(Emisiones!J109,0,($J$1-1)*8) -> 2021 | J8: =OFFSET(Emisiones!K109,0,($J$1-1)*8) -> 2022
B10: Motores diesel | C10: =OFFSET(Emisiones!D110,0,($J$1-1)*8) -> 156508.1279 | D10: =OFFSET(Emisiones!E110,0,($J$1-1)*8) -> 162129.6538 | E10: =OFFSET(Emisiones!F110,0,($J$1-1)*8) -> 156039.2179 | F10: =OFFSET(Emisiones!G110,0,($J$1-1)*8) -> 159571.8263 | G10: =OFFSET(Emisiones!H110,0,($J$1-1)*8) -> 50562.9509 | H10: =OFFSET(Emisiones!I110,0,($J$1-1)*8) -> - | I10: =OFFSET(Emisiones!J110,0,($J$1-1)*8) -> - | J10: =OFFSET(Emisiones!K110,0,($J$1-1)*8) -> -
B11: Turbina de gas | C11: =OFFSET(Emisiones!D111,0,($J$1-1)*8) -> 566.67794 | D11: =OFFSET(Emisiones!E111,0,($J$1-1)*8) -> 90.97856 | E11: =OFFSET(Emisiones!F111,0,($J$1-1)*8) -> 157.2463 | F11: =OFFSET(Emisiones!G111,0,($J$1-1)*8) -> 88.86364 | G11: =OFFSET(Emisiones!H111,0,($J$1-1)*8) -> 2.1645 | H11: =OFFSET(Emisiones!I111,0,($J$1-1)*8) -> - | I11: =OFFSET(Emisiones!J111,0,($J$1-1)*8) -> - | J11: =OFFSET(Emisiones!K111,0,($J$1-1)*8) -> -
B12: Emisiones (tCO2) | C12: =IF(SUM(C10:C11)=0,"-",SUM(C10:C11)) -> 157074.8059 | D12: =IF(SUM(D10:D11)=0,"-",SUM(D10:D11)) -> 162220.6324 | E12: 156196.4642 | F12: 159660.6899 | G12: 50565.1154 | H12: - | I12: - | J12: =IF(SUM(J10:J11)=0,"-",SUM(J10:J11)) -> -
B13: Factor de emision de CO2 (tCO2/MWh) | C13: =OFFSET(Emisiones!D113,0,($J$1-1)*8) -> 0.7698873979 | D13: =OFFSET(Emisiones!E113,0,($J$1-1)*8) -> 0.7699824933 | E13: =OFFSET(Emisiones!F113,0,($J$1-1)*8) -> 0.7699685753 | F13: =OFFSET(Emisiones!G113,0,($J$1-1)*8) -> 0.7699826261 | G13: =OFFSET(Emisiones!H113,0,($J$1-1)*8) -> 0.7699986638 | H13: =OFFSET(Emisiones!I113,0,($J$1-1)*8) -> - | I13: =OFFSET(Emisiones!J113,0,($J$1-1)*8) -> - | J13: =OFFSET(Emisiones!K113,0,($J$1-1)*8) -> -
B14: =IF(MONTH('AVISO LEGAL'!J2)=1,"",CONCATENATE("Para el año ",YEAR('AVISO LEGAL'!J2), " valores hasta ",TEXT('AVISO LEGAL'!J2-30,"mmmm")," de ",YEAR('AVISO LEGAL'!J2),".")) -> Para el año 2019 valores hasta abril de 2019.

Sheet Emisiones mensual Melilla
O1: 13
M4: Sistema eléctrico
M5: Horizonte temporal
M6: Periodo
C8: Ene. | D8: Feb. | E8: Mar. | F8: Abr. | G8: May. | H8: Jun. | I8: Jul. | J8: Ago. | K8: Sep. | L8: Oct. | M8: Nov. | N8: Dic. | O8: =OFFSET(Año!B19,($O$1-1),0) -> 2019
B10: Motores diesel | C10: =OFFSET(Emisiones!D55,0,($O$1-1)*12) -> 13417.80748 | D10: =OFFSET(Emisiones!E55,0,($O$1-1)*12) -> 11533.90084 | E10: =OFFSET(Emisiones!F55,0,($O$1-1)*12) -> 11963.99666 | F10: =OFFSET(Emisiones!G55,0,($O$1-1)*12) -> 11202.10707 | G10: =OFFSET(Emisiones!H55,0,($O$1-1)*12) -> - | H10: =OFFSET(Emisiones!I55,0,($O$1-1)*12) -> - | I10: =OFFSET(Emisiones!J55,0,($O$1-1)*12) -> - | J10: =OFFSET(Emisiones!K55,0,($O$1-1)*12) -> - | K10: =OFFSET(Emisiones!L55,0,($O$1-1)*12) -> - | L10: =OFFSET(Emisiones!M55,0,($O$1-1)*12) -> - | M10: =OFFSET(Emisiones!N55,0,($O$1-1)*12) -> - | N10: =OFFSET(Emisiones!O55,0,($O$1-1)*12) -> - | O10: =IF(SUM(C10:N10)=0,"-",SUM(C10:N10)) -> 48117.81205
B11: Turbina de gas | C11: =OFFSET(Emisiones!D56,0,($O$1-1)*12) -> 0.41514 | D11: =OFFSET(Emisiones!E56,0,($O$1-1)*12) -> 0.37962 | E11: =OFFSET(Emisiones!F56,0,($O$1-1)*12) -> 0.74888 | F11: =OFFSET(Emisiones!G56,0,($O$1-1)*12) -> 1.14404 | G11: =OFFSET(Emisiones!H56,0,($O$1-1)*12) -> - | H11: =OFFSET(Emisiones!I56,0,($O$1-1)*12) -> - | I11: =OFFSET(Emisiones!J56,0,($O$1-1)*12) -> - | J11: =OFFSET(Emisiones!K56,0,($O$1-1)*12) -> - | K11: =OFFSET(Emisiones!L56,0,($O$1-1)*12) -> - | L11: =OFFSET(Emisiones!M56,0,($O$1-1)*12) -> - | M11: =OFFSET(Emisiones!N56,0,($O$1-1)*12) -> - | N11: =OFFSET(Emisiones!O56,0,($O$1-1)*12) -> - | O11: =IF(SUM(C11:N11)=0,"-",SUM(C11:N11)) -> 2.68768
B12: Térmica no renovable/Cogeneración y resto | C12: =OFFSET(Emisiones!D57,0,($O$1-1)*12) -> - | D12: =OFFSET(Emisiones!E57,0,($O$1-1)*12) -> - | E12: =OFFSET(Emisiones!F57,0,($O$1-1)*12) -> - | F12: =OFFSET(Emisiones!G57,0,($O$1-1)*12) -> - | G12: =OFFSET(Emisiones!H57,0,($O$1-1)*12) -> - | H12: =OFFSET(Emisiones!I57,0,($O$1-1)*12) -> - | I12: =OFFSET(Emisiones!J57,0,($O$1-1)*12) -> - | J12: =OFFSET(Emisiones!K57,0,($O$1-1)*12) -> - | K12: =OFFSET(Emisiones!L57,0,($O$1-1)*12) -> - | L12: =OFFSET(Emisiones!M57,0,($O$1-1)*12) -> - | M12: =OFFSET(Emisiones!N57,0,($O$1-1)*12) -> - | N12: =OFFSET(Emisiones!O57,0,($O$1-1)*12) -> - | O12: -
B13: Residuos no renovables | C13: =OFFSET(Emisiones!D58,0,($O$1-1)*12) -> 131.86176 | D13: =OFFSET(Emisiones!E58,0,($O$1-1)*12) -> 117.52728 | E13: =OFFSET(Emisiones!F58,0,($O$1-1)*12) -> 129.22416 | F13: =OFFSET(Emisiones!G58,0,($O$1-1)*12) -> 109.52232 | G13: =OFFSET(Emisiones!H58,0,($O$1-1)*12) -> - | H13: =OFFSET(Emisiones!I58,0,($O$1-1)*12) -> - | I13: =OFFSET(Emisiones!J58,0,($O$1-1)*12) -> - | J13: =OFFSET(Emisiones!K58,0,($O$1-1)*12) -> - | K13: =OFFSET(Emisiones!L58,0,($O$1-1)*12) -> - | L13: =OFFSET(Emisiones!M58,0,($O$1-1)*12) -> - | M13: =OFFSET(Emisiones!N58,0,($O$1-1)*12) -> - | N13: =OFFSET(Emisiones!O58,0,($O$1-1)*12) -> - | O13: 488.13552
B15: Emisiones (tCO2) | C15: =IF(SUM(C10:C14)=0,"-",SUM(C10:C14)) -> 13550.08438 | D15: =IF(SUM(D10:D14)=0,"-",SUM(D10:D14)) -> 11651.80774 | E15: 12093.9697 | F15: 11312.77343 | G15: - | H15: - | I15: - | J15: - | K15: - | L15: - | M15: - | N15: =IF(SUM(N10:N14)=0,"-",SUM(N10:N14)) -> - | O15: =IF(SUM(C15:N15)=0,"-",SUM(C15:N15)) -> 48608.63525
B16: Factor de emision de CO2 (tCO2/MWh) | C16: =OFFSET(Emisiones!D61,0,($O$1-1)*12) -> 0.7312438407 | D16: =OFFSET(Emisiones!E61,0,($O$1-1)*12) -> 0.7298562118 | E16: =OFFSET(Emisiones!F61,0,($O$1-1)*12) -> 0.7275837847 | F16: =OFFSET(Emisiones!G61,0,($O$1-1)*12) -> 0.7312669879 | G16: =OFFSET(Emisiones!H61,0,($O$1-1)*12) -> - | H16: =OFFSET(Emisiones!I61,0,($O$1-1)*12) -> - | I16: =OFFSET(Emisiones!J61,0,($O$1-1)*12) -> - | J16: =OFFSET(Emisiones!K61,0,($O$1-1)*12) -> - | K16: =OFFSET(Emisiones!L61,0,($O$1-1)*12) -> - | L16: =OFFSET(Emisiones!M61,0,($O$1-1)*12) -> - | M16: =OFFSET(Emisiones!N61,0,($O$1-1)*12) -> - | N16: =OFFSET(Emisiones!O61,0,($O$1-1)*12) -> - | O16: =OFFSET(Emisiones!D122,0,($O$1-1)) -> 0.7300028677
B17: =IF(MONTH(O4)=1,"",CONCATENATE(" Para el año ",YEAR(O4), " valores acumulados hasta ",TEXT(O4-30,"mmmm")," de ",YEAR(O4),".")) -> 

Sheet Emisiones anual Melilla
J1: 2
H4: Sistema eléctrico
H5: Horizonte temporal
H6: Periodo
C8: =OFFSET(Emisiones!D115,0,($J$1-1)*8) -> 2015 | D8: =OFFSET(Emisiones!E115,0,($J$1-1)*8) -> 2016 | E8: =OFFSET(Emisiones!F115,0,($J$1-1)*8) -> 2017 | F8: =OFFSET(Emisiones!G115,0,($J$1-1)*8) -> 2018 | G8: =OFFSET(Emisiones!H115,0,($J$1-1)*8) -> 2019 | H8: =OFFSET(Emisiones!I115,0,($J$1-1)*8) -> 2020 | I8: =OFFSET(Emisiones!J115,0,($J$1-1)*8) -> 2021 | J8: =OFFSET(Emisiones!K115,0,($J$1-1)*8) -> 2022
B10: Motores diesel | C10: =OFFSET(Emisiones!D116,0,($J$1-1)*8) -> 157016.1685 | D10: =OFFSET(Emisiones!E116,0,($J$1-1)*8) -> 152652.7433 | E10: =OFFSET(Emisiones!F116,0,($J$1-1)*8) -> 154244.0623 | F10: =OFFSET(Emisiones!G116,0,($J$1-1)*8) -> 155627.5228 | G10: =OFFSET(Emisiones!H116,0,($J$1-1)*8) -> 48117.81205 | H10: =OFFSET(Emisiones!I116,0,($J$1-1)*8) -> - | I10: =OFFSET(Emisiones!J116,0,($J$1-1)*8) -> - | J10: =OFFSET(Emisiones!K116,0,($J$1-1)*8) -> -
B11: Turbina de gas | C11: =OFFSET(Emisiones!D117,0,($J$1-1)*8) -> 452.50852 | D11: =OFFSET(Emisiones!E117,0,($J$1-1)*8) -> 189.04706 | E11: =OFFSET(Emisiones!F117,0,($J$1-1)*8) -> 57.18202 | F11: =OFFSET(Emisiones!G117,0,($J$1-1)*8) -> 49.65474 | G11: =OFFSET(Emisiones!H117,0,($J$1-1)*8) -> 2.68768 | H11: =OFFSET(Emisiones!I117,0,($J$1-1)*8) -> - | I11: =OFFSET(Emisiones!J117,0,($J$1-1)*8) -> - | J11: =OFFSET(Emisiones!K117,0,($J$1-1)*8) -> -
B12: Térmica no renovable/Cogeneración y resto | C12: =OFFSET(Emisiones!D118,0,($J$1-1)*8) -> - | D12: =OFFSET(Emisiones!E118,0,($J$1-1)*8) -> - | E12: =OFFSET(Emisiones!F118,0,($J$1-1)*8) -> - | F12: =OFFSET(Emisiones!G118,0,($J$1-1)*8) -> - | G12: =OFFSET(Emisiones!H118,0,($J$1-1)*8) -> - | H12: =OFFSET(Emisiones!I118,0,($J$1-1)*8) -> - | I12: =OFFSET(Emisiones!J118,0,($J$1-1)*8) -> - | J12: =OFFSET(Emisiones!K118,0,($J$1-1)*8) -> -
B13: Residuos no renovables | C13: =OFFSET(Emisiones!D119,0,($J$1-1)*8) -> 1031.15952 | D13: =OFFSET(Emisiones!E119,0,($J$1-1)*8) -> 1164.0126 | E13: =OFFSET(Emisiones!F119,0,($J$1-1)*8) -> 1194.47664 | F13: =OFFSET(Emisiones!G119,0,($J$1-1)*8) -> 1283.24136 | G13: =OFFSET(Emisiones!H119,0,($J$1-1)*8) -> 488.13552 | H13: =OFFSET(Emisiones!I119,0,($J$1-1)*8) -> - | I13: =OFFSET(Emisiones!J119,0,($J$1-1)*8) -> - | J13: =OFFSET(Emisiones!K119,0,($J$1-1)*8) -> -
B15: Emisiones (tCO2) | C15: =IF(SUM(C10:C14)=0,"-",SUM(C10:C14)) -> 158499.8366 | D15: =IF(SUM(D10:D14)=0,"-",SUM(D10:D14)) -> 154005.803 | E15: 155495.7209 | F15: =IF(SUM(F10:F14)=0,"-",SUM(F10:F14)) -> 156960.4189 | G15: 48608.63525 | H15: - | I15: - | J15: =IF(SUM(J10:J14)=0,"-",SUM(J10:J14)) -> -
B16: Factor de emision de CO2 (tCO2/MWh) | C16: =OFFSET(Emisiones!D122,0,($J$1-1)*8) -> 0.7434272036 | D16: =OFFSET(Emisiones!E122,0,($J$1-1)*8) -> 0.7393958805 | E16: =OFFSET(Emisiones!F122,0,($J$1-1)*8) -> 0.7389600252 | F16: =OFFSET(Emisiones!G122,0,($J$1-1)*8) -> 0.7370796653 | G16: =OFFSET(Emisiones!H122,0,($J$1-1)*8) -> 0.7300028677 | H16: =OFFSET(Emisiones!I122,0,($J$1-1)*8) -> - | I16: =OFFSET(Emisiones!J122,0,($J$1-1)*8) -> - | J16: =OFFSET(Emisiones!K122,0,($J$1-1)*8) -> -
B17: =IF(MONTH('AVISO LEGAL'!J2)=1,"",CONCATENATE("Para el año ",YEAR('AVISO LEGAL'!J2), " valores hasta ",TEXT('AVISO LEGAL'!J2-30,"mmmm")," de ",YEAR('AVISO LEGAL'!J2),".")) -> Para el año 2019 valores hasta abril de 2019.

Sheet Emisiones (hidden)
C2: Emisiones de CO2 asociadas a la generación mensual peninsular | D2: 1990-01-01 | E2: 1990-02-01 | F2: 1990-03-01 | G2: 1990-04-01 | H2: 1990-05-01 | I2: 1990-06-01 | J2: 1990-07-01 | K2: 1990-08-01 | L2: 1990-09-01 | M2: 1990-10-01 | N2: 1990-11-01 | O2: 1990-12-01 | P2: 1991-01-01 | Q2: 1991-02-01 | R2: 1991-03-01 | S2: 1991-04-01 | T2: 1991-05-01 | U2: 1991-06-01 | V2: 1991-07-01 | W2: 1991-08-01 | X2: 1991-09-01 | Y2: 1991-10-01 | Z2: 1991-11-01 | AA2: 1991-12-01 | AB2: 1992-01-01 | AC2: 1992-02-01 | AD2: 1992-03-01 | AE2: 1992-04-01 | AF2: 1992-05-01 | AG2: 1992-06-01 | AH2: 1992-07-01 | AI2: 1992-08-01 | AJ2: 1992-09-01 | AK2: 1992-10-01 | AL2: 1992-11-01 | AM2: 1992-12-01 | AN2: 1993-01-01 | AO2: 1993-02-01 | AP2: 1993-03-01 | AQ2: 1993-04-01 | AR2: 1993-05-01 | AS2: 1993-06-01 | AT2: 1993-07-01 | AU2: 1993-08-01 | AV2: 1993-09-01 | AW2: 1993-10-01 | AX2: 1993-11-01 | AY2: 1993-12-01 | AZ2: 1994-01-01 | BA2: 1994-02-01 | BB2: 1994-03-01 | BC2: 1994-04-01 | BD2: 1994-05-01 | BE2: 1994-06-01 | BF2: 1994-07-01 | BG2: 1994-08-01 | BH2: 1994-09-01 | BI2: 1994-10-01 | BJ2: 1994-11-01 | BK2: 1994-12-01 | BL2: 1995-01-01 | BM2: 1995-02-01 | BN2: 1995-03-01 | BO2: 1995-04-01 | BP2: 1995-05-01 | BQ2: 1995-06-01 | BR2: 1995-07-01 | BS2: 1995-08-01 | BT2: 1995-09-01 | BU2: 1995-10-01 | BV2: 1995-11-01 | BW2: 1995-12-01 | BX2: 1996-01-01 | BY2: 1996-02-01 | BZ2: 1996-03-01 | CA2: 1996-04-01 | CB2: 1996-05-01 | CC2: 1996-06-01 | CD2: 1996-07-01 | CE2: 1996-08-01 | CF2: 1996-09-01 | CG2: 1996-10-01 | CH2: 1996-11-01 | CI2: 1996-12-01 | CJ2: 1997-01-01 | CK2: 1997-02-01 | CL2: 1997-03-01 | CM2: 1997-04-01 | CN2: 1997-05-01 | CO2: 1997-06-01 | CP2: 1997-07-01 | CQ2: 1997-08-01 | CR2: 1997-09-01 | CS2: 1997-10-01 | CT2: 1997-11-01 | CU2: 1997-12-01 | CV2: 1998-01-01 | CW2: 1998-02-01 | CX2: 1998-03-01 | CY2: 1998-04-01 | CZ2: 1998-05-01 | DA2: 1998-06-01 | DB2: 1998-07-01 | DC2: 1998-08-01 | DD2: 1998-09-01 | DE2: 1998-10-01 | DF2: 1998-11-01 | DG2: 1998-12-01 | DH2: 1999-01-01 | DI2: 1999-02-01 | DJ2: 1999-03-01 | DK2: 1999-04-01 | DL2: 1999-05-01 | DM2: 1999-06-01 | DN2: 1999-07-01 | DO2: 1999-08-01 | DP2: 1999-09-01 | DQ2: 1999-10-01 | DR2: 1999-11-01 | DS2: 1999-12-01 | DT2: 2000-01-01 | DU2: 2000-02-01 | DV2: 2000-03-01 | DW2: 2000-04-01 | DX2: 2000-05-01 | DY2: 2000-06-01 | DZ2: 2000-07-01 | EA2: 2000-08-01 | EB2: 2000-09-01 | EC2: 2000-10-01 | ED2: 2000-11-01 | EE2: 2000-12-01 | EF2: 2001-01-01 | EG2: 2001-02-01 | EH2: 2001-03-01 | EI2: 2001-04-01 | EJ2: 2001-05-01 | EK2: 2001-06-01 | EL2: 2001-07-01 | EM2: 2001-08-01 | EN2: 2001-09-01 | EO2: 2001-10-01 | EP2: 2001-11-01 | EQ2: 2001-12-01 | ER2: 2002-01-01 | ES2: 2002-02-01 | ET2: 2002-03-01 | EU2: 2002-04-01 | EV2: 2002-05-01 | EW2: 2002-06-01 | EX2: 2002-07-01 | EY2: 2002-08-01 | EZ2: 2002-09-01 | FA2: 2002-10-01 | FB2: 2002-11-01 | FC2: 2002-12-01 | FD2: 2003-01-01 | FE2: 2003-02-01 | FF2: 2003-03-01 | FG2: 2003-04-01 | FH2: 2003-05-01 | FI2: 2003-06-01 | FJ2: 2003-07-01 | FK2: 2003-08-01 | FL2: 2003-09-01 | FM2: 2003-10-01 | FN2: 2003-11-01 | FO2: 2003-12-01 | FP2: 2004-01-01 | FQ2: 2004-02-01 | FR2: 2004-03-01 | FS2: 2004-04-01 | FT2: 2004-05-01 | FU2: 2004-06-01 | FV2: 2004-07-01 | FW2: 2004-08-01 | FX2: 2004-09-01 | FY2: 2004-10-01 | FZ2: 2004-11-01 | GA2: 2004-12-01 | GB2: 2005-01-01 | GC2: 2005-02-01 | GD2: 2005-03-01 | GE2: 2005-04-01 | GF2: 2005-05-01 | GG2: 2005-06-01 | GH2: 2005-07-01 | GI2: 2005-08-01 | GJ2: 2005-09-01 | GK2: 2005-10-01 | GL2: 2005-11-01 | GM2: 2005-12-01 | GN2: 2006-01-01 | GO2: 2006-02-01 | GP2: 2006-03-01 | GQ2: 2006-04-01 | GR2: 2006-05-01 | GS2: 2006-06-01 | GT2: 2006-07-01 | GU2: 2006-08-01 | GV2: 2006-09-01 | GW2: 2006-10-01 | GX2: 2006-11-01 | GY2: 2006-12-01 | GZ2: 2007-01-01 | HA2: 2007-02-01 | HB2: 2007-03-01 | HC2: 2007-04-01 | HD2: 2007-05-01 | HE2: 2007-06-01 | HF2: 2007-07-01 | HG2: 2007-08-01 | HH2: 2007-09-01 | HI2: 2007-10-01 | HJ2: 2007-11-01 | HK2: 2007-12-01 | HL2: 2008-01-01 | HM2: 2008-02-01 | HN2: 2008-03-01 | HO2: 2008-04-01 | HP2: 2008-05-01 | HQ2: 2008-06-01 | HR2: 2008-07-01 | HS2: 2008-08-01 | HT2: 2008-09-01 | HU2: 2008-10-01 | HV2: 2008-11-01 | HW2: 2008-12-01 | HX2: 2009-01-01 | HY2: 2009-02-01 | HZ2: 2009-03-01 | IA2: 2009-04-01 | IB2: 2009-05-01 | IC2: 2009-06-01 | ID2: 2009-07-01 | IE2: 2009-08-01 | IF2: 2009-09-01 | IG2: 2009-10-01 | IH2: 2009-11-01 | II2: 2009-12-01 | IJ2: 2010-01-01 | IK2: 2010-02-01 | IL2: 2010-03-01 | IM2: 2010-04-01 | IN2: 2010-05-01 | IO2: 2010-06-01 | IP2: 2010-07-01 | IQ2: 2010-08-01 | IR2: 2010-09-01 | IS2: 2010-10-01 | IT2: 2010-11-01 | IU2: 2010-12-01 | IV2: 2011-01-01 | IW2: 2011-02-01 | IX2: 2011-03-01 | IY2: 2011-04-01 | IZ2: 2011-05-01 | JA2: 2011-06-01 | JB2: 2011-07-01 | JC2: 2011-08-01 | JD2: 2011-09-01 | JE2: 2011-10-01 | JF2: 2011-11-01 | JG2: 2011-12-01 | JH2: 2012-01-01 | JI2: 2012-02-01 | JJ2: 2012-03-01 | JK2: 2012-04-01 | JL2: 2012-05-01 | JM2: 2012-06-01 | JN2: 2012-07-01 | JO2: 2012-08-01 | JP2: 2012-09-01 | JQ2: 2012-10-01 | JR2: 2012-11-01 | JS2: 2012-12-01 | JT2: 2013-01-01 | JU2: 2013-02-01 | JV2: 2013-03-01 | JW2: 2013-04-01 | JX2: 2013-05-01 | JY2: 2013-06-01 | JZ2: 2013-07-01 | KA2: 2013-08-01 | KB2: 2013-09-01 | KC2: 2013-10-01 | KD2: 2013-11-01 | KE2: 2013-12-01 | KF2: 2014-01-01 | KG2: 2014-02-01 | KH2: 2014-03-01 | KI2: 2014-04-01 | KJ2: 2014-05-01 | KK2: 2014-06-01 | KL2: 2014-07-01 | KM2: 2014-08-01 | KN2: 2014-09-01 | KO2: 2014-10-01 | KP2: 2014-11-01 | KQ2: 2014-12-01 | KR2: 2015-01-01 | KS2: 2015-02-01 | KT2: 2015-03-01 | KU2: 2015-04-01 | KV2: 2015-05-01 | KW2: 2015-06-01 | KX2: 2015-07-01 | KY2: 2015-08-01 | KZ2: 2015-09-01 | LA2: 2015-10-01 | LB2: 2015-11-01 | LC2: 2015-12-01 | LD2: 2016-01-01 | LE2: 2016-02-01 | LF2: 2016-03-01 | LG2: 2016-04-01 | LH2: 2016-05-01 | LI2: 2016-06-01 | LJ2: 2016-07-01 | LK2: 2016-08-01 | LL2: 2016-09-01 | LM2: 2016-10-01 | LN2: 2016-11-01 | LO2: 2016-12-01 | LP2: 2017-01-01 | LQ2: 2017-02-01 | LR2: 2017-03-01 | LS2: 2017-04-01 | LT2: 2017-05-01 | LU2: 2017-06-01 | LV2: 2017-07-01 | LW2: 2017-08-01 | LX2: 2017-09-01 | LY2: 2017-10-01 | LZ2: 2017-11-01 | MA2: 2017-12-01 | MB2: 2018-01-01 | MC2: 2018-02-01 | MD2: 2018-03-01 | ME2: 2018-04-01 | MF2: 2018-05-01 | MG2: 2018-06-01 | MH2: 2018-07-01 | MI2: 2018-08-01 | MJ2: 2018-09-01 | MK2: 2018-10-01 | ML2: 2018-11-01 | MM2: 2018-12-01 | MN2: 2019-01-01 | MO2: 2019-02-01 | MP2: 2019-03-01 | MQ2: 2019-04-01 | MR2: 2019-05-01 | MS2: 2019-06-01 | MT2: 2019-07-01 | MU2: 2019-08-01 | MV2: 2019-09-01 | MW2: 2019-10-01 | MX2: 2019-11-01 | MY2: 2019-12-01
C3: Carbón | D3: 3376977.35 | E3: 2668483.5 | F3: 4420064.05 | G3: 3929715.85 | H3: 4357755.45 | I3: 5055360.4 | J3: 4988170.7 | K3: 3750508.8 | L3: 5118506.9 | M3: 5235420.55 | N3: 4669309.85 | O3: 5001594.2 | P3: 4963066 | Q3: 5031793.75 | R3: 3320276.6 | S3: 3307756.55 | T3: 3488227.1 | U3: 4043858.35 | V3: 4731164.35 | W3: 3882384.95 | X3: 4947667.45 | Y3: 5000084.65 | Z3: 5068848.5 | AA3: 5228963.4 | AB3: 5647740.5 | AC3: 5451419.2 | AD3: 5798421.9 | AE3: 4941243.55 | AF3: 4462583.2 | AG3: 4072289 | AH3: 4765172.45 | AI3: 3870627.75 | AJ3: 5053310.3 | AK3: 4394412.15 | AL3: 4659654.05 | AM3: 3717726.2 | AN3: 5079539.8 | AO3: 5237378.5 | AP3: 5331590 | AQ3: 4911780.25 | AR3: 4538607.9 | AS3: 4002146.7 | AT3: 4472405.25 | AU3: 4183814.25 | AV3: 4909548.7 | AW3: 3832067.25 | AX3: 4114526.95 | AY3: 4345137.55 | AZ3: 3779584.5 | BA3: 4345894.7 | BB3: 4533429.45 | BC3: 4193379.8 | BD3: 3750202.9 | BE3: 4721420.2 | BF3: 5188730.9 | BG3: 4414149.35 | BH3: 4737298.5 | BI3: 5032912.85 | BJ3: 4740312.85 | BK3: 4878657.55 | BL3: 4713465.85 | BM3: 3882366.9 | BN3: 4316207.2 | BO3: 4526676.85 | BP3: 4607467.7 | BQ3: 4739005.65 | BR3: 5522464.95 | BS3: 5429523.6 | BT3: 5657662.3 | BU3: 5180166.65 | BV3: 5346041.4 | BW3: 4251927.35 | BX3: 2242480.7 | BY3: 2403876.2 | BZ3: 3711094.25 | CA3: 2437873.85 | CB3: 2344615.2 | CC3: 4562809.15 | CD3: 5772089.8 | CE3: 5432784 | CF3: 5209107.45 | CG3: 5035639.35 | CH3: 4974006.2 | CI3: 2868859.4 | CJ3: 3201466.75 | CK3: 3268384.75 | CL3: 4998369.9 | CM3: 5134946.65 | CN3: 4525902.6 | CO3: 4608920.25 | CP3: 5234755.55 | CQ3: 5185859.05 | CR3: 5873167.9 | CS3: 5851896.45 | CT3: 4265444.9 | CU3: 3444700.95 | CV3: 2645747.15 | CW3: 3011839.15 | CX3: 5028284.45 | CY3: 4039696.4 | CZ3: 3144197.9 | DA3: 3849954.8 | DB3: 5079079.05 | DC3: 4202395.3 | DD3: 5511071.6 | DE3: 5712952.3 | DF3: 5705385.55 | DG3: 6149072.6 | DH3: 6023820.8 | DI3: 5634146.95 | DJ3: 5838367.5 | DK3: 5209355.4 | DL3: 4185646.8 | DM3: 5023314.05 | DN3: 6007213.85 | DO3: 5011772.5 | DP3: 6048162.65 | DQ3: 5562864.65 | DR3: 5016268.85 | DS3: 5424417.35 | DT3: 6314390.65 | DU3: 5994101 | DV3: 6122655 | DW3: 5168588.05 | DX3: 4660624 | DY3: 5590786.1 | DZ3: 6207637.25 | EA3: 5949663.8 | EB3: 6341133.15 | EC3: 6263066.9 | ED3: 5911125.15 | EE3: 4092991.4 | EF3: 3670920.65 | EG3: 3247426.8 | EH3: 3226662.65 | EI3: 3615897.6 | EJ3: 4624071.8 | EK3: 5543388.7 | EL3: 6066640.15 | EM3: 5948463 | EN3: 6263980.8 | EO3: 6256617.35 | EP3: 6125617.1 | EQ3: 6636772.2 | ER3: 6611450.9 | ES3: 6084005.2 | ET3: 6515599.7 | EU3: 6142087.25 | EV3: 6114723.45 | EW3: 5758010.8 | EX3: 5982243.1 | EY3: 5835542.2 | EZ3: 6085684.8 | FA3: 5657238.6 | FB3: 5738395.2 | FC3: 4302925.25 | FD3: 4457789.5 | FE3: 4956737.1 | FF3: 4976611.1 | FG3: 4671549 | FH3: 4948365.7 | FI3: 5842588.35 | FJ3: 6317381.25 | FK3: 6313485.3 | FL3: 6232443.65 | FM3: 6140537.8 | FN3: 5295436.8 | FO3: 4725582.15 | FP3: 5373632.25 | FQ3: 5577681.8 | FR3: 6038348.2 | FS3: 4904938.35 | FT3: 5048162.25 | FU3: 5592564.5 | FV3: 6218687.65 | FW3: 6015627.05 | FX3: 5927285.6 | FY3: 5881265.7 | FZ3: 5668699.4 | GA3: 6267207.95 | GB3: 6470490.85 | GC3: 5784756.15 | GD3: 5860224.15 | GE3: 5231298.5 | GF3: 5392937.2 | GG3: 5470962.6 | GH3: 5945036.35 | GI3: 5470268.15 | GJ3: 5620263.65 | GK3: 5834474.4 | GL3: 6011800.45 | GM3: 6251872.1 | GN3: 6542259.55 | GO3: 5486600.55 | GP3: 4527375.1 | GQ3: 3321667.4 | GR3: 4826449.35 | GS3: 5284460.5 | GT3: 6184517.1 | GU3: 5022261.45 | GV3: 5138559.5 | GW3: 4567058.5 | GX3: 4045303.3 | GY3: 4073249.45 | GZ3: 5797536.5 | HA3: 4650576.8 | HB3: 4620453.25 | HC3: 5543168.3 | HD3: 5692213.8 | HE3: 5485027.35 | HF3: 5644402.2 | HG3: 5591926.1 | HH3: 5215674.8 | HI3: 5081386.6 | HJ3: 5211909 | HK3: 5767660.9 | HL3: 4731913.9 | HM3: 4367826.4 | HN3: 3478811.65 | HO3: 2951695.6 | HP3: 2065959.3 | HQ3: 1939663.45 | HR3: 3498246.75 | HS3: 2912686.7 | HT3: 3273449.2 | HU3: 3894582.95 | HV3: 3893433.45 | HW3: 4230790.8 | HX3: 4355904.85 | HY3: 2864643.3 | HZ3: 2816593.25 | IA3: 1696093.9 | IB3: 2119331.25 | IC3: 2331381.7 | ID3: 3052280.65 | IE3: 1705339.3 | IF3: 2554998.4 | IG3: 2901583.1 | IH3: 1897826.4 | II3: 1745457.8 | IJ3: 1611289.3 | IK3: 1298912.2 | IL3: 801986.9923 | IM3: 602013.1 | IN3: 782710.7 | IO3: 1256434.85 | IP3: 2327895.2 | IQ3: 2693947.3 | IR3: 2822569.7 | IS3: 1887779.2 | IT3: 1545869.45 | IU3: 1937885.05 | IV3: 1930446.182 | IW3: 2334533.661 | IX3: 2825741.768 | IY3: 2310798.537 | IZ3: 2801002.327 | JA3: 2584668.162 | JB3: 3971800.989 | JC3: 3860510.269 | JD3: 4429282.226 | JE3: 4064042.275 | JF3: 3682967.577 | JG3: 3596061.882 | JH3: 4895512.958 | JI3: 5018421.755 | JJ3: 4225145.71 | JK3: 2388185.873 | JL3: 3593360.258 | JM3: 4807638.918 | JN3: 4439297.185 | JO3: 4576247.455 | JP3: 3617568.727 | JQ3: 3852901.872 | JR3: 3717341.506 | JS3: 3410835.523 | JT3: 2731827.144 | JU3: 2293090.77 | JV3: 1174306.69 | JW3: 842291.5973 | JX3: 1796942.894 | JY3: 2336706.182 | JZ3: 4963609.44 | KA3: 4154418.799 | KB3: 4311581.968 | KC3: 3826429.238 | KD3: 2380385.7 | KE3: 4424762.023 | KF3: 2004566.685 | KG3: 697308.4854 | KH3: 1077287.819 | KI3: 1150974.072 | KJ3: 3014591.548 | KK3: 4756301.954 | KL3: 5108184.943 | KM3: 4799166.697 | KN3: 5399457.432 | KO3: 4169951.114 | KP3: 2986155.056 | KQ3: 3841419.026 | KR3: 4642330.943 | KS3: 2775094.708 | KT3: 2436958.356 | KU3: 2788405.461 | KV3: 2665594.904 | KW3: 5057884.12 | KX3: 5753749.299 | KY3: 4931991.64 | KZ3: 4358137.698 | LA3: 4086648.802 | LB3: 4335854.955 | LC3: 4384403.901 | LD3: 2451613.769 | LE3: 1691290.698 | LF3: 1579646.168 | LG3: 837682.9155 | LH3: 960080.9107 | LI3: 1928529.668 | LJ3: 3459520.435 | LK3: 3211023.444 | LL3: 4080868.212 | LM3: 4059462.183 | LN3: 4225938.196 | LO3: 4774707.691 | LP3: 4900336.061 | LQ3: 3147814.228 | LR3: 1677288.969 | LS3: 1781214.25 | LT3: 3348757.046 | LU3: 4061799.301 | LV3: 3829740.564 | LW3: 2814312.452 | LX3: 2680093.212 | LY3: 3706266.076 | LZ3: 4431643.357 | MA3: 3921528.612 | MB3: 2869067.326 | MC3: 3314251.602 | MD3: 1245148.029 | ME3: 1292559.699 | MF3: 2141603.119 | MG3: 2159968.354 | MH3: 3313215.19 | MI3: 3321096.393 | MJ3: 3899598.952 | MK3: 3196591.234 | ML3: 3681457.553 | MM3: 2703000.753 | MN3: 2921291.646 | MO3: 2134473.607 | MP3: 783436.5266 | MQ3: 686805.9589 | MR3: - | MS3: - | MT3: - | MU3: - | MV3: - | MW3: - | MX3: - | MY3: -
C4: Fuel + Gas | D4: 142952.6 | E4: 74642.4 | F4: 75971.7 | G4: 55854.4 | H4: 141473.5 | I4: 269414.6 | J4: 289627.8 | K4: 108264.8 | L4: 167238.4 | M4: 200820.2 | N4: 187207.3 | O4: 292694.5 | P4: 178656.1 | Q4: 231188.3 | R4: 90099.1 | S4: 127122.1 | T4: 140597.8 | U4: 194997.6 | V4: 481097.4 | W4: 125272.7 | X4: 456239 | Y4: 215697.3 | Z4: 260115.1 | AA4: 328097 | AB4: 909562.5 | AC4: 1251411 | AD4: 1003977.1 | AE4: 489240.5 | AF4: 430087.7 | AG4: 103371.1 | AH4: 291006.1 | AI4: 155060.5 | AJ4: 370638.8 | AK4: 130085.9 | AL4: 61273.1 | AM4: 28793.8 | AN4: 66685.5 | AO4: 237631.1 | AP4: 240685.2 | AQ4: 181615 | AR4: 69583.5 | AS4: 84320.6 | AT4: 27248.9 | AU4: 62019.3 | AV4: 129690.4 | AW4: 36881.6 | AX4: 55435.8 | AY4: 52206 | AZ4: 69918.8 | BA4: 63287.7 | BB4: 81125.8 | BC4: 85617.7 | BD4: 13349.7 | BE4: 68216.4 | BF4: 264371.8 | BG4: 38360 | BH4: 59292.8 | BI4: 83208.3 | BJ4: 45143 | BK4: 116637.5 | BL4: 106946.7 | BM4: 26268.2 | BN4: 100135 | BO4: 84483 | BP4: 75867.4 | BQ4: 201762.4 | BR4: 415620.1 | BS4: 162206.8 | BT4: 404844.3 | BU4: 461005.3 | BV4: 302600.2 | BW4: 221074.7 | BX4: 10577 | BY4: 130067 | BZ4: 179977 | CA4: 96644.8 | CB4: 21467.6 | CC4: 114079 | CD4: 186083.8 | CE4: 98410.2 | CF4: 162288 | CG4: 68224.1 | CH4: 170313.5 | CI4: 192199 | CJ4: 183021.3 | CK4: 267960.7 | CL4: 317214.1 | CM4: 347751.6 | CN4: 306291.3 | CO4: 345369.5 | CP4: 573630.4 | CQ4: 407618.4 | CR4: 515088 | CS4: 575850.8 | CT4: 379910.3 | CU4: 367072.3 | CV4: 48946.8 | CW4: 70653.1 | CX4: 107095.8 | CY4: 36737.4 | CZ4: 25408.6 | DA4: 140319.9 | DB4: 331778.3 | DC4: 354979.1 | DD4: 499698.5 | DE4: 272449.8 | DF4: 698054 | DG4: 1151095.4 | DH4: 1051720.6 | DI4: 1302912.8 | DJ4: 760255.3 | DK4: 372929.9 | DL4: 118050.8 | DM4: 372687 | DN4: 789593 | DO4: 480711.7 | DP4: 417699.1 | DQ4: 108381.7 | DR4: 289412.9 | DS4: 481109.3 | DT4: 779568.3 | DU4: 343884.8 | DV4: 793020.9 | DW4: 507250.1 | DX4: 121809.1 | DY4: 471891.7 | DZ4: 623287 | EA4: 515738.3 | EB4: 1015268.1 | EC4: 651822.5 | ED4: 528553.9 | EE4: 343614.6 | EF4: 351603 | EG4: 284811.8 | EH4: 290672.2 | EI4: 113994.3 | EJ4: 232499.4 | EK4: 803996.9 | EL4: 946186.5 | EM4: 841323 | EN4: 909393.8 | EO4: 897018.5 | EP4: 924321.3 | EQ4: 1509912.6 | ER4: 1864500.4 | ES4: 1133787.9 | ET4: 993610.1 | EU4: 972415.5 | EV4: 760711.7 | EW4: 1147862.1 | EX4: 1327839.8 | EY4: 622808.2 | EZ4: 845502 | FA4: 614959.1 | FB4: 334565.7 | FC4: 263414.9 | FD4: 406968.1 | FE4: 349374.9 | FF4: 144513.6 | FG4: 55095.6 | FH4: 165972.1 | FI4: 857097.5 | FJ4: 830762.1 | FK4: 747944.4 | FL4: 660427.6 | FM4: 453860.4 | FN4: 243287.1 | FO4: 286846 | FP4: 301989.8 | FQ4: 241434.2 | FR4: 425801.6 | FS4: 122150 | FT4: 218857.1 | FU4: 516281.5 | FV4: 763525 | FW4: 500242.4 | FX4: 662660.6 | FY4: 405224.4 | FZ4: 326395.3 | GA4: 478065.7 | GB4: 641419.8 | GC4: 766563 | GD4: 954534 | GE4: 260220.1 | GF4: 365239.7 | GG4: 812409.5 | GH4: 948006.5 | GI4: 285372.5 | GJ4: 360837.4 | GK4: 250505.5 | GL4: 294650.3 | GM4: 566264.3 | GN4: 532375.2 | GO4: 439266.1 | GP4: 204087.1 | GQ4: 197642.9 | GR4: 161469.7 | GS4: 365110.2 | GT4: 702835 | GU4: 237367.2 | GV4: 532417.9 | GW4: 238439.6 | GX4: 91816.2 | GY4: 74413.5 | GZ4: 71827 | HA4: 154305.9 | HB4: 133788.2 | HC4: 79220.4 | HD4: 116531.8 | HE4: 58517.2 | HF4: 191065.7 | HG4: 148862.7 | HH4: 163124.5 | HI4: 88992.4 | HJ4: 139311.2 | HK4: 117988.5 | HL4: 99499.4 | HM4: 86978.5 | HN4: 49388.5 | HO4: 96040 | HP4: 103436.9 | HQ4: 174198.5 | HR4: 108474.1 | HS4: 169763.3 | HT4: 132348.3 | HU4: 140046.2 | HV4: 159086.2 | HW4: 133166.6 | HX4: 90164.9 | HY4: 83446.3 | HZ4: 134093.4 | IA4: 96438.3 | IB4: 64038.8 | IC4: 102963.7 | ID4: 148625.4 | IE4: 120155 | IF4: 108162.6 | IG4: 73161.2 | IH4: 116114.6 | II4: 115348.8 | IJ4: 107246.3 | IK4: 88666.2 | IL4: 15762.6 | IM4: 73855.6 | IN4: 114708.3 | IO4: 115898.3 | IP4: 96944.4 | IQ4: 79206.4 | IR4: 96823.3 | IS4: 87432.1 | IT4: 116767.7 | IU4: 102904.9 | IV4: 0 | IW4: 0 | IX4: 0 | IY4: 0 | IZ4: 0 | JA4: 0 | JB4: 0 | JC4: 0 | JD4: 0 | JE4: 0 | JF4: 0 | JG4: 0 | JH4: 0 | JI4: 307.8061 | JJ4: 0 | JK4: 0 | JL4: 0 | JM4: 0 | JN4: 0 | JO4: 0 | JP4: 0 | JQ4: 0 | JR4: 0 | JS4: 0 | JT4: 0 | JU4: 0 | JV4: 0 | JW4: 0 | JX4: 0 | JY4: 0 | JZ4: 0 | KA4: 0 | KB4: 0 | KC4: 0 | KD4: 0 | KE4: 0 | KF4: 0 | KG4: 0 | KH4: 0 | KI4: 0 | KJ4: 0 | KK4: 0 | KL4: 0 | KM4: 0 | KN4: 0 | KO4: 0 | KP4: 0 | KQ4: 0 | KR4: 0 | KS4: 0 | KT4: 6.4925 | KU4: 0 | KV4: - | KW4: - | KX4: - | KY4: - | KZ4: - | LA4: - | LB4: - | LC4: - | LD4: - | LE4: - | LF4: - | LG4: - | LH4: - | LI4: - | LJ4: - | LK4: - | LL4: - | LM4: - | LN4: - | LO4: - | LP4: - | LQ4: - | LR4: - | LS4: - | LT4: - | LU4: - | LV4: - | LW4: - | LX4: - | LY4: - | LZ4: - | MA4: - | MB4: - | MC4: - | MD4: - | ME4: - | MF4: - | MG4: - | MH4: - | MI4: - | MJ4: - | MK4: - | ML4: - | MM4: - | MN4: - | MO4: - | MP4: - | MQ4: - | MR4: - | MS4: - | MT4: - | MU4: - | MV4: - | MW4: - | MX4: - | MY4: -
C5: Ciclo combinado | D5: - | E5: - | F5: - | G5: - | H5: - | I5: - | J5: - | K5: - | L5: - | M5: - | N5: - | O5: - | P5: - | Q5: - | R5: - | S5: - | T5: - | U5: - | V5: - | W5: - | X5: - | Y5: - | Z5: - | AA5: - | AB5: - | AC5: - | AD5: - | AE5: - | AF5: - | AG5: - | AH5: - | AI5: - | AJ5: - | AK5: - | AL5: - | AM5: - | AN5: 78.81 | AO5: - | AP5: - | AQ5: - | AR5: - | AS5: - | AT5: - | AU5: - | AV5: - | AW5: - | AX5: - | AY5: - | AZ5: - | BA5: - | BB5: - | BC5: - | BD5: - | BE5: - | BF5: - | BG5: - | BH5: - | BI5: - | BJ5: - | BK5: - | BL5: - | BM5: - | BN5: - | BO5: - | BP5: - | BQ5: - | BR5: - | BS5: - | BT5: - | BU5: - | BV5: - | BW5: - | BX5: - | BY5: - | BZ5: - | CA5: - | CB5: - | CC5: - | CD5: - | CE5: - | CF5: - | CG5: - | CH5: - | CI5: - | CJ5: - | CK5: - | CL5: - | CM5: - | CN5: - | CO5: - | CP5: - | CQ5: - | CR5: - | CS5: - | CT5: - | CU5: - | CV5: - | CW5: - | CX5: - | CY5: - | CZ5: - | DA5: - | DB5: - | DC5: - | DD5: - | DE5: - | DF5: - | DG5: - | DH5: - | DI5: - | DJ5: - | DK5: - | DL5: - | DM5: - | DN5: - | DO5: - | DP5: - | DQ5: - | DR5: - | DS5: - | DT5: - | DU5: - | DV5: - | DW5: - | DX5: - | DY5: - | DZ5: - | EA5: - | EB5: - | EC5: - | ED5: - | EE5: - | EF5: - | EG5: - | EH5: - | EI5: - | EJ5: - | EK5: - | EL5: - | EM5: - | EN5: - | EO5: - | EP5: - | EQ5: - | ER5: - | ES5: - | ET5: - | EU5: - | EV5: 44961.66 | EW5: 112852.59 | EX5: 192619.78 | EY5: 282381.04 | EZ5: 431388.18 | FA5: 425920.69 | FB5: 225822.84 | FC5: 191652.23 | FD5: 161627.84 | FE5: 312951.55 | FF5: 281932.97 | FG5: 143037.93 | FH5: 295783.92 | FI5: 659021.06 | FJ5: 713116.54 | FK5: 663737.82 | FL5: 749423.16 | FM5: 664434.9 | FN5: 447032.52 | FO5: 319551.61 | FP5: 570468.59 | FQ5: 718994.36 | FR5: 840977.07 | FS5: 674195.5 | FT5: 744226.88 | FU5: 857529.76 | FV5: 1007246.56 | FW5: 863370.21 | FX5: 1080968.69 | FY5: 1052799.11 | FZ5: 1022367.72 | GA5: 1042608.2 | GB5: 1238622.73 | GC5: 1242390.81 | GD5: 1238000.76 | GE5: 1197767.7 | GF5: 1297683.98 | GG5: 1718765.07 | GH5: 1919638.07 | GI5: 1637218.92 | GJ5: 1640370.58 | GK5: 1507615.32 | GL5: 1543172.69 | GM5: 1522065.3 | GN5: 2053369.76 | GO5: 2028644.14 | GP5: 1740901.43 | GQ5: 1720798.22 | GR5: 1823936.09 | GS5: 2023733.5 | GT5: 2465849.09 | GU5: 1786427.34 | GV5: 2340040.21 | GW5: 1868581.4 | GX5: 1574889.09 | GY5: 1558130.31 | GZ5: 2237260.13 | HA5: 1410818.51 | HB5: 1414714.61 | HC5: 1500241.96 | HD5: 1601821.39 | HE5: 2282501.14 | HF5: 2436020.43 | HG5: 1903841.29 | HH5: 2085915.33 | HI5: 2254083.29 | HJ5: 2815019.94 | HK5: 2689723.14 | HL5: 2959915.27 | HM5: 2958364.97 | HN5: 2506677.48 | HO5: 2552670.7 | HP5: 2662623.97 | HQ5: 2810621.38 | HR5: 3279506.47 | HS5: 3042621.37 | HT5: 2892481.29 | HU5: 2669348.35 | HV5: 2525681.79 | HW5: 2106757.8 | HX5: 2209001.75 | HY5: 1644350.67 | HZ5: 1862080.5 | IA5: 2010744.65 | IB5: 2073288.71 | IC5: 2819639.02 | ID5: 3144102.75 | IE5: 3025791.18 | IF5: 2732482.56 | IG5: 2425353.33 | IH5: 2043195.5 | II5: 2270304.46 | IJ5: 1963995.15 | IK5: 1760748.6 | IL5: 1512038.273 | IM5: 1613427.957 | IN5: 1684588.54 | IO5: 2025913.54 | IP5: 2509508.72 | IQ5: 2122575.3 | IR5: 2307035.1 | IS5: 1952766.76 | IT5: 2045764.78 | IU5: 1794965.17 | IV5: 1853857.028 | IW5: 1706209.697 | IX5: 1450617.222 | IY5: 1021970.787 | IZ5: 1527630.664 | JA5: 1784709.252 | JB5: 1661931.619 | JC5: 1725943.023 | JD5: 1647251.054 | JE5: 1365791.505 | JF5: 1231344.855 | JG5: 1224232.454 | JH5: 1552597.555 | JI5: 1423742.907 | JJ5: 1130101.435 | JK5: 816338.0019 | JL5: 879572.2251 | JM5: 1139135.769 | JN5: 1232990.752 | JO5: 1276043.8 | JP5: 1057101.87 | JQ5: 1186756.557 | JR5: 1083688.22 | JS5: 1029143.086 | JT5: 956927.8883 | JU5: 716934.1952 | JV5: 544503.8796 | JW5: 407138.6146 | JX5: 597513.8081 | JY5: 501576.1917 | JZ5: 814846.4975 | KA5: 869443.5768 | KB5: 820549.8255 | KC5: 932312.5819 | KD5: 745954.5273 | KE5: 1019124.616 | KF5: 566299.6535 | KG5: 463010.3125 | KH5: 468248.9557 | KI5: 449817.8604 | KJ5: 518249.602 | KK5: 648969.559 | KL5: 680292.525 | KM5: 814788.487 | KN5: 977671.1672 | KO5: 785283.7443 | KP5: 706401.1832 | KQ5: 735555.1415 | KR5: 813749.7364 | KS5: 623243.9514 | KT5: 595082.295 | KU5: 611712.5177 | KV5: 584298.6572 | KW5: 689315.177 | KX5: 1253847.703 | KY5: 859416.6664 | KZ5: 724383.8266 | LA5: 770096.8182 | LB5: 770472.813 | LC5: 967161.6946 | LD5: 688370.9193 | LE5: 479452.7299 | LF5: 489504.1192 | LG5: 427635.0125 | LH5: 548355.516 | LI5: 692533.6165 | LJ5: 873439.2731 | LK5: 740822.1455 | LL5: 786820.2799 | LM5: 1214503.926 | LN5: 1263543.925 | LO5: 1216353.053 | LP5: 1077270.284 | LQ5: 557130.7945 | LR5: 528519.5795 | LS5: 454454.4817 | LT5: 589598.9017 | LU5: 1172532.26 | LV5: 1382285.185 | LW5: 1278133.93 | LX5: 1183232.17 | LY5: 1424013.624 | LZ5: 1682180.077 | MA5: 1120401.599 | MB5: 834213.9765 | MC5: 721767.9544 | MD5: 461775.0201 | ME5: 444244.6459 | MF5: 728317.3728 | MG5: 806646.8812 | MH5: 824833.3732 | MI5: 985312.2722 | MJ5: 795004.0402 | MK5: 925673.1747 | ML5: 1169517.287 | MM5: 1071775.64 | MN5: 1183534.181 | MO5: 907743.4065 | MP5: 787845.5924 | MQ5: 1004270.718 | MR5: - | MS5: - | MT5: - | MU5: - | MV5: - | MW5: - | MX5: - | MY5: -
C6: Térmica renovable | D6: - | E6: - | F6: - | G6: - | H6: - | I6: - | J6: - | K6: - | L6: - | M6: - | N6: - | O6: - | P6: - | Q6: - | R6: - | S6: - | T6: - | U6: - | V6: - | W6: - | X6: - | Y6: 81.43 | Z6: 33.15 | AA6: 30.6 | AB6: 38.42 | AC6: 31.45 | AD6: 35.53 | AE6: 31.62 | AF6: 37.23 | AG6: 423.47 | AH6: 145.35 | AI6: 280.84 | AJ6: 373.15 | AK6: 541.62 | AL6: 484.84 | AM6: 389.81 | AN6: 466.99 | AO6: 729.47 | AP6: 943.5 | AQ6: 863.6 | AR6: 882.47 | AS6: 691.73 | AT6: 748.85 | AU6: 859.35 | AV6: 810.9 | AW6: 1019.83 | AX6: 1109.93 | AY6: 873.12 | AZ6: 1050.94 | BA6: 714.17 | BB6: 1323.96 | BC6: 2122.11 | BD6: 3813.78 | BE6: 2480.81 | BF6: 4402.15 | BG6: 5790.88 | BH6: 6113.71 | BI6: 6813.77 | BJ6: 9361.05 | BK6: 10829.17 | BL6: 8927.72 | BM6: 9208.73 | BN6: 10140.33 | BO6: 10076.75 | BP6: 10307.1 | BQ6: 6526.3 | BR6: 9535.3 | BS6: 9547.2 | BT6: 9430.07 | BU6: 11179.37 | BV6: 8672.89 | BW6: 10563.97 | BX6: 10534.9 | BY6: 9480.39 | BZ6: 12442.98 | CA6: 11796.3 | CB6: 11493.19 | CC6: 12661.77 | CD6: 12972.87 | CE6: 12935.13 | CF6: 12733.85 | CG6: 12023.76 | CH6: 9846.91 | CI6: 9641.55 | CJ6: 9600.58 | CK6: 7928.29 | CL6: 9376.52 | CM6: 9696.97 | CN6: 9746.78 | CO6: 5755.52 | CP6: 9690.51 | CQ6: 9056.24 | CR6: 9707.68 | CS6: 10381.22 | CT6: 9888.9 | CU6: 9394.54 | CV6: 4930.47617 | CW6: 9061.99331 | CX6: 10463.41687 | CY6: 10650.33051 | CZ6: 11879.29808 | DA6: 11657.6701 | DB6: 11969.17538 | DC6: 11448.76067 | DD6: 10265.48978 | DE6: 11429.95204 | DF6: 11731.72193 | DG6: 11798.59075 | DH6: 12207.12914 | DI6: 11515.91288 | DJ6: 12960.99873 | DK6: 11994.63016 | DL6: 12108.82001 | DM6: 10885.27374 | DN6: 13645.97531 | DO6: 13445.11946 | DP6: 14476.08157 | DQ6: 14361.74263 | DR6: 14061.28786 | DS6: 12740.15343 | DT6: 13209.87788 | DU6: 12256.06381 | DV6: 13868.379 | DW6: 12858.72265 | DX6: 9716.37397 | DY6: 11029.38206 | DZ6: 13610.59695 | EA6: 13297.38181 | EB6: 14658.38073 | EC6: 15629.05217 | ED6: 16483.14747 | EE6: 16771.40712 | EF6: 19385.4689 | EG6: 17554.15359 | EH6: 19615.3922 | EI6: 18152.69792 | EJ6: 19758.52795 | EK6: 27753.08361 | EL6: 27906.52578 | EM6: 24249.63997 | EN6: 29735.12789 | EO6: 31342.57547 | EP6: 29036.16371 | EQ6: 31048.57577 | ER6: 17395.53254 | ES6: 17675.39436 | ET6: 19539.42039 | EU6: 19278.85782 | EV6: 19859.57289 | EW6: 18109.61465 | EX6: 21407.68894 | EY6: 23506.84078 | EZ6: 21830.61358 | FA6: 22196.73204 | FB6: 21895.48439 | FC6: 24316.84624 | FD6: 21334.97773 | FE6: 21363.34206 | FF6: 24032.50237 | FG6: 23158.34588 | FH6: 25233.89033 | FI6: 23064.74218 | FJ6: 24794.6904 | FK6: 25896.03914 | FL6: 26339.51559 | FM6: 27552.47528 | FN6: 24558.8103 | FO6: 27967.7642 | FP6: 28182.88764 | FQ6: 24042.29879 | FR6: 27762.70034 | FS6: 26860.19023 | FT6: 26886.22896 | FU6: 24066.92363 | FV6: 24253.50543 | FW6: 23666.88592 | FX6: 25291.60295 | FY6: 25985.67793 | FZ6: 25113.56841 | GA6: 26963.44721 | GB6: 29725.2837 | GC6: 25640.72107 | GD6: 30048.53955 | GE6: 27138.06424 | GF6: 29259.94202 | GG6: 27631.96694 | GH6: 28478.38538 | GI6: 29410.57936 | GJ6: 27243.26602 | GK6: 26003.18708 | GL6: 28216.94442 | GM6: 29138.99212 | GN6: 29254.7424 | GO6: 27965.79543 | GP6: 30466.91516 | GQ6: 29266.73471 | GR6: 31393.36824 | GS6: 34199.58 | GT6: 33093.9 | GU6: 30723.25 | GV6: 30819.47 | GW6: 33542.87 | GX6: 29941.59 | GY6: 30374.92 | GZ6: 33220.89 | HA6: 29047.56 | HB6: 33483.54 | HC6: 31300.06 | HD6: 33509.38 | HE6: 32851.99 | HF6: 34518.84 | HG6: 34450.33 | HH6: 32516.41 | HI6: 38152.93 | HJ6: 34706.69 | HK6: 36107.83 | HL6: 37111.68 | HM6: 36668.66 | HN6: 38029 | HO6: 37652.11 | HP6: 37210.79 | HQ6: 37476.67 | HR6: 37995.68 | HS6: 37112.7 | HT6: 35964.35 | HU6: 39053.25 | HV6: 38361.52 | HW6: 38116.72 | HX6: 41426.62 | HY6: 39313.01 | HZ6: 42898.82 | IA6: 46800.49 | IB6: 42513.26 | IC6: 38951.42 | ID6: 40166.58 | IE6: 40096.03 | IF6: 44892.92 | IG6: 55307.63 | IH6: 42331.7 | II6: 42830.31 | IJ6: 42659.8 | IK6: 38492.08 | IL6: 41819.66 | IM6: 42969.37 | IN6: 46737.25 | IO6: 45723.37 | IP6: 45565.1 | IQ6: 47396.68 | IR6: 44699.29 | IS6: 47478.79 | IT6: 45750.57 | IU6: 49913.87 | IV6: - | IW6: - | IX6: - | IY6: - | IZ6: - | JA6: - | JB6: - | JC6: - | JD6: - | JE6: - | JF6: - | JG6: - | JH6: - | JI6: - | JJ6: - | JK6: - | JL6: - | JM6: - | JN6: - | JO6: - | JP6: - | JQ6: - | JR6: - | JS6: - | JT6: - | JU6: - | JV6: - | JW6: - | JX6: - | JY6: - | JZ6: - | KA6: - | KB6: - | KC6: - | KD6: - | KE6: - | KF6: - | KG6: - | KH6: - | KI6: - | KJ6: - | KK6: - | KL6: - | KM6: - | KN6: - | KO6: - | KP6: - | KQ6: - | KR6: - | KS6: - | KT6: - | KU6: - | KV6: - | KW6: - | KX6: - | KY6: - | KZ6: - | LA6: - | LB6: - | LC6: - | LD6: - | LE6: - | LF6: - | LG6: - | LH6: - | LI6: - | LJ6: - | LK6: - | LL6: - | LM6: - | LN6: - | LO6: - | LP6: - | LQ6: - | LR6: - | LS6: - | LT6: - | LU6: - | LV6: - | LW6: - | LX6: - | LY6: - | LZ6: - | MA6: - | MB6: - | MC6: - | MD6: - | ME6: - | MF6: - | MG6: - | MH6: - | MI6: - | MJ6: - | MK6: - | ML6: - | MM6: - | MN6: - | MO6: - | MP6: - | MQ6: - | MR6: - | MS6: - | MT6: - | MU6: - | MV6: - | MW6: - | MX6: - | MY6: -
C7: Térmica no renovable/Cogeneración y resto/Cogeneración | D7: 13203.45 | E7: 14189.87001 | F7: 16999.65 | G7: 10930.91 | H7: 14697.88001 | I7: 13524.98 | J7: 21928.42 | K7: 20133.92 | L7: 26102.76 | M7: 29387.62 | N7: 31875.5 | O7: 29322.13 | P7: 35515.93 | Q7: 34606.47 | R7: 42570.72 | S7: 42961.07 | T7: 41917.3 | U7: 36120.88 | V7: 44233.5 | W7: 40376.62 | X7: 49767.59 | Y7: 55767.14 | Z7: 51911.37 | AA7: 55565.49 | AB7: 58661.28 | AC7: 57960.13 | AD7: 56740.61 | AE7: 49460.49 | AF7: 55632.09 | AG7: 54403.69 | AH7: 54439.95 | AI7: 57571.26 | AJ7: 58880.32 | AK7: 62764.21 | AL7: 66424.99 | AM7: 71127.32 | AN7: 80006.21 | AO7: 76736.15 | AP7: 88421.12 | AQ7: 84511.33 | AR7: 85388.97 | AS7: 90066.14 | AT7: 101022.21 | AU7: 82204.75 | AV7: 107621.16 | AW7: 131909.07 | AX7: 145419.99 | AY7: 150469.38 | AZ7: 156884.44 | BA7: 147078.7 | BB7: 158667.1 | BC7: 158242.71 | BD7: 166041.94 | BE7: 162806.29 | BF7: 154694.04 | BG7: 155044.8 | BH7: 170174.47 | BI7: 171469.1 | BJ7: 175289.72 | BK7: 189043.397 | BL7: 180580.35 | BM7: 170919.28 | BN7: 199282.74 | BO7: 190281.38 | BP7: 196697.55 | BQ7: 193523.69 | BR7: 194219.29 | BS7: 188945.68 | BT7: 207142.28 | BU7: 223956.19 | BV7: 231381.72 | BW7: 243148.46 | BX7: 240246.18 | BY7: 249466.95 | BZ7: 256692.31 | CA7: 266867.31 | CB7: 261562.99 | CC7: 262069.89 | CD7: 282695.91 | CE7: 266800.71 | CF7: 276140.62 | CG7: 306339.28 | CH7: 322349.92 | CI7: 335741.33 | CJ7: 335749.1 | CK7: 305967.06 | CL7: 343748.13 | CM7: 337085.91 | CN7: 344965.43 | CO7: 333775.52 | CP7: 364092.95 | CQ7: 336851.33 | CR7: 350593.5 | CS7: 399050.18 | CT7: 388862.97 | CU7: 400425.84 | CV7: 419011.4824 | CW7: 390470.7273 | CX7: 436408.5102 | CY7: 421968.7707 | CZ7: 423051.2031 | DA7: 396614.8241 | DB7: 432722.9295 | DC7: 403487.5467 | DD7: 435289.7586 | DE7: 483565.6144 | DF7: 479340.355 | DG7: 520332.1566 | DH7: 510553.8444 | DI7: 487867.7609 | DJ7: 531341.0615 | DK7: 512348.9937 | DL7: 527372.9303 | DM7: 514644.1559 | DN7: 530892.4199 | DO7: 499617.7843 | DP7: 516490.7667 | DQ7: 568839.2232 | DR7: 558756.6777 | DS7: 582065.1078 | DT7: 580166.0425 | DU7: 532009.4983 | DV7: 575570.7024 | DW7: 543749.6953 | DX7: 543540.03 | DY7: 527901.4982 | DZ7: 532772.7358 | EA7: 498888.1377 | EB7: 509388.6526 | EC7: 537135.949 | ED7: 500168.2096 | EE7: 549144.1299 | EF7: 558693.4014 | EG7: 525760.0192 | EH7: 547722.806 | EI7: 515031.6114 | EJ7: 547193.6412 | EK7: 524696.1853 | EL7: 548167.4864 | EM7: 486561.0278 | EN7: 531347.7496 | EO7: 575218.5198 | EP7: 587425.9042 | EQ7: 585156.2754 | ER7: 648960.2579 | ES7: 601021.9191 | ET7: 648342.7842 | EU7: 648065.8088 | EV7: 646583.426 | EW7: 594694.3311 | EX7: 640753.8566 | EY7: 586908.6894 | EZ7: 620011.3399 | FA7: 704452.1453 | FB7: 683375.9012 | FC7: 684540.868 | FD7: 721461.6684 | FE7: 664318.067 | FF7: 709337.7063 | FG7: 689512.2775 | FH7: 700222.3597 | FI7: 668145.7669 | FJ7: 708104.4586 | FK7: 645635.8978 | FL7: 704448.0124 | FM7: 768077.3401 | FN7: 724717.7298 | FO7: 748797.0978 | FP7: 757362.6337 | FQ7: 725982.4323 | FR7: 779832.865 | FS7: 732541.8312 | FT7: 715761.7854 | FU7: 672658.732 | FV7: 710895.9891 | FW7: 654703.7897 | FX7: 675870.5647 | FY7: 733318.51 | FZ7: 767465.823 | GA7: 779225.5988 | GB7: 755918.6928 | GC7: 722165.3914 | GD7: 775450.1932 | GE7: 754799.5634 | GF7: 754909.9366 | GG7: 710245.158 | GH7: 716223.4903 | GI7: 660880.0873 | GJ7: 709360.2426 | GK7: 680141.1884 | GL7: 690879.7624 | GM7: 676596.6564 | GN7: 739287.3193 | GO7: 717940.0698 | GP7: 762367.2182 | GQ7: 706960.7131 | GR7: 705751.4647 | GS7: 646470.66 | GT7: 640602.09 | GU7: 605263.39 | GV7: 639416.61 | GW7: 684643.93 | GX7: 696944.58 | GY7: 712359.52 | GZ7: 734289.79 | HA7: 650101.1 | HB7: 690378.56 | HC7: 677677.94 | HD7: 677059.3 | HE7: 700758.17 | HF7: 736428.39 | HG7: 691374.23 | HH7: 723769.95 | HI7: 778022.31 | HJ7: 777024.42 | HK7: 794385.93 | HL7: 833209.29 | HM7: 823937.83 | HN7: 840634.82 | HO7: 824856.54 | HP7: 779465.31 | HQ7: 769160.44 | HR7: 820651.49 | HS7: 746163.83 | HT7: 805823 | HU7: 872814.09 | HV7: 856282.12 | HW7: 860112.36 | HX7: 896126.31 | HY7: 829690.22 | HZ7: 890459.02 | IA7: 865195.79 | IB7: 869916.62 | IC7: 854601.21 | ID7: 886739.78 | IE7: 752725.04 | IF7: 864801 | IG7: 911835.4 | IH7: 951366.2 | II7: 958938.99 | IJ7: 984649.18 | IK7: 916497.77 | IL7: 968207.49 | IM7: 943630.98 | IN7: 955102.09 | IO7: 940459.71 | IP7: 967059.01 | IQ7: 796760.96 | IR7: 933792.68 | IS7: 979433.29 | IT7: 984082.34 | IU7: 1022273.74 | IV7: 976032.1734 | IW7: 913369.8044 | IX7: 1023245.419 | IY7: 945412.7013 | IZ7: 962834.0507 | JA7: 920199.1682 | JB7: 924432.2124 | JC7: 768616.7572 | JD7: 927237.7659 | JE7: 969269.2786 | JF7: 973063.0503 | JG7: 1001678.572 | JH7: 1044956.936 | JI7: 994887.951 | JJ7: 1056911.694 | JK7: 1002833.198 | JL7: 1012725.724 | JM7: 965175.9805 | JN7: 1001715.82 | JO7: 841445.9518 | JP7: 980061.1256 | JQ7: 1038017.741 | JR7: 1016922.151 | JS7: 1038927.448 | JT7: 1072861.659 | JU7: 958856.1751 | JV7: 1037345.377 | JW7: 1014968.188 | JX7: 1018643.143 | JY7: 954925.7199 | JZ7: 951539.838 | KA7: 736458.1254 | KB7: 888447.0014 | KC7: 915027.1473 | KD7: 915039.4672 | KE7: 935567.3524 | KF7: 942899.1718 | KG7: 693517.8143 | KH7: 676866.4908 | KI7: 598624.7938 | KJ7: 714029.7485 | KK7: 767248.65 | KL7: 783186.4037 | KM7: 733789.2932 | KN7: 781039.5009 | KO7: 786397.5974 | KP7: 714884.9901 | KQ7: 734883.4258 | KR7: 799573.2837 | KS7: 711334.462 | KT7: 768837.3079 | KU7: 744405.0147 | KV7: 767475.7638 | KW7: 763140.2862 | KX7: 798351.9075 | KY7: 753526.7164 | KZ7: 795021.0302 | LA7: 818150.4609 | LB7: 786901.0923 | LC7: 805934.0488 | LD7: 787238.2874 | LE7: 727998.8994 | LF7: 765700.4956 | LG7: 737220.5663 | LH7: 782034.4934 | LI7: 802060.305 | LJ7: 828719.5454 | LK7: 784621.5086 | LL7: 790013.7713 | LM7: 857899.2139 | LN7: 849495.2496 | LO7: 860356.2936 | LP7: 906351.3976 | LQ7: 816389.6361 | LR7: 884660.6194 | LS7: 826386.4826 | LT7: 861073.7606 | LU7: 856683.3883 | LV7: 887287.6642 | LW7: 835333.4981 | LX7: 840844.9719 | LY7: 885397.1617 | LZ7: 903382.1684 | MA7: 921167.3646 | MB7: 917825.3777 | MC7: 833065.8262 | MD7: 864190.9329 | ME7: 870829.6986 | MF7: 894773.1171 | MG7: 891043.2481 | MH7: 903304.9701 | MI7: 873678.5051 | MJ7: 891003.5812 | MK7: 932404.5876 | ML7: 914678.2946 | MM7: 936086.9445 | MN7: 982862.1732 | MO7: 884337.4773 | MP7: 957916.0392 | MQ7: 920694.4817 | MR7: - | MS7: - | MT7: - | MU7: - | MV7: - | MW7: - | MX7: - | MY7: -
C8: Residuos no renovables | D8: - | E8: - | F8: - | G8: - | H8: - | I8: - | J8: - | K8: - | L8: - | M8: - | N8: - | O8: - | P8: - | Q8: - | R8: - | S8: - | T8: - | U8: - | V8: - | W8: - | X8: - | Y8: - | Z8: - | AA8: - | AB8: - | AC8: - | AD8: - | AE8: - | AF8: - | AG8: - | AH8: - | AI8: - | AJ8: - | AK8: - | AL8: - | AM8: - | AN8: - | AO8: - | AP8: - | AQ8: - | AR8: - | AS8: - | AT8: - | AU8: - | AV8: - | AW8: - | AX8: - | AY8: - | AZ8: - | BA8: - | BB8: - | BC8: - | BD8: - | BE8: - | BF8: - | BG8: - | BH8: - | BI8: - | BJ8: - | BK8: - | BL8: - | BM8: - | BN8: - | BO8: - | BP8: - | BQ8: - | BR8: - | BS8: - | BT8: - | BU8: - | BV8: - | BW8: - | BX8: - | BY8: - | BZ8: - | CA8: - | CB8: - | CC8: - | CD8: - | CE8: - | CF8: - | CG8: - | CH8: - | CI8: - | CJ8: - | CK8: - | CL8: - | CM8: - | CN8: - | CO8: - | CP8: - | CQ8: - | CR8: - | CS8: - | CT8: - | CU8: - | CV8: - | CW8: - | CX8: - | CY8: - | CZ8: - | DA8: - | DB8: - | DC8: - | DD8: - | DE8: - | DF8: - | DG8: - | DH8: - | DI8: - | DJ8: - | DK8: - | DL8: - | DM8: - | DN8: - | DO8: - | DP8: - | DQ8: - | DR8: - | DS8: - | DT8: - | DU8: - | DV8: - | DW8: - | DX8: - | DY8: - | DZ8: - | EA8: - | EB8: - | EC8: - | ED8: - | EE8: - | EF8: - | EG8: - | EH8: - | EI8: - | EJ8: - | EK8: - | EL8: - | EM8: - | EN8: - | EO8: - | EP8: - | EQ8: - | ER8: - | ES8: - | ET8: - | EU8: - | EV8: - | EW8: - | EX8: - | EY8: - | EZ8: - | FA8: - | FB8: - | FC8: - | FD8: - | FE8: - | FF8: - | FG8: - | FH8: - | FI8: - | FJ8: - | FK8: - | FL8: - | FM8: - | FN8: - | FO8: - | FP8: - | FQ8: - | FR8: - | FS8: - | FT8: - | FU8: - | FV8: - | FW8: - | FX8: - | FY8: - | FZ8: - | GA8: - | GB8: - | GC8: - | GD8: - | GE8: - | GF8: - | GG8: - | GH8: - | GI8: - | GJ8: - | GK8: - | GL8: - | GM8: - | GN8: - | GO8: - | GP8: - | GQ8: - | GR8: - | GS8: - | GT8: - | GU8: - | GV8: - | GW8: - | GX8: - | GY8: - | GZ8: - | HA8: - | HB8: - | HC8: - | HD8: - | HE8: - | HF8: - | HG8: - | HH8: - | HI8: - | HJ8: - | HK8: - | HL8: - | HM8: - | HN8: - | HO8: - | HP8: - | HQ8: - | HR8: - | HS8: - | HT8: - | HU8: - | HV8: - | HW8: - | HX8: - | HY8: - | HZ8: - | IA8: - | IB8: - | IC8: - | ID8: - | IE8: - | IF8: - | IG8: - | IH8: - | II8: - | IJ8: - | IK8: - | IL8: - | IM8: - | IN8: - | IO8: - | IP8: - | IQ8: - | IR8: - | IS8: - | IT8: - | IU8: - | IV8: 25517.46084 | IW8: 22838.8998 | IX8: 19799.03532 | IY8: 24707.60628 | IZ8: 16839.21684 | JA8: 21296.7642 | JB8: 18230.3814 | JC8: 20238.27408 | JD8: 23227.04616 | JE8: 29658.10464 | JF8: 27865.74756 | JG8: 28311.26352 | JH8: 29800.53036 | JI8: 27083.13696 | JJ8: 26467.53096 | JK8: 30819.60768 | JL8: 28768.66428 | JM8: 25004.9898 | JN8: 27264.15504 | JO8: 30597.51288 | JP8: 31452.97716 | JQ8: 34274.11188 | JR8: 29151.1644 | JS8: 31028.86956 | JT8: 33648.98688 | JU8: 32878.77864 | JV8: 33489.87264 | JW8: 19135.18824 | JX8: 26738.66076 | JY8: 24057.8364 | JZ8: 26520.94428 | KA8: 28666.3644 | KB8: 32185.20588 | KC8: 34279.857 | KD8: 32620.728 | KE8: 35813.70528 | KF8: 32362.0626 | KG8: 27751.32708 | KH8: 24544.14348 | KI8: 30226.15644 | KJ8: 37541.23368 | KK8: 36457.43772 | KL8: 37515.29328 | KM8: 40745.83968 | KN8: 42324.61272 | KO8: 42190.93344 | KP8: 40716.51156 | KQ8: 47626.902 | KR8: 45149.98524 | KS8: 40877.01984 | KT8: 46996.61268 | KU8: 36962.68728 | KV8: 46247.48568 | KW8: 47112.318 | KX8: 50447.154 | KY8: 51307.43868 | KZ8: 48579.89664 | LA8: 51717.41736 | LB8: 48788.81016 | LC8: 43744.71228 | LD8: 48206.32464 | LE8: 45025.48428 | LF8: 50180.76564 | LG8: 43059.4854 | LH8: 32879.28852 | LI8: 46941.84912 | LJ8: 58306.6674 | LK8: 58357.13508 | LL8: 56878.36992 | LM8: 55209.08916 | LN8: 49277.31492 | LO8: 48792.30084 | LP8: 52045.66392 | LQ8: 45812.6694 | LR8: 50191.24716 | LS8: 41440.26372 | LT8: 42140.0448 | LU8: 50726.79816 | LV8: 48150.74784 | LW8: 51656.35056 | LX8: 51195.71616 | LY8: 54818.9268 | LZ8: 49566.06264 | MA8: 52446.43548 | MB8: 54377.175 | MC8: 49010.42112 | MD8: 51694.91484 | ME8: 40231.482 | MF8: 32886.55944 | MG8: 42099.0708 | MH8: 47898.10368 | MI8: 46717.26564 | MJ8: 45364.9428 | MK8: 48394.00224 | ML8: 46067.772 | MM8: 45782.5956 | MN8: 47182.81296 | MO8: 43379.81856 | MP8: 48186.9282 | MQ8: 42082.22736 | MR8: - | MS8: - | MT8: - | MU8: - | MV8: - | MW8: - | MX8: - | MY8: -
MR9: - | MS9: - | MT9: - | MU9: - | MV9: - | MW9: - | MX9: - | MY9: -
C10: Emisiones (tCO2) | D10: 3533133.4 | E10: 2757315.77 | F10: 4513035.4 | G10: 3996501.16 | H10: 4513926.83 | I10: 5338299.98 | J10: 5299726.92 | K10: 3878907.52 | L10: 5311848.06 | M10: 5465628.37 | N10: 4888392.65 | O10: 5323610.83 | P10: 5177238.03 | Q10: 5297588.52 | R10: 3452946.42 | S10: 3477839.72 | T10: 3670742.2 | U10: 4274976.83 | V10: 5256495.25 | W10: 4048034.27 | X10: 5453674.04 | Y10: 5271630.52 | Z10: 5380908.12 | AA10: 5612656.49 | AB10: 6616002.7 | AC10: 6760821.78 | AD10: 6859175.14 | AE10: 5479976.16 | AF10: 4948340.22 | AG10: 4230487.26 | AH10: 5110763.85 | AI10: 4083540.35 | AJ10: 5483202.57 | AK10: 4587803.88 | AL10: 4787836.98 | AM10: 3818037.13 | AN10: 5226777.31 | AO10: 5552475.22 | AP10: 5661639.82 | AQ10: 5178770.18 | AR10: 4694462.84 | AS10: 4177225.17 | AT10: 4601425.21 | AU10: 4328897.65 | AV10: 5147671.16 | AW10: 4001877.75 | AX10: 4316492.67 | AY10: 4548686.05 | AZ10: 4007438.68 | BA10: 4556975.27 | BB10: 4774546.31 | BC10: 4439362.32 | BD10: 3933408.32 | BE10: 4954923.7 | BF10: 5612198.89 | BG10: 4613345.03 | BH10: 4972879.48 | BI10: 5294404.02 | BJ10: 4970106.62 | BK10: 5195167.617 | BL10: 5009920.62 | BM10: 4088763.11 | BN10: 4625765.27 | BO10: 4811517.98 | BP10: 4890339.75 | BQ10: 5140818.04 | BR10: 6141839.64 | BS10: 5790223.28 | BT10: 6279078.95 | BU10: 5876307.51 | BV10: 5888696.21 | BW10: 4726714.48 | BX10: 2503838.78 | BY10: 2792890.54 | BZ10: 4160206.54 | CA10: 2813182.26 | CB10: 2639138.98 | CC10: 4951619.81 | CD10: 6253842.38 | CE10: 5810930.04 | CF10: 5660269.92 | CG10: 5422226.49 | CH10: 5476516.53 | CI10: 3406441.28 | CJ10: 3729837.73 | CK10: 3850240.8 | CL10: 5668708.65 | CM10: 5829481.13 | CN10: 5186906.11 | CO10: 5293820.79 | CP10: 6182169.41 | CQ10: 5939385.02 | CR10: 6748557.08 | CS10: 6837178.65 | CT10: 5044107.07 | CU10: 4221593.63 | CV10: 3118635.909 | CW10: 3482024.971 | CX10: 5582252.177 | CY10: 4509052.901 | CZ10: 3604537.001 | DA10: 4398547.194 | DB10: 5855549.455 | DC10: 4972310.707 | DD10: 6456325.348 | DE10: 6480397.666 | DF10: 6894511.627 | DG10: 7832298.747 | DH10: 7598302.373 | DI10: 7436443.424 | DJ10: 7142924.86 | DK10: 6106628.924 | DL10: 4843179.35 | DM10: 5921530.48 | DN10: 7341345.245 | DO10: 6005547.104 | DP10: 6996828.598 | DQ10: 6254447.316 | DR10: 5878499.716 | DS10: 6500331.911 | DT10: 7687334.87 | DU10: 6882251.362 | DV10: 7505114.981 | DW10: 6232446.568 | DX10: 5335689.504 | DY10: 6601608.68 | DZ10: 7377307.583 | EA10: 6977587.619 | EB10: 7880448.283 | EC10: 7467654.401 | ED10: 6956330.407 | EE10: 5002521.537 | EF10: 4600602.52 | EG10: 4075552.773 | EH10: 4084673.048 | EI10: 4263076.209 | EJ10: 5423523.369 | EK10: 6899834.869 | EL10: 7588900.662 | EM10: 7300596.668 | EN10: 7734457.478 | EO10: 7760196.945 | EP10: 7666400.468 | EQ10: 8762889.651 | ER10: 9142307.09 | ES10: 7836490.413 | ET10: 8177092.005 | EU10: 7781847.417 | EV10: 7586839.809 | EW10: 7631529.436 | EX10: 8164864.226 | EY10: 7351146.97 | EZ10: 8004416.933 | FA10: 7424767.267 | FB10: 7004055.126 | FC10: 5466850.094 | FD10: 5769182.086 | FE10: 6304744.959 | FF10: 6136427.879 | FG10: 5582353.153 | FH10: 6135577.97 | FI10: 8049917.419 | FJ10: 8594159.039 | FK10: 8396699.457 | FL10: 8373081.938 | FM10: 8054462.915 | FN10: 6735032.96 | FO10: 6108744.622 | FP10: 7031636.161 | FQ10: 7288135.091 | FR10: 8112722.435 | FS10: 6460685.871 | FT10: 6753894.244 | FU10: 7663101.416 | FV10: 8724608.704 | FW10: 8057610.336 | FX10: 8372077.058 | FY10: 8098593.398 | FZ10: 7810041.811 | GA10: 8594070.896 | GB10: 9136177.356 | GC10: 8541516.072 | GD10: 8858257.643 | GE10: 7471223.928 | GF10: 7840030.759 | GG10: 8740014.295 | GH10: 9557382.796 | GI10: 8083150.237 | GJ10: 8358075.139 | GK10: 8298739.595 | GL10: 8568720.147 | GM10: 9045937.349 | GN10: 9896546.572 | GO10: 8700416.655 | GP10: 7265197.763 | GQ10: 5976335.968 | GR10: 7548999.973 | GS10: 8353974.44 | GT10: 10026897.18 | GU10: 7682042.63 | GV10: 8681253.69 | GW10: 7392266.3 | GX10: 6438894.76 | GY10: 6448527.7 | GZ10: 8874134.31 | HA10: 6894849.87 | HB10: 6892818.16 | HC10: 7831608.66 | HD10: 8121135.67 | HE10: 8559655.85 | HF10: 9042435.56 | HG10: 8370454.65 | HH10: 8221000.99 | HI10: 8240637.53 | HJ10: 8977971.25 | HK10: 9405866.3 | HL10: 8661649.54 | HM10: 8273776.36 | HN10: 6913541.45 | HO10: 6462914.95 | HP10: 5648696.27 | HQ10: 5731120.44 | HR10: 7744874.49 | HS10: 6908347.9 | HT10: 7140066.14 | HU10: 7615844.84 | HV10: 7472845.08 | HW10: 7368944.28 | HX10: 7592624.43 | HY10: 5461443.5 | HZ10: 5746124.99 | IA10: 4715273.13 | IB10: 5169088.64 | IC10: 6147537.05 | ID10: 7271915.16 | IE10: 5644106.55 | IF10: 6305337.48 | IG10: 6367240.66 | IH10: 5050834.4 | II10: 5132880.36 | IJ10: 4709839.73 | IK10: 4103316.85 | IL10: 3339815.016 | IM10: 3275897.007 | IN10: 3583846.88 | IO10: 4384429.77 | IP10: 5946972.43 | IQ10: 5739886.64 | IR10: 6204920.07 | IS10: 4954890.14 | IT10: 4738234.84 | IU10: 4907942.73 | IV10: 4785852.845 | IW10: 4976952.063 | IX10: 5319403.444 | IY10: 4302889.632 | IZ10: 5308306.258 | JA10: 5310873.346 | JB10: 6576395.201 | JC10: 6375308.324 | JD10: 7026998.092 | JE10: 6428761.163 | JF10: 5915241.23 | JG10: 5850284.171 | JH10: 7522867.979 | JI10: 7464443.556 | JJ10: 6438626.37 | JK10: 4238176.68 | JL10: 5514426.871 | JM10: 6936955.657 | JN10: 6701267.912 | JO10: 6724334.72 | JP10: 5686184.699 | JQ10: 6111950.282 | JR10: 5847103.041 | JS10: 5509934.927 | JT10: 4795265.678 | JU10: 4001759.919 | JV10: 2789645.819 | JW10: 2283533.588 | JX10: 3439838.507 | JY10: 3817265.93 | JZ10: 6756516.72 | KA10: 5788986.866 | KB10: 6052764.001 | KC10: 5708048.825 | KD10: 4074000.423 | KE10: 6415267.697 | KF10: 3546127.573 | KG10: 1881587.939 | KH10: 2246947.409 | KI10: 2229642.883 | KJ10: 4284412.132 | KK10: 6208977.601 | KL10: 6609179.165 | KM10: 6388490.317 | KN10: 7200492.713 | KO10: 5783823.389 | KP10: 4448157.741 | KQ10: 5359484.496 | KR10: 6300803.949 | KS10: 4150550.141 | KT10: 3847881.064 | KU10: 4181485.681 | KV10: 4063616.811 | KW10: 6557451.901 | KX10: 7856396.064 | KY10: 6596242.461 | KZ10: 5926122.451 | LA10: 5726613.498 | LB10: 5942017.67 | LC10: 6201244.357 | LD10: 3975429.301 | LE10: 2943767.812 | LF10: 2885031.548 | LG10: 2045597.98 | LH10: 2323350.209 | LI10: 3470065.438 | LJ10: 5219985.921 | LK10: 4794824.233 | LL10: 5714580.634 | LM10: 6187074.411 | LN10: 6388254.685 | LO10: 6900209.339 | LP10: 6936003.407 | LQ10: 4567147.328 | LR10: 3140660.415 | LS10: 3103495.478 | LT10: 4841569.753 | LU10: 6141741.748 | LV10: 6147464.161 | LW10: 4979436.231 | LX10: 4755366.07 | LY10: 6070495.789 | LZ10: 7066771.665 | MA10: 6015544.012 | MB10: 4675483.855 | MC10: 4918095.804 | MD10: 2622808.897 | ME10: 2647865.526 | MF10: 3797580.169 | MG10: 3899757.554 | MH10: 5089251.637 | MI10: 5226804.436 | MJ10: 5630971.516 | MK10: 5103062.999 | ML10: 5811720.907 | MM10: 4756645.933 | MN10: 5134870.814 | MO10: 3969934.309 | MP10: 2577385.086 | MQ10: 2653853.386 | MR10: - | MS10: - | MT10: - | MU10: - | MV10: - | MW10: - | MX10: - | MY10: -
C11: Factor de emision de CO2 (tCO2/MWh) | D11: 0.2703621913 | E11: 0.2573942688 | F11: 0.3915210208 | G11: 0.3778217657 | H11: 0.4264473469 | I11: 0.4886708944 | J11: 0.4578127499 | K11: 0.3800748174 | L11: 0.4853135958 | M11: 0.4916152909 | N11: 0.4147544555 | O11: 0.4097264999 | P11: 0.383082008 | Q11: 0.430694612 | R11: 0.2937259171 | S11: 0.3081141244 | T11: 0.3208882594 | U11: 0.3884333313 | V11: 0.4385613681 | W11: 0.3854016159 | X11: 0.4750847032 | Y11: 0.4469768756 | Z11: 0.4414449945 | AA11: 0.4444294912 | AB11: 0.4673414035 | AC11: 0.5207002706 | AD11: 0.5421999381 | AE11: 0.4854291483 | AF11: 0.4438611417 | AG11: 0.3976144434 | AH11: 0.4190187253 | AI11: 0.3804752442 | AJ11: 0.4784663682 | AK11: 0.3863842965 | AL11: 0.4093407577 | AM11: 0.3088453092 | AN11: 0.3977637911 | AO11: 0.470000838 | AP11: 0.4541734044 | AQ11: 0.4691327209 | AR11: 0.4249020975 | AS11: 0.3772426799 | AT11: 0.3918229408 | AU11: 0.3958837044 | AV11: 0.4520711336 | AW11: 0.3351745955 | AX11: 0.348583747 | AY11: 0.3537473168 | AZ11: 0.2975879951 | BA11: 0.371529066 | BB11: 0.3957037089 | BC11: 0.383108885 | BD11: 0.3368842818 | BE11: 0.4148087497 | BF11: 0.4389650155 | BG11: 0.3999515057 | BH11: 0.4207262115 | BI11: 0.4539244034 | BJ11: 0.4150522804 | BK11: 0.4012746774 | BL11: 0.3622010155 | BM11: 0.3446363678 | BN11: 0.3540298439 | BO11: 0.414519061 | BP11: 0.4024221787 | BQ11: 0.4212327882 | BR11: 0.4779121061 | BS11: 0.4884161915 | BT11: 0.5223210586 | BU11: 0.4853684283 | BV11: 0.4749665603 | BW11: 0.3536053224 | BX11: 0.1711105854 | BY11: 0.2002747119 | BZ11: 0.3088155056 | CA11: 0.2386114325 | CB11: 0.2135360295 | CC11: 0.3941915185 | CD11: 0.4720382293 | CE11: 0.4860872508 | CF11: 0.4610440749 | CG11: 0.4156417414 | CH11: 0.4103020553 | CI11: 0.2426613899 | CJ11: 0.2402016784 | CK11: 0.302055836 | CL11: 0.4302143844 | CM11: 0.4360224874 | CN11: 0.3815291608 | CO11: 0.3948512157 | CP11: 0.4304445168 | CQ11: 0.4366027597 | CR11: 0.484282469 | CS11: 0.4923783558 | CT11: 0.3569905872 | CU11: 0.2731384605 | CV11: 0.2063972011 | CW11: 0.2581155307 | CX11: 0.3962580349 | CY11: 0.3330590916 | CZ11: 0.2661951245 | DA11: 0.3148158016 | DB11: 0.3851664927 | DC11: 0.3599716752 | DD11: 0.4488664814 | DE11: 0.4541339326 | DF11: 0.4712192859 | DG11: 0.4835254642 | DH11: 0.4634926738 | DI11: 0.4976342652 | DJ11: 0.4708092157 | DK11: 0.451206578 | DL11: 0.340385058 | DM11: 0.4037598931 | DN11: 0.4599865454 | DO11: 0.4170309148 | DP11: 0.4627719454 | DQ11: 0.4169593462 | DR11: 0.3686418044 | DS11: 0.3847312982 | DT11: 0.4266609147 | DU11: 0.4415911691 | DV11: 0.4603137704 | DW11: 0.410184089 | DX11: 0.3442681504 | DY11: 0.406301248 | DZ11: 0.4434090733 | EA11: 0.4452079868 | EB11: 0.4951573963 | EC11: 0.4702470826 | ED11: 0.4126908149 | EE11: 0.2834706757 | EF11: 0.2438474103 | EG11: 0.2429190229 | EH11: 0.2306331835 | EI11: 0.2789193361 | EJ11: 0.3321845725 | EK11: 0.4097427561 | EL11: 0.433298588 | EM11: 0.4356621471 | EN11: 0.4665903024 | EO11: 0.4577134494 | EP11: 0.4321603681 | EQ11: 0.4626404134 | ER11: 0.4697436371 | ES11: 0.4649578033 | ET11: 0.4704598064 | EU11: 0.4643934147 | EV11: 0.4336944925 | EW11: 0.4283590885 | EX11: 0.4392430061 | EY11: 0.4345672746 | EZ11: 0.4671268946 | FA11: 0.4146096877 | FB11: 0.390603436 | FC11: 0.2885486888 | FD11: 0.277891957 | FE11: 0.3301077262 | FF11: 0.329227869 | FG11: 0.3233691212 | FH11: 0.3429838444 | FI11: 0.4255303838 | FJ11: 0.4246691464 | FK11: 0.4405697262 | FL11: 0.4535296174 | FM11: 0.4225329259 | FN11: 0.3502526076 | FO11: 0.2960157886 | FP11: 0.333969112 | FQ11: 0.3633983786 | FR11: 0.3833971871 | FS11: 0.3362898648 | FT11: 0.351470822 | FU11: 0.3806804575 | FV11: 0.4095963698 | FW11: 0.4064288643 | FX11: 0.4241313231 | FY11: 0.4074354386 | FZ11: 0.3788369802 | GA11: 0.4011418069 | GB11: 0.4026071372 | GC11: 0.4045168687 | GD11: 0.4125836324 | GE11: 0.3844799463 | GF11: 0.3985637911 | GG11: 0.4170044944 | GH11: 0.4305003665 | GI11: 0.4007732026 | GJ11: 0.4074960034 | GK11: 0.4072556295 | GL11: 0.3929567301 | GM11: 0.3852415827 | GN11: 0.4056041501 | GO11: 0.3890060466 | GP11: 0.3139422592 | GQ11: 0.3154422284 | GR11: 0.3652660209 | GS11: 0.3888730774 | GT11: 0.4190228714 | GU11: 0.3668572192 | GV11: 0.4012319596 | GW11: 0.3482544516 | GX11: 0.3007237459 | GY11: 0.274927621 | GZ11: 0.3631531096 | HA11: 0.3160661731 | HB11: 0.2971918258 | HC11: 0.3762412286 | HD11: 0.3732824363 | HE11: 0.3951886183 | HF11: 0.3851932885 | HG11: 0.3840043862 | HH11: 0.3721349995 | HI11: 0.3632629692 | HJ11: 0.3748823217 | HK11: 0.3770608527 | HL11: 0.3420768213 | HM11: 0.3502647064 | HN11: 0.2891104092 | HO11: 0.2809087686 | HP11: 0.2577164081 | HQ11: 0.2556455937 | HR11: 0.3173947038 | HS11: 0.3041114297 | HT11: 0.320987917 | HU11: 0.3381298119 | HV11: 0.3192637104 | HW11: 0.3000774604 | HX11: 0.3017674011 | HY11: 0.25108006 | HZ11: 0.2685103128 | IA11: 0.2353790706 | IB11: 0.254300497 | IC11: 0.2854812407 | ID11: 0.3079953319 | IE11: 0.2541116346 | IF11: 0.2951078364 | IG11: 0.2954595866 | IH11: 0.2302219337 | II11: 0.2169647276 | IJ11: 0.1898192307 | IK11: 0.178623886 | IL11: 0.1396223683 | IM11: 0.156240254 | IN11: 0.1686882889 | IO11: 0.204022546 | IP11: 0.2442804712 | IQ11: 0.2557215141 | IR11: 0.2833314002 | IS11: 0.2237963483 | IT11: 0.206662882 | IU11: 0.2032060666 | IV11: 0.194122409 | IW11: 0.2261643551 | IX11: 0.223059793 | IY11: 0.2092659889 | IZ11: 0.2568933138 | JA11: 0.2495782239 | JB11: 0.2915088381 | JC11: 0.2910441154 | JD11: 0.323934425 | JE11: 0.3065011065 | JF11: 0.2752416744 | JG11: 0.2577372438 | JH11: 0.3129389294 | JI11: 0.3012476461 | JJ11: 0.283827436 | JK11: 0.1992642083 | JL11: 0.2566952681 | JM11: 0.3196293059 | JN11: 0.2966748016 | JO11: 0.2988141757 | JP11: 0.2663088417 | JQ11: 0.2825182513 | JR11: 0.271942832 | JS11: 0.2393634705 | JT11: 0.2023898564 | JU11: 0.1834312948 | JV11: 0.1228819155 | JW11: 0.1096390822 | JX11: 0.1713473418 | JY11: 0.191182653 | JZ11: 0.2927302463 | KA11: 0.2693058682 | KB11: 0.2908691176 | KC11: 0.2738651393 | KD11: 0.1871814612 | KE11: 0.2813436687 | KF11: 0.1545229912 | KG11: 0.08733382259 | KH11: 0.103423847 | KI11: 0.1113766703 | KJ11: 0.2117776146 | KK11: 0.3059237199 | KL11: 0.3008354558 | KM11: 0.3076753413 | KN11: 0.3439285212 | KO11: 0.2824464766 | KP11: 0.220644707 | KQ11: 0.241491474 | KR11: 0.268266322 | KS11: 0.1872087988 | KT11: 0.1739863976 | KU11: 0.2132899034 | KV11: 0.2022095215 | KW11: 0.3180031348 | KX11: 0.3276369531 | KY11: 0.305580557 | KZ11: 0.2951478401 | LA11: 0.2898301121 | LB11: 0.2985079711 | LC11: 0.3017887176 | LD11: 0.1840217958 | LE11: 0.1426115924 | LF11: 0.1314011112 | LG11: 0.09891483597 | LH11: 0.1190931944 | LI11: 0.1782363554 | LJ11: 0.2419930727 | LK11: 0.2315806411 | LL11: 0.2868896234 | LM11: 0.3007476682 | LN11: 0.3088468771 | LO11: 0.3318996065 | LP11: 0.2873106062 | LQ11: 0.2287491598 | LR11: 0.1567002175 | LS11: 0.1693887513 | LT11: 0.2539617399 | LU11: 0.2944500161 | LV11: 0.2863414878 | LW11: 0.2451358808 | LX11: 0.2498553374 | LY11: 0.3006231908 | LZ11: 0.3274071168 | MA11: 0.2599723724 | MB11: 0.2151320361 | MC11: 0.2367710206 | MD11: 0.1131851014 | ME11: 0.1346157513 | MF11: 0.1996824395 | MG11: 0.2089893664 | MH11: 0.2481648847 | MI11: 0.2493814847 | MJ11: 0.2848167355 | MK11: 0.2440225937 | ML11: 0.2748343766 | MM11: 0.2312223435 | MN11: 0.2190148531 | MO11: 0.2029721839 | MP11: 0.1302633318 | MQ11: 0.1415397199 | MR11: - | MS11: - | MT11: - | MU11: - | MV11: - | MW11: - | MX11: - | MY11: -
C13: Emisiones de CO2 asociadas a la generación mensual Islas Baleares | D13: 2006-01-01 | E13: 2006-02-01 | F13: 2006-03-01 | G13: 2006-04-01 | H13: 2006-05-01 | I13: 2006-06-01 | J13: 2006-07-01 | K13: 2006-08-01 | L13: 2006-09-01 | M13: 2006-10-01 | N13: 2006-11-01 | O13: 2006-12-01 | P13: 2007-01-01 | Q13: 2007-02-01 | R13: 2007-03-01 | S13: 2007-04-01 | T13: 2007-05-01 | U13: 2007-06-01 | V13: 2007-07-01 | W13: 2007-08-01 | X13: 2007-09-01 | Y13: 2007-10-01 | Z13: 2007-11-01 | AA13: 2007-12-01 | AB13: 2008-01-01 | AC13: 2008-02-01 | AD13: 2008-03-01 | AE13: 2008-04-01 | AF13: 2008-05-01 | AG13: 2008-06-01 | AH13: 2008-07-01 | AI13: 2008-08-01 | AJ13: 2008-09-01 | AK13: 2008-10-01 | AL13: 2008-11-01 | AM13: 2008-12-01 | AN13: 2009-01-01 | AO13: 2009-02-01 | AP13: 2009-03-01 | AQ13: 2009-04-01 | AR13: 2009-05-01 | AS13: 2009-06-01 | AT13: 2009-07-01 | AU13: 2009-08-01 | AV13: 2009-09-01 | AW13: 2009-10-01 | AX13: 2009-11-01 | AY13: 2009-12-01 | AZ13: 2010-01-01 | BA13: 2010-02-01 | BB13: 2010-03-01 | BC13: 2010-04-01 | BD13: 2010-05-01 | BE13: 2010-06-01 | BF13: 2010-07-01 | BG13: 2010-08-01 | BH13: 2010-09-01 | BI13: 2010-10-01 | BJ13: 2010-11-01 | BK13: 2010-12-01 | BL13: 2011-01-01 | BM13: 2011-02-01 | BN13: 2011-03-01 | BO13: 2011-04-01 | BP13: 2011-05-01 | BQ13: 2011-06-01 | BR13: 2011-07-01 | BS13: 2011-08-01 | BT13: 2011-09-01 | BU13: 2011-10-01 | BV13: 2011-11-01 | BW13: 2011-12-01 | BX13: 2012-01-01 | BY13: 2012-02-01 | BZ13: 2012-03-01 | CA13: 2012-04-01 | CB13: 2012-05-01 | CC13: 2012-06-01 | CD13: 2012-07-01 | CE13: 2012-08-01 | CF13: 2012-09-01 | CG13: 2012-10-01 | CH13: 2012-11-01 | CI13: 2012-12-01 | CJ13: 2013-01-01 | CK13: 2013-02-01 | CL13: 2013-03-01 | CM13: 2013-04-01 | CN13: 2013-05-01 | CO13: 2013-06-01 | CP13: 2013-07-01 | CQ13: 2013-08-01 | CR13: 2013-09-01 | CS13: 2013-10-01 | CT13: 2013-11-01 | CU13: 2013-12-01 | CV13: 2014-01-01 | CW13: 2014-02-01 | CX13: 2014-03-01 | CY13: 2014-04-01 | CZ13: 2014-05-01 | DA13: 2014-06-01 | DB13: 2014-07-01 | DC13: 2014-08-01 | DD13: 2014-09-01 | DE13: 2014-10-01 | DF13: 2014-11-01 | DG13: 2014-12-01 | DH13: 2015-01-01 | DI13: 2015-02-01 | DJ13: 2015-03-01 | DK13: 2015-04-01 | DL13: 2015-05-01 | DM13: 2015-06-01 | DN13: 2015-07-01 | DO13: 2015-08-01 | DP13: 2015-09-01 | DQ13: 2015-10-01 | DR13: 2015-11-01 | DS13: 2015-12-01 | DT13: 2016-01-01 | DU13: 2016-02-01 | DV13: 2016-03-01 | DW13: 2016-04-01 | DX13: 2016-05-01 | DY13: 2016-06-01 | DZ13: 2016-07-01 | EA13: 2016-08-01 | EB13: 2016-09-01 | EC13: 2016-10-01 | ED13: 2016-11-01 | EE13: 2016-12-01 | EF13: 2017-01-01 | EG13: 2017-02-01 | EH13: 2017-03-01 | EI13: 2017-04-01 | EJ13: 2017-05-01 | EK13: 2017-06-01 | EL13: 2017-07-01 | EM13: 2017-08-01 | EN13: 2017-09-01 | EO13: 2017-10-01 | EP13: 2017-11-01 | EQ13: 2017-12-01 | ER13: 2018-01-01 | ES13: 2018-02-01 | ET13: 2018-03-01 | EU13: 2018-04-01 | EV13: 2018-05-01 | EW13: 2018-06-01 | EX13: 2018-07-01 | EY13: 2018-08-01 | EZ13: 2018-09-01 | FA13: 2018-10-01 | FB13: 2018-11-01 | FC13: 2018-12-01 | FD13: 2019-01-01 | FE13: 2019-02-01 | FF13: 2019-03-01 | FG13: 2019-04-01 | FH13: 2019-05-01 | FI13: 2019-06-01 | FJ13: 2019-07-01 | FK13: 2019-08-01 | FL13: 2019-09-01 | FM13: 2019-10-01 | FN13: 2019-11-01 | FO13: 2019-12-01
C14: Carbón | D14: 267505.75 | E14: 233513.8 | F14: 266058.9 | G14: 227681.75 | H14: 258244.2 | I14: 272698.45 | J14: 278132.45 | K14: 267255.9 | L14: 241774.05 | M14: 168170.9 | N14: 190989.9 | O14: 251418.45 | P14: 240596.05 | Q14: 216148.75 | R14: 209355.3 | S14: 250325 | T14: 216720.65 | U14: 211541.25 | V14: 264976.85 | W14: 278052.65 | X14: 250241.4 | Y14: 217689.65 | Z14: 191670.1 | AA14: 249344.6 | AB14: 273235.2 | AC14: 256391.7 | AD14: 252338.05 | AE14: 205411.85 | AF14: 234432.45 | AG14: 265397.7 | AH14: 279868.1 | AI14: 286746.1 | AJ14: 271857.7 | AK14: 232353.85 | AL14: 207055.35 | AM14: 178796.65 | AN14: 177078.1 | AO14: 254221.9 | AP14: 218655.8 | AQ14: 229985.5 | AR14: 256807.8 | AS14: 276760.65 | AT14: 283669.05 | AU14: 292200.05 | AV14: 246943.95 | AW14: 267618.8 | AX14: 241414.95 | AY14: 266583.3 | AZ14: 274197.5158 | BA14: 240473.9151 | BB14: 269936.401 | BC14: 257245.8545 | BD14: 217857.9026 | BE14: 265093.8539 | BF14: 277485.5 | BG14: 272416.2316 | BH14: 271029.1337 | BI14: 206431.2959 | BJ14: 182593.4836 | BK14: 211528.5998 | BL14: 257487.1393 | BM14: 211424.8978 | BN14: 126181.3132 | BO14: 183637.1042 | BP14: 228502.0712 | BQ14: 242415.1518 | BR14: 277729.8799 | BS14: 271254.6856 | BT14: 256348.9851 | BU14: 189601.3429 | BV14: 158424.2838 | BW14: 223728.4475 | BX14: 251812.3599 | BY14: 208208.764 | BZ14: 212938.2601 | CA14: 193772.3968 | CB14: 216237.8809 | CC14: 231249.8113 | CD14: 258457.5063 | CE14: 258443.0407 | CF14: 223153.2377 | CG14: 176275.2559 | CH14: 152649.1312 | CI14: 165241.2301 | CJ14: 173184.4556 | CK14: 164124.6039 | CL14: 177206.6445 | CM14: 166701.6794 | CN14: 178501.5914 | CO14: 190576.5949 | CP14: 234333.0942 | CQ14: 235839.0893 | CR14: 217945.8973 | CS14: 161171.7741 | CT14: 159838.1013 | CU14: 173684.8577 | CV14: 173934.8606 | CW14: 142578.3702 | CX14: 152242.7963 | CY14: 165311.9329 | CZ14: 184770.5654 | DA14: 196241.5446 | DB14: 222882.1258 | DC14: 226583.7808 | DD14: 216317.4852 | DE14: 148385.6595 | DF14: 82487.0902 | DG14: 166652.628 | DH14: 171714.2185 | DI14: 163123.6754 | DJ14: 165020.9052 | DK14: 66657.4397 | DL14: 121312.4141 | DM14: 176203.4854 | DN14: 207897.8309 | DO14: 238392.7834 | DP14: 189194.0371 | DQ14: 78218.9074 | DR14: 96716.41915 | DS14: 94146.8164 | DT14: 108688.7562 | DU14: 94668.6153 | DV14: 99786.3185 | DW14: 143921.5125 | DX14: 187317.2826 | DY14: 214211.4159 | DZ14: 271827.2344 | EA14: 252205.1526 | EB14: 243927.3447 | EC14: 213127.2702 | ED14: 171574.238 | EE14: 186469.4314 | EF14: 210005.2644 | EG14: 179983.5791 | EH14: 168594.2019 | EI14: 180033.0275 | EJ14: 212853.9856 | EK14: 255500.79 | EL14: 259424.0126 | EM14: 250640.3734 | EN14: 225546.2706 | EO14: 186501.0873 | EP14: 144667.4763 | EQ14: 193905.1764 | ER14: 208482.7805 | ES14: 202434.6807 | ET14: 209812.6485 | EU14: 192209.0321 | EV14: 196471.6782 | EW14: 218023.0825 | EX14: 254171.9029 | EY14: 270178.7655 | EZ14: 263161.9147 | FA14: 195663.6602 | FB14: 111004.2769 | FC14: 190236.795 | FD14: 227627.5701 | FE14: 171868.2998 | FF14: 148076.0064 | FG14: 132517.1904 | FH14: - | FI14: - | FJ14: - | FK14: - | FL14: - | FM14: - | FN14: - | FO14: -
C15: Motores diesel | D15: 60990.93 | E15: 52613.33 | F15: 54455.17 | G15: 49832.86 | H15: 61063.31 | I15: 65568.58 | J15: 80241.7 | K15: 78121.12 | L15: 72015.79 | M15: 61439.84 | N15: 48889.61 | O15: 57742.3 | P15: 60163.95 | Q15: 50866.97 | R15: 57582.14 | S15: 55167.42 | T15: 64976.45 | U15: 71284.29 | V15: 78985.06 | W15: 81042.5 | X15: 74400.48 | Y15: 60952.43 | Z15: 56967.68 | AA15: 61927.25 | AB15: 61976.53 | AC15: 54601.47 | AD15: 58070.32 | AE15: 55840.4 | AF15: 66221.54 | AG15: 74320.4 | AH15: 89470.92 | AI15: 91245.77 | AJ15: 75805.73 | AK15: 60249.42 | AL15: 55979 | AM15: 62470.87 | AN15: 65460.01 | AO15: 52518.62 | AP15: 55097.35 | AQ15: 57190.21 | AR15: 58381.4 | AS15: 70680.61 | AT15: 81241.93 | AU15: 81947.25 | AV15: 66271.59 | AW15: 54478.27 | AX15: 47743.08 | AY15: 57294.93 | AZ15: 61975.25026 | BA15: 54767.82773 | BB15: 60122.40773 | BC15: 54031.87944 | BD15: 64039.28993 | BE15: 72682.96728 | BF15: 87037.4274 | BG15: 87737.94799 | BH15: 75310.93031 | BI15: 59081.50017 | BJ15: 51624.82094 | BK15: 62855.18624 | BL15: 62652.98655 | BM15: 49890.87796 | BN15: 59442.78725 | BO15: 55060.25602 | BP15: 64306.1188 | BQ15: 68993.23431 | BR15: 74092.22821 | BS15: 75675.0225 | BT15: 62729.22887 | BU15: 42723.8119 | BV15: 38130.10586 | BW15: 57369.36205
C16: Motores diesel | BX16: 59519.8243 | BY16: 55230.94118 | BZ16: 54561.01252 | CA16: 53614.03156 | CB16: 61894.7951 | CC16: 70089.39896 | CD16: 77491.78176 | CE16: 76877.3975 | CF16: 60267.9643 | CG16: 45428.75318 | CH16: 35001.17786 | CI16: 40656.70778
C17: Motores diesel | CJ17: 42345.10728 | CK17: 37977.39216 | CL17: 37541.71728 | CM17: 39344.73048 | CN17: 48268.92096 | CO17: 50080.01112 | CP17: 64772.73432 | CQ17: 61939.16352 | CR17: 47177.5968 | CS17: 35758.2312 | CT17: 27314.5752 | CU17: 39316.44672
C18: Motores diesel | CV18: 35756.75532 | CW18: 33840.01664 | CX18: 23623.35718 | CY18: 23002.15624 | CZ18: 31726.51414 | DA18: 37475.4226 | DB18: 43017.22192 | DC18: 47465.41378 | DD18: 42938.02436 | DE18: 31359.7581 | DF18: 31618.43264 | DG18: 31582.73428
C19: Motores diesel | DH19: 31983.14118 | DI19: 30794.42613 | DJ19: 29019.19533 | DK19: 30266.33823 | DL19: 36144.91467 | DM19: 36783.77238 | DN19: 52669.87017 | DO19: 47397.73611 | DP19: 38370.93282 | DQ19: 29972.36757 | DR19: 21461.02782 | DS19: 28377.14106 | DT19: 21536.87373 | DU19: 36029.14368 | DV19: 44110.98786 | DW19: 42805.54422 | DX19: 49806.70374 | DY19: 52726.68207 | DZ19: 61144.77381 | EA19: 61134.29322 | EB19: 52598.75583 | EC19: 50488.37529 | ED19: 35424.49395 | EE19: 40112.04 | EF19: 48036.35556 | EG19: 40390.56024 | EH19: 35505.23502 | EI19: 41432.29908 | EJ19: 50070.35496 | EK19: 55065.39549 | EL19: 60794.99046 | EM19: 50160.16758 | EN19: 24008.85828 | EO19: 15316.58457 | EP19: 14246.00259 | EQ19: 18686.10537 | ER19: 23503.72194 | ES19: 26109.64272 | ET19: 24072.06284 | EU19: 24928.84745 | EV19: 34357.54841 | EW19: 39813.54735 | EX19: 55366.3612 | EY19: 59982.26322 | EZ19: 48293.5933 | FA19: 38706.06549 | FB19: 28164.68213 | FC19: 22064.5271 | FD19: 23592.20616 | FE19: 17806.54109 | FF19: 11145.97595 | FG19: 20235.77751 | FH19: - | FI19: - | FJ19: - | FK19: - | FL19: - | FM19: - | FN19: - | FO19: -
C20: Motores diesel | D20: 60990.93 | E20: 52613.33 | F20: 54455.17 | G20: 49832.86 | H20: 61063.31 | I20: 65568.58 | J20: 80241.7 | K20: 78121.12 | L20: 72015.79 | M20: 61439.84 | N20: 48889.61 | O20: 57742.3 | P20: 60163.95 | Q20: 50866.97 | R20: 57582.14 | S20: 55167.42 | T20: 64976.45 | U20: 71284.29 | V20: 78985.06 | W20: 81042.5 | X20: 74400.48 | Y20: 60952.43 | Z20: 56967.68 | AA20: 61927.25 | AB20: 61976.53 | AC20: 54601.47 | AD20: 58070.32 | AE20: 55840.4 | AF20: 66221.54 | AG20: 74320.4 | AH20: 89470.92 | AI20: 91245.77 | AJ20: 75805.73 | AK20: 60249.42 | AL20: 55979 | AM20: 62470.87 | AN20: 65460.01 | AO20: 52518.62 | AP20: 55097.35 | AQ20: 57190.21 | AR20: 58381.4 | AS20: 70680.61 | AT20: 81241.93 | AU20: 81947.25 | AV20: 66271.59 | AW20: 54478.27 | AX20: 47743.08 | AY20: 57294.93 | AZ20: 61975.25026 | BA20: 54767.82773 | BB20: 60122.40773 | BC20: 54031.87944 | BD20: 64039.28993 | BE20: 72682.96728 | BF20: 87037.4274 | BG20: 87737.94799 | BH20: 75310.93031 | BI20: 59081.50017 | BJ20: 51624.82094 | BK20: 62855.18624 | BL20: 62652.98655 | BM20: 49890.87796 | BN20: 59442.78725 | BO20: 55060.25602 | BP20: 64306.1188 | BQ20: 68993.23431 | BR20: 74092.22821 | BS20: 75675.0225 | BT20: 62729.22887 | BU20: 42723.8119 | BV20: 38130.10586 | BW20: 57369.36205 | BX20: 59519.8243 | BY20: 55230.94118 | BZ20: 54561.01252 | CA20: 53614.03156 | CB20: 61894.7951 | CC20: 70089.39896 | CD20: 77491.78176 | CE20: 76877.3975 | CF20: 60267.9643 | CG20: 45428.75318 | CH20: 35001.17786 | CI20: 40656.70778 | CJ20: 42345.10728 | CK20: 37977.39216 | CL20: 37541.71728 | CM20: 39344.73048 | CN20: 48268.92096 | CO20: 50080.01112 | CP20: 64772.73432 | CQ20: 61939.16352 | CR20: 47177.5968 | CS20: 35758.2312 | CT20: 27314.5752 | CU20: 39316.44672 | CV20: 35756.75532 | CW20: 33840.01664 | CX20: 23623.35718 | CY20: 23002.15624 | CZ20: 31726.51414 | DA20: 37475.4226 | DB20: 43017.22192 | DC20: 47465.41378 | DD20: 42938.02436 | DE20: 31359.7581 | DF20: 31618.43264 | DG20: 31582.73428 | DH20: 31983.14118 | DI20: 30794.42613 | DJ20: 29019.19533 | DK20: 30266.33823 | DL20: 36144.91467 | DM20: 36783.77238 | DN20: 52669.87017 | DO20: 47397.73611 | DP20: 38370.93282 | DQ20: 29972.36757 | DR20: 21461.02782 | DS20: 28377.14106 | DT20: 21536.87373 | DU20: 36029.14368 | DV20: 44110.98786 | DW20: 42805.54422 | DX20: 49806.70374 | DY20: 52726.68207 | DZ20: 61144.77381 | EA20: 61134.29322 | EB20: 52598.75583 | EC20: 50488.37529 | ED20: 35424.49395 | EE20: 40112.04 | EF20: 48036.35556 | EG20: 40390.56024 | EH20: 35505.23502 | EI20: 41432.29908 | EJ20: 50070.35496 | EK20: 55065.39549 | EL20: 60794.99046 | EM20: 50160.16758 | EN20: 24008.85828 | EO20: 15316.58457 | EP20: 14246.00259 | EQ20: 18686.10537 | ER20: 23503.72194 | ES20: 26109.64272 | ET20: 24072.06284 | EU20: 24928.84745 | EV20: 34357.54841 | EW20: 39813.54735 | EX20: 55366.3612 | EY20: 59982.26322 | EZ20: 48293.5933 | FA20: 38706.06549 | FB20: 28164.68213 | FC20: 22064.5271 | FD20: 23592.20616 | FE20: 17806.54109 | FF20: 11145.97595 | FG20: 20235.77751 | FH20: - | FI20: - | FJ20: - | FK20: - | FL20: - | FM20: - | FN20: - | FO20: -
C21: Turbina de gas | D21: 5140.78 | E21: 8094.12 | F21: 16894.94 | G21: 10041.06 | H21: 11379.72 | I21: 21471.1 | J21: 41422.24 | K21: 30168.32 | L21: 23377.34 | M21: 21766.32448 | N21: 13666.32 | O21: 12698.4 | P21: 17452.9 | Q21: 15461.56 | R21: 15177.4 | S21: 12562.24 | T21: 27257.16 | U21: 23500.18 | V21: 30604.92 | W21: 28391.58 | X21: 15768.66 | Y21: 15523.72 | Z21: 15379.42 | AA21: 13386.6 | AB21: 12965.54 | AC21: 14758.56 | AD21: 14788.16 | AE21: 9335.1 | AF21: 9898.24 | AG21: 16735.1 | AH21: 25429.36 | AI21: 28341.26 | AJ21: 23358.84 | AK21: 15465.26 | AL21: 14312.34 | AM21: 16263.72 | AN21: 14049.64 | AO21: 15212.92 | AP21: 14550.62 | AQ21: 9079.8 | AR21: 18062.66 | AS21: 25068.24 | AT21: 39299.18 | AU21: 38901.06 | AV21: 27547.98 | AW21: 18209.92 | AX21: 15673.94 | AY21: 15477.1 | AZ21: 17047.24976 | BA21: 18900.08026 | BB21: 16328.08298 | BC21: 12459.9498 | BD21: 11507.40108 | BE21: 14975.18168 | BF21: 30620.93138 | BG21: 31100.04734 | BH21: 19945.58408 | BI21: 16662.44088 | BJ21: 15841.03718 | BK21: 16178.64442
C22: Turbina de gas | BL22: 10343.14963 | BM22: 12729.26528 | BN22: 10770.86272 | BO22: 8026.30497 | BP22: 10400.41704 | BQ22: 17177.69394 | BR22: 30458.95249 | BS22: 36176.05 | BT22: 28981.27934 | BU22: 23725.38514 | BV22: 18920.22055 | BW22: 6159.08521
C23: Turbina de gas | BX23: 7478.6807 | BY23: 14531.16782 | BZ23: 8585.10829 | CA23: 4691.86526 | CB23: 7470.93577 | CC23: 17622.07575 | CD23: 25357.02826 | CE23: 36315.56141 | CF23: 23009.77875 | CG23: 20080.72729 | CH23: 17023.37797 | CI23: 18699.06293
C24: Turbina de gas | CJ24: 16017.1024 | CK24: 17308.86196 | CL24: 16813.00504 | CM24: 13234.8164 | CN24: 16800.30144 | CO24: 20608.06488 | CP24: 32023.16936 | CQ24: 35620.94588 | CR24: 30030.47788 | CS24: 26570.72912 | CT24: 22559.9478 | CU24: 19868.8516
C25: Turbina de gas | CV25: 14026.8723 | CW25: 12123.47808 | CX25: 21200.94613 | CY25: 21749.04984 | CZ25: 23035.77465 | DA25: 28507.91384 | DB25: 37299.04157 | DC25: 39033.0766 | DD25: 32625.25644 | DE25: 25653.04056 | DF25: 13749.3853 | DG25: 17836.22687
C26: Turbina de gas | DH26: 18770.68056 | DI26: 16760.58339 | DJ26: 19626.67527 | DK26: 16424.80806 | DL26: 22361.23101 | DM26: 30115.6326 | DN26: 39606.99423 | DO26: 41266.49037 | DP26: 29740.41846 | DQ26: 24455.11659 | DR26: 21022.30404 | DS26: 19009.60791 | DT26: 24509.15568 | DU26: 10145.61921 | DV26: 6804.40317 | DW26: 4603.69299 | DX26: 9362.28624 | DY26: 16904.69613 | DZ26: 23823.34746 | EA26: 28288.55199 | EB26: 22270.78914 | EC26: 9342.75732 | ED26: 10394.97657 | EE26: 6826.43925 | EF26: 6746.95422 | EG26: 5470.35894 | EH26: 11371.39401 | EI26: 7235.19201 | EJ26: 15040.83636 | EK26: 20261.42994 | EL26: 30434.20461 | EM26: 42077.97228 | EN26: 41825.38866 | EO26: 38358.05166 | EP26: 31802.94567 | EQ26: 33202.80438 | ER26: 56859.6432 | ES26: 56888.44625 | ET26: 57998.98295 | EU26: 54332.3012 | EV26: 62791.9391 | EW26: 73198.84235 | EX26: 91055.3397 | EY26: 86608.24055 | EZ26: 71347.0216 | FA26: 51735.87235 | FB26: 45535.57955 | FC26: 18396.85545 | FD26: 21398.2636 | FE26: 21470.817 | FF26: 32821.06645 | FG26: 28662.8965 | FH26: - | FI26: - | FJ26: - | FK26: - | FL26: - | FM26: - | FN26: - | FO26: -
C27: Turbina de gas | D27: 5140.78 | E27: 8094.12 | F27: 16894.94 | G27: 10041.06 | H27: 11379.72 | I27: 21471.1 | J27: 41422.24 | K27: 30168.32 | L27: 23377.34 | M27: 21766.32448 | N27: 13666.32 | O27: 12698.4 | P27: 17452.9 | Q27: 15461.56 | R27: 15177.4 | S27: 12562.24 | T27: 27257.16 | U27: 23500.18 | V27: 30604.92 | W27: 28391.58 | X27: 15768.66 | Y27: 15523.72 | Z27: 15379.42 | AA27: 13386.6 | AB27: 12965.54 | AC27: 14758.56 | AD27: 14788.16 | AE27: 9335.1 | AF27: 9898.24 | AG27: 16735.1 | AH27: 25429.36 | AI27: 28341.26 | AJ27: 23358.84 | AK27: 15465.26 | AL27: 14312.34 | AM27: 16263.72 | AN27: 14049.64 | AO27: 15212.92 | AP27: 14550.62 | AQ27: 9079.8 | AR27: 18062.66 | AS27: 25068.24 | AT27: 39299.18 | AU27: 38901.06 | AV27: 27547.98 | AW27: 18209.92 | AX27: 15673.94 | AY27: 15477.1 | AZ27: 17047.24976 | BA27: 18900.08026 | BB27: 16328.08298 | BC27: 12459.9498 | BD27: 11507.40108 | BE27: 14975.18168 | BF27: 30620.93138 | BG27: 31100.04734 | BH27: 19945.58408 | BI27: 16662.44088 | BJ27: 15841.03718 | BK27: 16178.64442 | BL27: 10343.14963 | BM27: 12729.26528 | BN27: 10770.86272 | BO27: 8026.30497 | BP27: 10400.41704 | BQ27: 17177.69394 | BR27: 30458.95249 | BS27: 36176.05 | BT27: 28981.27934 | BU27: 23725.38514 | BV27: 18920.22055 | BW27: 6159.08521 | BX27: 7478.6807 | BY27: 14531.16782 | BZ27: 8585.10829 | CA27: 4691.86526 | CB27: 7470.93577 | CC27: 17622.07575 | CD27: 25357.02826 | CE27: 36315.56141 | CF27: 23009.77875 | CG27: 20080.72729 | CH27: 17023.37797 | CI27: 18699.06293 | CJ27: 16017.1024 | CK27: 17308.86196 | CL27: 16813.00504 | CM27: 13234.8164 | CN27: 16800.30144 | CO27: 20608.06488 | CP27: 32023.16936 | CQ27: 35620.94588 | CR27: 30030.47788 | CS27: 26570.72912 | CT27: 22559.9478 | CU27: 19868.8516 | CV27: 14026.8723 | CW27: 12123.47808 | CX27: 21200.94613 | CY27: 21749.04984 | CZ27: 23035.77465 | DA27: 28507.91384 | DB27: 37299.04157 | DC27: 39033.0766 | DD27: 32625.25644 | DE27: 25653.04056 | DF27: 13749.3853 | DG27: 17836.22687 | DH27: 18770.68056 | DI27: 16760.58339 | DJ27: 19626.67527 | DK27: 16424.80806 | DL27: 22361.23101 | DM27: 30115.6326 | DN27: 39606.99423 | DO27: 41266.49037 | DP27: 29740.41846 | DQ27: 24455.11659 | DR27: 21022.30404 | DS27: 19009.60791 | DT27: 24509.15568 | DU27: 10145.61921 | DV27: 6804.40317 | DW27: 4603.69299 | DX27: 9362.28624 | DY27: 16904.69613 | DZ27: 23823.34746 | EA27: 28288.55199 | EB27: 22270.78914 | EC27: 9342.75732 | ED27: 10394.97657 | EE27: 6826.43925 | EF27: 6746.95422 | EG27: 5470.35894 | EH27: 11371.39401 | EI27: 7235.19201 | EJ27: 15040.83636 | EK27: 20261.42994 | EL27: 30434.20461 | EM27: 42077.97228 | EN27: 41825.38866 | EO27: 38358.05166 | EP27: 31802.94567 | EQ27: 33202.80438 | ER27: 56859.6432 | ES27: 56888.44625 | ET27: 57998.98295 | EU27: 54332.3012 | EV27: 62791.9391 | EW27: 73198.84235 | EX27: 91055.3397 | EY27: 86608.24055 | EZ27: 71347.0216 | FA27: 51735.87235 | FB27: 45535.57955 | FC27: 18396.85545 | FD27: 21398.2636 | FE27: 21470.817 | FF27: 32821.06645 | FG27: 28662.8965 | FH27: - | FI27: - | FJ27: - | FK27: - | FL27: - | FM27: - | FN27: - | FO27: -
C28: Ciclo combinado | D28: 42599.21 | E28: 41754.87 | F28: 26566.74 | G28: 21567.67 | H28: 29450.52 | I28: 39780.55 | J28: 64136.17 | K28: 62068.61 | L28: 49086.05 | M28: 60521.64 | N28: 29695.09 | O28: 29281.43 | P28: 40527.95 | Q28: 36014.69 | R28: 49323.22 | S28: 24653.1 | T28: 41916.19 | U28: 64613.47 | V28: 68965.41 | W28: 62622.87 | X28: 52234.01 | Y28: 53265.94 | Z28: 50050.27 | AA28: 41891.03 | AB28: 34211.68 | AC28: 33897.18 | AD28: 35983.24 | AE28: 44622.74 | AF28: 42456.02 | AG28: 39506.01 | AH28: 66133.43 | AI28: 65822.63 | AJ28: 44896.54 | AK28: 41322.34 | AL28: 41179.89 | AM28: 73659.6 | AN28: 76389.83 | AO28: 30284.5 | AP28: 49139.33 | AQ28: 33221.56 | AR28: 25901.11 | AS28: 35938.47 | AT28: 64873.58 | AU28: 61612.77 | AV28: 44656.41 | AW28: 21226.9 | AX28: 10869.49 | AY28: 23993.76 | AZ28: 30985.72437 | BA28: 33556.05739 | BB28: 25880.75482 | BC28: 13183.44891 | BD28: 32500.91988 | BE28: 22925.43606 | BF28: 58905.8907 | BG28: 54004.91584 | BH28: 27481.87173 | BI28: 39655.95102 | BJ28: 36465.45878 | BK28: 44638.04764 | BL28: 32104.89778 | BM28: 37366.62523 | BN28: 75570.68256 | BO28: 32230.4151 | BP28: 33037.56233 | BQ28: 34879.60326 | BR28: 43690.50354 | BS28: 56202.40097 | BT28: 42484.7246 | BU28: 43783.98293 | BV28: 35266.97883 | BW28: 22931.70793 | BX28: 25356.31016 | BY28: 49685.78263 | BZ28: 19767.11791 | CA28: 18979.95401 | CB28: 20791.1362 | CC28: 34898.96906 | CD28: 40691.01418 | CE28: 45692.09254 | CF28: 17288.39097 | CG28: 26041.17128 | CH28: 15910.21386 | CI28: 12710.34064 | CJ28: 13636.3426 | CK28: 18917.4229 | CL28: 14186.76237 | CM28: 9264.41335 | CN28: 14057.33193 | CO28: 5710.79016 | CP28: 13052.8896 | CQ28: 10874.95564 | CR28: 1173.41726 | CS28: 19721.20387 | CT28: 12929.19564 | CU28: 17187.64404 | CV28: 11941.90725 | CW28: 16387.12314 | CX28: 19100.10226 | CY28: 5645.2454 | CZ28: 12167.23725 | DA28: 5862.49904 | DB28: 6480.63325 | DC28: 9756.03827 | DD28: 5862.03728 | DE28: 19536.57609 | DF28: 30338.38939 | DG28: 12186.46578 | DH28: 13535.00182 | DI28: 13933.94433 | DJ28: 14008.88191 | DK28: 41011.61363 | DL28: 38155.55995 | DM28: 17698.33321 | DN28: 29231.69793 | DO28: 9661.46738 | DP28: 12835.13794 | DQ28: 45422.91643 | DR28: 27976.91545 | DS28: 34262.71484 | DT28: 34115.52107 | DU28: 39916.49762 | DV28: 40568.57637 | DW28: 18943.6522 | DX28: 6882.79735 | DY28: 4518.19765 | DZ28: 5454.57737 | EA28: 8954.04625 | EB28: 9835.16425 | EC28: 6053.97848 | ED28: 12816.05778 | EE28: 9921.30876 | EF28: 13924.39463 | EG28: 12889.89424 | EH28: 11632.31234 | EI28: 13806.35168 | EJ28: 9643.17828 | EK28: 4654.99664 | EL28: 13036.92484 | EM28: 20739.1623 | EN28: 4748.02981 | EO28: 14940.54672 | EP28: 22388.22122 | EQ28: 13154.84902 | ER28: 12792.10824 | ES28: 19735.4894 | ET28: 16170.09742 | EU28: 19699.28517 | EV28: 18747.05074 | EW28: 15069.30851 | EX28: 22039.38395 | EY28: 25629.36035 | EZ28: 12752.94873 | FA28: 18683.35724 | FB28: 44919.98253 | FC28: 15876.94045 | FD28: 14108.97576 | FE28: 22714.88109 | FF28: 34410.61735 | FG28: 38262.45173 | FH28: - | FI28: - | FJ28: - | FK28: - | FL28: - | FM28: - | FN28: - | FO28: -
C29: Generación auxiliar | D29: - | E29: - | F29: - | G29: - | H29: - | I29: - | J29: 157.62 | K29: 2612.94 | L29: 1827.06 | M29: 0.74 | N29: - | O29: 100.8028 | P29: - | Q29: - | R29: - | S29: - | T29: - | U29: - | V29: 1810.78 | W29: 6377.32 | X29: 1144.78 | Y29: - | Z29: - | AA29: - | AB29: - | AC29: - | AD29: - | AE29: - | AF29: - | AG29: - | AH29: 1515.52 | AI29: 1924 | AJ29: 948.68 | AK29: 0.74 | AL29: - | AM29: - | AN29: - | AO29: - | AP29: - | AQ29: - | AR29: - | AS29: - | AT29: 1101.86 | AU29: 2251.08 | AV29: 767.38 | AW29: -1.48 | AX29: - | AY29: - | AZ29: - | BA29: - | BB29: - | BC29: - | BD29: - | BE29: 33.80764 | BF29: 1938.45738 | BG29: 2166.6978 | BH29: 814.24864 | BI29: 0.59422 | BJ29: - | BK29: - | BL29: - | BM29: - | BN29: - | BO29: - | BP29: - | BQ29: 784.99348 | BR29: 1836.2434 | BS29: 2697.60118 | BT29: 1137.15282 | BU29: -1.91956 | BV29: - | BW29: - | BX29: - | BY29: - | BZ29: - | CA29: - | CB29: - | CC29: 728.4486 | CD29: 1897.48358 | CE29: 2923.10064 | CF29: 969.1928 | CG29: -0.35224 | CH29: - | CI29: - | CJ29: - | CK29: - | CL29: - | CM29: - | CN29: -0.29452 | CO29: 428.9595 | CP29: 1624.58416 | CQ29: 2143.03556 | CR29: 806.00652 | CS29: 0.00148 | CT29: - | CU29: - | CV29: - | CW29: - | CX29: - | CY29: - | CZ29: - | DA29: - | DB29: 1881.19544 | DC29: 2377.02874 | DD29: 1435.73098 | DE29: -0.3256 | DF29: - | DG29: - | DH29: - | DI29: - | DJ29: - | DK29: - | DL29: - | DM29: 249.25568 | DN29: 2725.03668 | DO29: 3104.01436 | DP29: 1752.02104 | DQ29: -2.24516 | DR29: - | DS29: - | DT29: - | DU29: - | DV29: - | DW29: - | DX29: - | DY29: 898.57608 | DZ29: 2162.58044 | EA29: 2506.00334 | EB29: 1586.39942 | EC29: 315.12678 | ED29: - | EE29: - | EF29: - | EG29: - | EH29: - | EI29: - | EJ29: 990.12 | EK29: 1262.34898 | EL29: 2315.06854 | EM29: 3370.4928 | EN29: 1759.23826 | EO29: 1215.11552 | EP29: - | EQ29: - | ER29: - | ES29: - | ET29: - | EU29: - | EV29: 178.15041 | EW29: 970.72719 | EX29: 2352.02577 | EY29: 3585.32556 | EZ29: 1563.07908 | FA29: 192.16155 | FB29: - | FC29: - | FD29: - | FE29: - | FF29: - | FG29: - | FH29: - | FI29: - | FJ29: - | FK29: - | FL29: - | FM29: - | FN29: - | FO29: -
C30: Térmica no renovable/Cogeneración y resto | D30: 3415.01602 | E30: 3029.45916 | F30: 3316.91516 | G30: 3152.81122 | H30: 2402.68626 | I30: 3033.60486 | J30: 2933.3993 | K30: 2947.568 | L30: 2849.02176 | M30: 3119.09468 | N30: 2739.72166 | O30: 3230.04266 | P30: 2660.06 | Q30: 2930.72 | R30: 3343.86 | S30: 3124.68 | T30: 2124.2 | U30: 2596.62 | V30: 2326.22 | W30: 2506.92 | X30: 2471.04 | Y30: 264.94 | Z30: 2097.42 | AA30: 3175.9 | AB30: 2861.3 | AC30: 3179.02 | AD30: 3227.9 | AE30: 2950.74 | AF30: 3057.08 | AG30: 2977 | AH30: 3089.58 | AI30: 2965.3 | AJ30: 2776.28 | AK30: 3073.2 | AL30: 3097.64 | AM30: 3231.28 | AN30: 3296.54 | AO30: 2496 | AP30: 252.72 | AQ30: 2906.28 | AR30: 3187.34 | AS30: 2911.74 | AT30: 2909.4 | AU30: 2787.98 | AV30: 2936.44 | AW30: 2983.5 | AX30: 3112.2 | AY30: 3250.78 | AZ30: 2811.9 | BA30: 2403.96 | BB30: 2925.78 | BC30: 2913.04 | BD30: 2834.78 | BE30: 2701.66 | BF30: 2995.72 | BG30: 5968.82 | BH30: 6735.04 | BI30: 3579.16 | BJ30: 4561.7 | BK30: 5391.88 | BL30: 348.0405 | BM30: 328.96256 | BN30: 380.98789 | BO30: 2.71506 | BP30: 288.43757 | BQ30: 239.31563 | BR30: 538.88687 | BS30: 657.88072 | BT30: 685.41131 | BU30: 630.00011 | BV30: 496.02829 | BW30: 336.79287 | BX30: 434.96793 | BY30: 782.2059 | BZ30: 1006.89728 | CA30: 170.95295 | CB30: 1027.33978 | CC30: 942.6083 | CD30: 1064.97211 | CE30: 955.94162 | CF30: 1013.46293 | CG30: 892.90916 | CH30: 729.93563 | CI30: 781.57431 | CJ30: 883.44345 | CK30: 833.40687 | CL30: 780.19051 | CM30: 180.54594 | CN30: 969.8699 | CO30: 962.25271 | CP30: 1194.56979 | CQ30: 1052.77876 | CR30: 802.42603 | CS30: 305.9345 | CT30: 657.25542 | CU30: 894.03026 | CV30: 771.92397 | CW30: 622.92756 | CX30: 669.92311 | CY30: 280.67719 | CZ30: 504.9982 | DA30: 610.90996 | DB30: 972.45139 | DC30: 905.25754 | DD30: 1015.3466 | DE30: 762.17891 | DF30: 993.50143 | DG30: 1222.26022 | DH30: - | DI30: - | DJ30: - | DK30: - | DL30: - | DM30: - | DN30: - | DO30: - | DP30: - | DQ30: - | DR30: - | DS30: - | DT30: - | DU30: - | DV30: - | DW30: - | DX30: - | DY30: - | DZ30: - | EA30: - | EB30: - | EC30: - | ED30: - | EE30: - | EF30: - | EG30: - | EH30: - | EI30: - | EJ30: - | EK30: - | EL30: - | EM30: - | EN30: - | EO30: - | EP30: - | EQ30: - | ER30: - | ES30: - | ET30: - | EU30: - | EV30: - | EW30: - | EX30: - | EY30: - | EZ30: - | FA30: - | FB30: - | FC30: - | FD30: - | FE30: - | FF30: - | FG30: - | FH30: - | FI30: - | FJ30: - | FK30: - | FL30: - | FM30: - | FN30: - | FO30: -
C31: Cogeneración | D31: - | E31: - | F31: - | G31: - | H31: - | I31: - | J31: - | K31: - | L31: - | M31: - | N31: - | O31: - | P31: - | Q31: - | R31: - | S31: - | T31: - | U31: - | V31: - | W31: - | X31: - | Y31: - | Z31: - | AA31: - | AB31: - | AC31: - | AD31: - | AE31: - | AF31: - | AG31: - | AH31: - | AI31: - | AJ31: - | AK31: - | AL31: - | AM31: - | AN31: - | AO31: - | AP31: - | AQ31: - | AR31: - | AS31: - | AT31: - | AU31: - | AV31: - | AW31: - | AX31: - | AY31: - | AZ31: - | BA31: - | BB31: - | BC31: - | BD31: - | BE31: - | BF31: - | BG31: - | BH31: - | BI31: - | BJ31: - | BK31: - | BL31: - | BM31: - | BN31: - | BO31: - | BP31: - | BQ31: - | BR31: - | BS31: - | BT31: - | BU31: - | BV31: - | BW31: - | BX31: - | BY31: - | BZ31: - | CA31: - | CB31: - | CC31: - | CD31: - | CE31: - | CF31: - | CG31: - | CH31: - | CI31: - | CJ31: - | CK31: - | CL31: - | CM31: - | CN31: - | CO31: - | CP31: - | CQ31: - | CR31: - | CS31: - | CT31: - | CU31: - | CV31: - | CW31: - | CX31: - | CY31: - | CZ31: - | DA31: - | DB31: - | DC31: - | DD31: - | DE31: - | DF31: - | DG31: - | DH31: 1166.89046 | DI31: 934.88196 | DJ31: 1025.36916 | DK31: 627.9862 | DL31: 815.88922 | DM31: 419.36725 | DN31: 1080.9587 | DO31: 1041.93702 | DP31: 911.60341 | DQ31: 1161.78335 | DR31: 1206.03868 | DS31: 1280.69358 | DT31: 1221.6697 | DU31: 1187.63858 | DV31: 1146.74248 | DW31: 1129.48827 | DX31: 784.90431 | DY31: 1241.43806 | DZ31: 1082.12679 | EA31: 1084.59247 | EB31: 1073.52355 | EC31: 1015.2837 | ED31: 883.36168 | EE31: 988.7177 | EF31: 1116.73955 | EG31: 1149.25663 | EH31: 1300.60883 | EI31: 739.61409 | EJ31: 746.35216 | EK31: 1027.46225 | EL31: 1131.90548 | EM31: 1290.59367 | EN31: 1189.91482 | EO31: 1239.35681 | EP31: 1146.50124 | EQ31: 1332.06105 | ER31: 1177.70519 | ES31: 1140.95198 | ET31: 849.03345 | EU31: 733.40142 | EV31: 954.07275 | EW31: 1242.17954 | EX31: 1319.25868 | EY31: 1300.71946 | EZ31: 901.5235 | FA31: 951.45833 | FB31: 1163.89679 | FC31: 1206.34393 | FD31: 1236.37239 | FE31: 1288.90832 | FF31: 1208.95909 | FG31: 1078.66766 | FH31: - | FI31: - | FJ31: - | FK31: - | FL31: - | FM31: - | FN31: - | FO31: -
C32: Residuos no renovables | D32: - | E32: - | F32: - | G32: - | H32: - | I32: - | J32: - | K32: - | L32: - | M32: - | N32: - | O32: - | P32: - | Q32: - | R32: - | S32: - | T32: - | U32: - | V32: - | W32: - | X32: - | Y32: - | Z32: - | AA32: - | AB32: - | AC32: - | AD32: - | AE32: - | AF32: - | AG32: - | AH32: - | AI32: - | AJ32: - | AK32: - | AL32: - | AM32: - | AN32: - | AO32: - | AP32: - | AQ32: - | AR32: - | AS32: - | AT32: - | AU32: - | AV32: - | AW32: - | AX32: - | AY32: - | AZ32: - | BA32: - | BB32: - | BC32: - | BD32: - | BE32: - | BF32: - | BG32: - | BH32: - | BI32: - | BJ32: - | BK32: - | BL32: 1723.08168 | BM32: 1567.31304 | BN32: 1536.45768 | BO32: 2140.35024 | BP32: 1416.14196 | BQ32: 2844.09852 | BR32: 3132.26688 | BS32: 3257.3244 | BT32: 3303.33744 | BU32: 3137.92464 | BV32: 2518.24764 | BW32: 3114.34392 | BX32: 2629.59924 | BY32: 2005.86684 | BZ32: 2284.2972 | CA32: 2176.83864 | CB32: 2674.41156 | CC32: 2359.42524 | CD32: 3236.92092 | CE32: 3158.8476 | CF32: 2484.45372 | CG32: 1717.50144 | CH32: 1683.70728 | CI32: 3057.61896 | CJ32: 2069.19036 | CK32: 1459.61292 | CL32: 1927.13232 | CM32: 1848.19716 | CN32: 1970.32668 | CO32: 2844.6132 | CP32: 2605.40964 | CQ32: 2732.9514 | CR32: 3380.73336 | CS32: 2288.39604 | CT32: 1898.55192 | CU32: 2110.8678 | CV32: 1905.51672 | CW32: 1561.7868 | CX32: 2262.03708 | CY32: 2785.05876 | CZ32: 1264.734 | DA32: 3164.84052 | DB32: 3538.24296 | DC32: 2705.50584 | DD32: 3356.82864 | DE32: 3443.96364 | DF32: 2054.56776 | DG32: 2697.15636 | DH32: 2199.23076 | DI32: 1658.0496 | DJ32: 2734.5834 | DK32: 3273.36288 | DL32: 3549.6312 | DM32: 3289.05444 | DN32: 3084.70764 | DO32: 2996.95992 | DP32: 3546.5106 | DQ32: 3519.45816 | DR32: 3436.29444 | DS32: 2975.61204 | DT32: 2055.4836 | DU32: 1192.27812 | DV32: 2066.84544 | DW32: 2906.37684 | DX32: 3482.42856 | DY32: 3268.09824 | DZ32: 2703.92604 | EA32: 3044.40636 | EB32: 3027.26592 | EC32: 3279.00756 | ED32: 2225.01492 | EE32: 2142.08436 | EF32: 1810.59924 | EG32: 1733.32596 | EH32: 2524.263 | EI32: 3524.5854 | EJ32: 2690.34972 | EK32: 3371.20452 | EL32: 3373.38972 | EM32: 3438.16152 | EN32: 3606.39 | EO32: 3355.91748 | EP32: 2707.0146 | EQ32: 2395.67916 | ER32: 1795.54188 | ES32: 1069.42908 | ET32: 2687.96436 | EU32: 2516.81724 | EV32: 2525.90208 | EW32: 3530.19708 | EX32: 3462.98856 | EY32: 3590.727 | EZ32: 3228.85668 | FA32: 3335.44164 | FB32: 1688.01024 | FC32: 3149.98284 | FD32: 2294.52948 | FE32: 1646.40708 | FF32: 2660.079 | FG32: 3229.51932 | FH32: - | FI32: - | FJ32: - | FK32: - | FL32: - | FM32: - | FN32: - | FO32: -
C34: Emisiones (tCO2) | D34: 379651.686 | E34: 339005.5792 | F34: 367292.6652 | G34: 312276.1512 | H34: 362540.4363 | I34: 402552.2849 | J34: 467023.5793 | K34: 443174.458 | L34: 390929.3118 | M34: 315018.5392 | N34: 285980.6417 | O34: 354471.4255 | P34: 361400.91 | Q34: 321422.69 | R34: 334781.92 | S34: 345832.44 | T34: 352994.65 | U34: 373535.81 | V34: 447669.24 | W34: 458993.84 | X34: 396260.37 | Y34: 347696.68 | Z34: 316164.89 | AA34: 369725.38 | AB34: 385250.25 | AC34: 362827.93 | AD34: 364407.67 | AE34: 318160.83 | AF34: 356065.33 | AG34: 398936.21 | AH34: 465506.91 | AI34: 477045.06 | AJ34: 419643.77 | AK34: 352464.81 | AL34: 321624.22 | AM34: 334422.12 | AN34: 336274.12 | AO34: 354733.94 | AP34: 337695.82 | AQ34: 332383.35 | AR34: 362340.31 | AS34: 411359.71 | AT34: 473095 | AU34: 479700.19 | AV34: 389123.75 | AW34: 364515.91 | AX34: 318813.66 | AY34: 366599.87 | AZ34: 387017.6402 | BA34: 350101.8405 | BB34: 375193.4265 | BC34: 339834.1726 | BD34: 328740.2935 | BE34: 378412.9066 | BF34: 458983.9269 | BG34: 453394.6606 | BH34: 401316.8085 | BI34: 325410.9422 | BJ34: 291086.5005 | BK34: 340592.3581 | BL34: 364659.2954 | BM34: 313307.9419 | BN34: 273883.0914 | BO34: 281097.1456 | BP34: 337950.7489 | BQ34: 367334.0909 | BR34: 431478.9613 | BS34: 445920.9654 | BT34: 395670.1195 | BU34: 303600.5281 | BV34: 253755.865 | BW34: 313639.7395 | BX34: 347231.7422 | BY34: 330444.7284 | BZ34: 299142.6933 | CA34: 273406.0392 | CB34: 310096.4993 | CC34: 357890.7372 | CD34: 408196.7072 | CE34: 424365.982 | CF34: 328186.4812 | CG34: 270435.9661 | CH34: 222997.5438 | CI34: 241146.5348 | CJ34: 248135.6417 | CK34: 240621.3008 | CL34: 248455.452 | CM34: 230574.3827 | CN34: 260568.0478 | CO34: 271211.2865 | CP34: 349606.4511 | CQ34: 350202.9201 | CR34: 301316.5552 | CS34: 245816.2703 | CT34: 225197.6273 | CU34: 253062.6981 | CV34: 238337.8362 | CW34: 207113.7025 | CX34: 219099.162 | CY34: 218774.1204 | CZ34: 253469.8236 | DA34: 271863.1306 | DB34: 316070.9123 | DC34: 328826.1016 | DD34: 303550.7095 | DE34: 229140.8511 | DF34: 161241.3667 | DG34: 232177.4716 | DH34: 239369.1633 | DI34: 227205.5608 | DJ34: 231435.6103 | DK34: 158261.5487 | DL34: 222339.6401 | DM34: 264758.9009 | DN34: 336297.0963 | DO34: 343861.3886 | DP34: 276350.6614 | DQ34: 182748.3043 | DR34: 171818.9996 | DS34: 180052.5858 | DT34: 192127.4599 | DU34: 183139.7925 | DV34: 194483.8738 | DW34: 214310.2671 | DX34: 257636.4028 | DY34: 293769.1042 | DZ34: 368198.5664 | EA34: 357217.0462 | EB34: 334319.2428 | EC34: 283621.7994 | ED34: 233318.1429 | EE34: 246460.0215 | EF34: 281640.3076 | EG34: 241616.9751 | EH34: 230928.0151 | EI34: 246771.0698 | EJ34: 292035.1771 | EK34: 341143.6278 | EL34: 370510.4962 | EM34: 371716.9236 | EN34: 302684.0905 | EO34: 260926.6601 | EP34: 216958.1616 | EQ34: 262676.6754 | ER34: 304611.5009 | ES34: 307378.6401 | ET34: 311590.7895 | EU34: 294419.6845 | EV34: 316026.3417 | EW34: 351847.8846 | EX34: 429767.2608 | EY34: 450875.4016 | EZ34: 401248.9376 | FA34: 309268.0168 | FB34: 232476.4282 | FC34: 250931.4448 | FD34: 290257.9175 | FE34: 236795.8543 | FF34: 230322.7042 | FG34: 223986.5031 | FH34: - | FI34: - | FJ34: - | FK34: - | FL34: - | FM34: - | FN34: - | FO34: -
C35: Factor de emision de CO2 (tCO2/MWh) | D35: 0.7645527915 | E35: 0.7533524279 | F35: 0.8005419844 | G35: 0.8031318909 | H35: 0.7952261837 | I35: 0.7728311413 | J35: 0.7318719293 | K35: 0.7303035054 | L35: 0.743091538 | M35: 0.681488135 | N35: 0.7640637092 | O35: 0.7893399332 | P35: 0.7604565884 | Q35: 0.7586252481 | R35: 0.7237229211 | S35: 0.8020753667 | T35: 0.7488123825 | U35: 0.7019133244 | V35: 0.7206175491 | W35: 0.7350157894 | X35: 0.7419647461 | Y35: 0.7320777774 | Z35: 0.7173078005 | AA35: 0.758706737 | AB35: 0.7867966318 | AC35: 0.7799463667 | AD35: 0.772578841 | AE35: 0.7318854005 | AF35: 0.7514780507 | AG35: 0.7689284165 | AH35: 0.7264929716 | AI35: 0.7276587313 | AJ35: 0.7564338298 | AK35: 0.7466873642 | AL35: 0.7356185958 | AM35: 0.6585718365 | AN35: 0.6544271522 | AO35: 0.7818792843 | AP35: 0.7289741564 | AQ35: 0.7602894689 | AR35: 0.7841268443 | AS35: 0.7692575582 | AT35: 0.7231082213 | AU35: 0.7315681203 | AV35: 0.7436172449 | AW35: 0.8047152933 | AX35: 0.8296238488 | AY35: 0.8011360795 | AZ35: 0.7879708169 | BA35: 0.7690570816 | BB35: 0.7931560614 | BC35: 0.8227093776 | BD35: 0.7537410303 | BE35: 0.7961463978 | BF35: 0.7278401372 | BG35: 0.7254678951 | BH35: 0.7717684586 | BI35: 0.731659779 | BJ35: 0.7225052007 | BK35: 0.7198778619 | BL35: 0.7640649439 | BM35: 0.7277641913 | BN35: 0.6026850238 | BO35: 0.7145040146 | BP35: 0.7438733884 | BQ35: 0.729851811 | BR35: 0.7223758583 | BS35: 0.6973191861 | BT35: 0.713592605 | BU35: 0.6759084477 | BV35: 0.6847749569 | BW35: 0.7556027835 | BX35: 0.760639733 | BY35: 0.6889731645 | BZ35: 0.7508654569 | CA35: 0.7488057188 | CB35: 0.7420232085 | CC35: 0.7192129473 | CD35: 0.7097241586 | CE35: 0.6996236345 | CF35: 0.7485814156 | CG35: 0.71531479 | CH35: 0.7373011279 | CI35: 0.7306639167 | CJ35: 0.7375496503 | CK35: 0.7237507124 | CL35: 0.7310675269 | CM35: 0.7477549252 | CN35: 0.7291544312 | CO35: 0.7403644201 | CP35: 0.735777358 | CQ35: 0.7389713666 | CR35: 0.7563392232 | CS35: 0.6964899002 | CT35: 0.7298631585 | CU35: 0.7258344239 | CV35: 0.7307245886 | CW35: 0.6958045792 | CX35: 0.6721192857 | CY35: 0.7101099642 | CZ35: 0.7226605409 | DA35: 0.7101610993 | DB35: 0.7082629584 | DC35: 0.7113198151 | DD35: 0.7180872494 | DE35: 0.6481526379 | DF35: 0.5865095029 | DG35: 0.7077409858 | DH35: 0.7051881303 | DI35: 0.7085109703 | DJ35: 0.6859874304 | DK35: 0.512966938 | DL35: 0.5787517331 | DM35: 0.6626115243 | DN35: 0.6535547798 | DO35: 0.7081084402 | DP35: 0.6837759902 | DQ35: 0.5255643284 | DR35: 0.5789889561 | DS35: 0.5741145722 | DT35: 0.5991382104 | DU35: 0.5867104371 | DV35: 0.5766217456 | DW35: 0.6572168514 | DX35: 0.7041932939 | DY35: 0.7189845252 | DZ35: 0.7399570364 | EA35: 0.7173801475 | EB35: 0.7264987684 | EC35: 0.7330057661 | ED35: 0.7161509888 | EE35: 0.7389570041 | EF35: 0.7397395779 | EG35: 0.7298649757 | EH35: 0.6986390938 | EI35: 0.6890544277 | EJ35: 0.7171744424 | EK35: 0.7351464623 | EL35: 0.7091213175 | EM35: 0.6886382067 | EN35: 0.7195400415 | EO35: 0.6834886234 | EP35: 0.6504960529 | EQ35: 0.7153686483 | ER35: 0.8694489512 | ES35: 0.8595446444 | ET35: 0.8382107252 | EU35: 0.817040316 | EV35: 0.8180589839 | EW35: 0.8226792082 | EX35: 0.8205742707 | EY35: 0.818299731 | EZ35: 0.8541390942 | FA35: 0.8068236465 | FB35: 0.7064745595 | FC35: 0.812254101 | FD35: 0.8547302201 | FE35: 0.8016962399 | FF35: 0.7342921273 | FG35: 0.6975963235 | FH35: - | FI35: - | FJ35: - | FK35: - | FL35: - | FM35: - | FN35: - | FO35: -
C37: Emisiones de CO2 asociadas a la generación mensual Islas Canarias | D37: 2006-01-01 | E37: 2006-02-01 | F37: 2006-03-01 | G37: 2006-04-01 | H37: 2006-05-01 | I37: 2006-06-01 | J37: 2006-07-01 | K37: 2006-08-01 | L37: 2006-09-01 | M37: 2006-10-01 | N37: 2006-11-01 | O37: 2006-12-01 | P37: 2007-01-01 | Q37: 2007-02-01 | R37: 2007-03-01 | S37: 2007-04-01 | T37: 2007-05-01 | U37: 2007-06-01 | V37: 2007-07-01 | W37: 2007-08-01 | X37: 2007-09-01 | Y37: 2007-10-01 | Z37: 2007-11-01 | AA37: 2007-12-01 | AB37: 2008-01-01 | AC37: 2008-02-01 | AD37: 2008-03-01 | AE37: 2008-04-01 | AF37: 2008-05-01 | AG37: 2008-06-01 | AH37: 2008-07-01 | AI37: 2008-08-01 | AJ37: 2008-09-01 | AK37: 2008-10-01 | AL37: 2008-11-01 | AM37: 2008-12-01 | AN37: 2009-01-01 | AO37: 2009-02-01 | AP37: 2009-03-01 | AQ37: 2009-04-01 | AR37: 2009-05-01 | AS37: 2009-06-01 | AT37: 2009-07-01 | AU37: 2009-08-01 | AV37: 2009-09-01 | AW37: 2009-10-01 | AX37: 2009-11-01 | AY37: 2009-12-01 | AZ37: 2010-01-01 | BA37: 2010-02-01 | BB37: 2010-03-01 | BC37: 2010-04-01 | BD37: 2010-05-01 | BE37: 2010-06-01 | BF37: 2010-07-01 | BG37: 2010-08-01 | BH37: 2010-09-01 | BI37: 2010-10-01 | BJ37: 2010-11-01 | BK37: 2010-12-01 | BL37: 2011-01-01 | BM37: 2011-02-01 | BN37: 2011-03-01 | BO37: 2011-04-01 | BP37: 2011-05-01 | BQ37: 2011-06-01 | BR37: 2011-07-01 | BS37: 2011-08-01 | BT37: 2011-09-01 | BU37: 2011-10-01 | BV37: 2011-11-01 | BW37: 2011-12-01 | BX37: 2012-01-01 | BY37: 2012-02-01 | BZ37: 2012-03-01 | CA37: 2012-04-01 | CB37: 2012-05-01 | CC37: 2012-06-01 | CD37: 2012-07-01 | CE37: 2012-08-01 | CF37: 2012-09-01 | CG37: 2012-10-01 | CH37: 2012-11-01 | CI37: 2012-12-01 | CJ37: 2013-01-01 | CK37: 2013-02-01 | CL37: 2013-03-01 | CM37: 2013-04-01 | CN37: 2013-05-01 | CO37: 2013-06-01 | CP37: 2013-07-01 | CQ37: 2013-08-01 | CR37: 2013-09-01 | CS37: 2013-10-01 | CT37: 2013-11-01 | CU37: 2013-12-01 | CV37: 2014-01-01 | CW37: 2014-02-01 | CX37: 2014-03-01 | CY37: 2014-04-01 | CZ37: 2014-05-01 | DA37: 2014-06-01 | DB37: 2014-07-01 | DC37: 2014-08-01 | DD37: 2014-09-01 | DE37: 2014-10-01 | DF37: 2014-11-01 | DG37: 2014-12-01 | DH37: 2015-01-01 | DI37: 2015-02-01 | DJ37: 2015-03-01 | DK37: 2015-04-01 | DL37: 2015-05-01 | DM37: 2015-06-01 | DN37: 2015-07-01 | DO37: 2015-08-01 | DP37: 2015-09-01 | DQ37: 2015-10-01 | DR37: 2015-11-01 | DS37: 2015-12-01 | DT37: 2016-01-01 | DU37: 2016-02-01 | DV37: 2016-03-01 | DW37: 2016-04-01 | DX37: 2016-05-01 | DY37: 2016-06-01 | DZ37: 2016-07-01 | EA37: 2016-08-01 | EB37: 2016-09-01 | EC37: 2016-10-01 | ED37: 2016-11-01 | EE37: 2016-12-01 | EF37: 2017-01-01 | EG37: 2017-02-01 | EH37: 2017-03-01 | EI37: 2017-04-01 | EJ37: 2017-05-01 | EK37: 2017-06-01 | EL37: 2017-07-01 | EM37: 2017-08-01 | EN37: 2017-09-01 | EO37: 2017-10-01 | EP37: 2017-11-01 | EQ37: 2017-12-01 | ER37: 2018-01-01 | ES37: 2018-02-01 | ET37: 2018-03-01 | EU37: 2018-04-01 | EV37: 2018-05-01 | EW37: 2018-06-01 | EX37: 2018-07-01 | EY37: 2018-08-01 | EZ37: 2018-09-01 | FA37: 2018-10-01 | FB37: 2018-11-01 | FC37: 2018-12-01 | FD37: 2019-01-01 | FE37: 2019-02-01 | FF37: 2019-03-01 | FG37: 2019-04-01 | FH37: 2019-05-01 | FI37: 2019-06-01 | FJ37: 2019-07-01 | FK37: 2019-08-01 | FL37: 2019-09-01 | FM37: 2019-10-01 | FN37: 2019-11-01 | FO37: 2019-12-01
C38: Motores diesel | D38: 135720.66 | E38: 121654.38 | F38: 128303.76 | G38: 117671.64 | H38: 140103.56 | I38: 145732.04 | J38: 144333.12 | K38: 146971.06 | L38: 149663.94 | M38: 147311.36 | N38: 129542.78 | O38: 139276.18 | P38: 153838.56 | Q38: 125587.1 | R38: 139586.14 | S38: 130378.36 | T38: 132074.12 | U38: 137559.1 | V38: 150110.84 | W38: 146489.72 | X38: 139236.82 | Y38: 141094.94 | Z38: 139540.22 | AA38: 138945.72 | AB38: 139321.28 | AC38: 139361.46 | AD38: 134979.38 | AE38: 140224.1 | AF38: 151387.58 | AG38: 140003.52 | AH38: 147912.42 | AI38: 148752.92 | AJ38: 151236.7 | AK38: 145627.9 | AL38: 139244.2 | AM38: 147036.66 | AN38: 143909.18 | AO38: 132374.24 | AP38: 137700.14 | AQ38: 132612.86 | AR38: 143434.4 | AS38: 145220.36 | AT38: 149200.64 | AU38: 150839 | AV38: 151832.02 | AW38: 158651.96 | AX38: 150123.96 | AY38: 159474.42 | AZ38: 154045.5493 | BA38: 136903.3862 | BB38: 154141.3876 | BC38: 142162.7555 | BD38: 132949.8029 | BE38: 135136.0238 | BF38: 148704.1062 | BG38: 162636.2309 | BH38: 155734.0195 | BI38: 164315.3991 | BJ38: 151605.8033 | BK38: 152043.5087 | BL38: 154418.341 | BM38: 139195.8987 | BN38: 153581.663 | BO38: 144963.3113 | BP38: 139435.0927 | BQ38: 146971.3257 | BR38: 153483.008 | BS38: 152199.7925 | BT38: 154076.3739 | BU38: 146111.7066 | BV38: 141715.7948 | BW38: 146120.5749 | BX38: 147053.1182 | BY38: 144873.3729 | BZ38: 147298.5024 | CA38: 145950.1411 | CB38: 147173.4565 | CC38: 134265.9808 | CD38: 141422.931 | CE38: 162225.6422 | CF38: 140927.1491 | CG38: 143156.4061 | CH38: 134316.7306 | CI38: 140259.7971 | CJ38: 147482.7646 | CK38: 136118.7585 | CL38: 146807.2724 | CM38: 127854.0433 | CN38: 136148.0801 | CO38: 132033.594 | CP38: 136488.5826 | CQ38: 149002.9544 | CR38: 139864.425 | CS38: 146838.5095 | CT38: 146959.0732 | CU38: 148988.6233 | CV38: 149050.2405 | CW38: 136412.1857 | CX38: 150704.2469 | CY38: 141907.4386 | CZ38: 142238.8679 | DA38: 143722.3069 | DB38: 145568.705 | DC38: 157691.175 | DD38: 149732.0254 | DE38: 147062.7098 | DF38: 135852.9891 | DG38: 153379.8258 | DH38: 150003.625 | DI38: 136960.3253 | DJ38: 151687.7098 | DK38: 143230.5062 | DL38: 150580.8279 | DM38: 133094.8019 | DN38: 150831.9152 | DO38: 163541.4437 | DP38: 162244.3546 | DQ38: 156416.8548 | DR38: 148357.6431 | DS38: 158966.7605 | DT38: 156610.4577 | DU38: 139954.4594 | DV38: 155152.3706 | DW38: 146404.0079 | DX38: 148828.2583 | DY38: 143324.5421 | DZ38: 160202.9695 | EA38: 163213.3838 | EB38: 141340.7875 | EC38: 162158.6031 | ED38: 151247.884 | EE38: 153849.5414 | EF38: 154096.6575 | EG38: 136227.2322 | EH38: 147906.903 | EI38: 149400.8717 | EJ38: 153789.0968 | EK38: 145528.4963 | EL38: 154911.9031 | EM38: 167959.8194 | EN38: 156106.9768 | EO38: 168564.4693 | EP38: 152326.8925 | EQ38: 151886.5484 | ER38: 119906.1208 | ES38: 107587.2584 | ET38: 114514.7809 | EU38: 111451.99 | EV38: 111896.4386 | EW38: 105832.4566 | EX38: 112978.2869 | EY38: 127676.6744 | EZ38: 121629.6646 | FA38: 123938.8267 | FB38: 106506.4175 | FC38: 114823.4445 | FD38: 113271.7768 | FE38: 99350.45705 | FF38: 104667.6989 | FG38: 102092.1915 | FH38: - | FI38: - | FJ38: - | FK38: - | FL38: - | FM38: - | FN38: - | FO38: -
C39: Turbina de gas | D39: 68714.1 | E39: 75977.2 | F39: 118638 | G39: 79392.3 | H39: 75151.7 | I39: 97542.9 | J39: 87354.8 | K39: 89376.3 | L39: 99412.456 | M39: 108266.6 | N39: 96352.1 | O39: 75582 | P39: 83393.7 | Q39: 82899.7 | R39: 89609 | S39: 82886.7 | T39: 80392 | U39: 65353.6 | V39: 62125.7 | W39: 72732.4 | X39: 81766.1 | Y39: 74569.3 | Z39: 71644.3 | AA39: 61938.5 | AB39: 64093.9 | AC39: 50347.7 | AD39: 37438.7 | AE39: 42645.2 | AF39: 52445.9 | AG39: 61236.5 | AH39: 61196.2 | AI39: 54908.1 | AJ39: 66188.2 | AK39: 47658 | AL39: 38209.6 | AM39: 39215.8 | AN39: 45246.5 | AO39: 28451.8 | AP39: 39054.6 | AQ39: 14679.6 | AR39: 49917.4 | AS39: 48675.9 | AT39: 33020 | AU39: 38325.3 | AV39: 51712.1046 | AW39: 40566.5 | AX39: 32808.7656 | AY39: 22365.2 | AZ39: 17538.352 | BA39: 24379.4122 | BB39: 26140.8641 | BC39: 18107.5466 | BD39: 40111.7028 | BE39: 41523.755 | BF39: 38763.1764 | BG39: 32482.4812 | BH39: 36885.8412 | BI39: 60557.2695 | BJ39: 58293.6614 | BK39: 51482.0917 | BL39: 44836.3903 | BM39: 48109.5485 | BN39: 63664.0589 | BO39: 39120.9832 | BP39: 43785.2298 | BQ39: 37882.8619 | BR39: 59875.6925 | BS39: 56833.608 | BT39: 73668.0932 | BU39: 74528.1238 | BV39: 75476.5531 | BW39: 69656.1632 | BX39: 65975.1677 | BY39: 61690.9579 | BZ39: 67062.3239 | CA39: 57234.6333 | CB39: 56826.8922 | CC39: 55282.188 | CD39: 54585.3802 | CE39: 64317.5429 | CF39: 79048.8309 | CG39: 83358.7053 | CH39: 62766.1099 | CI39: 70122.6708 | CJ39: 44814.2383 | CK39: 36868.4953 | CL39: 41059.3846 | CM39: 47187.0763 | CN39: 33247.851 | CO39: 28954.2799 | CP39: 41208.8222 | CQ39: 43341.8843 | CR39: 36894.8723 | CS39: 46288.0964 | CT39: 42562.2444 | CU39: 37052.7859 | CV39: 34119.0252 | CW39: 42401.4175 | CX39: 25079.262 | CY39: 27398.6869 | CZ39: 31997.2627 | DA39: 37406.3261 | DB39: 33774.6643 | DC39: 25233.8671 | DD39: 65090.4345 | DE39: 47320.312 | DF39: 47529.9708 | DG39: 51616.3544 | DH39: 36226.8608 | DI39: 37109.2189 | DJ39: 31152.8464 | DK39: 30645.966 | DL39: 48022.3523 | DM39: 45766.7158 | DN39: 36483.8279 | DO39: 32584.2036 | DP39: 42217.1061 | DQ39: 31034.8298 | DR39: 28963.4202 | DS39: 25939.5045 | DT39: 23959.429 | DU39: 28077.9252 | DV39: 23842.3172 | DW39: 24782.1171 | DX39: 22681.8748 | DY39: 18375.5195 | DZ39: 20267.2964 | EA39: 40603.4577 | EB39: 48878.0669 | EC39: 35331.7354 | ED39: 33510.139 | EE39: 38360.933 | EF39: 40406.457 | EG39: 30279.7625 | EH39: 32123.9217 | EI39: 24091.0267 | EJ39: 30715.1026 | EK39: 30009.655 | EL39: 36449.9655 | EM39: 36935.7976 | EN39: 41621.9622 | EO39: 39209.2714 | EP39: 33586.3723 | EQ39: 33220.1233 | ER39: 30519.03792 | ES39: 27721.52768 | ET39: 21616.86912 | EU39: 24663.13584 | EV39: 30504.78368 | EW39: 26919.42736 | EX39: 21360.2088 | EY39: 25169.43296 | EZ39: 31929.20416 | FA39: 28182.54096 | FB39: 28715.78752 | FC39: 21174.31008 | FD39: 24579.10336 | FE39: 21215.34128 | FF39: 21367.724 | FG39: 22410.31184 | FH39: - | FI39: - | FJ39: - | FK39: - | FL39: - | FM39: - | FN39: - | FO39: -
C40: Turbina de vapor | D40: 310039.51 | E40: 272262.57 | F40: 312607.16 | G40: 265438.94 | H40: 244058.47 | I40: 222442.15 | J40: 226562.85 | K40: 236636.76 | L40: 253385.67 | M40: 232355.86 | N40: 241188.22 | O40: 235713.83 | P40: 238267.24 | Q40: 217688.66 | R40: 241140.16 | S40: 262627.43 | T40: 198381 | U40: 249202.67 | V40: 226036.86 | W40: 267031.15 | X40: 257894.41 | Y40: 264899.6 | Z40: 249755.36 | AA40: 270131.91 | AB40: 289583.75 | AC40: 277048.1 | AD40: 257079.17 | AE40: 241402.71 | AF40: 254506.18 | AG40: 203341.86 | AH40: 243452.38 | AI40: 242981.57 | AJ40: 253737.22 | AK40: 266027.23 | AL40: 251619.02 | AM40: 257895.3 | AN40: 252658.54 | AO40: 219131.35 | AP40: 246949.19 | AQ40: 222954.79 | AR40: 257876.61 | AS40: 226554.84 | AT40: 237429.75 | AU40: 250785.09 | AV40: 250261.77 | AW40: 264825.73 | AX40: 221961.55 | AY40: 235439.71 | AZ40: 244957.9084 | BA40: 212785.909 | BB40: 229622.6922 | BC40: 208198.6381 | BD40: 226617.326 | BE40: 227508.0611 | BF40: 219290.1705 | BG40: 235657.3497 | BH40: 227773.4236 | BI40: 194970.5734 | BJ40: 197305.1199 | BK40: 220915.3514 | BL40: 212845.4838 | BM40: 199883.5719 | BN40: 235483.9136 | BO40: 203305.4109 | BP40: 196374.7762 | BQ40: 160524.7227 | BR40: 202359.0997 | BS40: 192270.3535 | BT40: 184399.4542 | BU40: 206381.7921 | BV40: 163428.532 | BW40: 187265.5435 | BX40: 208647.5879 | BY40: 176858.5118 | BZ40: 201844.119 | CA40: 182067.5038 | CB40: 176038.0947 | CC40: 197056.7138 | CD40: 210708.7166 | CE40: 207334.9545 | CF40: 197552.548 | CG40: 209651.6031 | CH40: 217670.8288 | CI40: 201278.193 | CJ40: 172721.2267 | CK40: 173341.5932 | CL40: 193748.5375 | CM40: 182969.3622 | CN40: 174252.3177 | CO40: 156749.2511 | CP40: 190411.0295 | CQ40: 189984.4961 | CR40: 180993.6761 | CS40: 198300.8769 | CT40: 183456.9522 | CU40: 195850.01 | CV40: 192860.7812 | CW40: 157300.4832 | CX40: 133660.4047 | CY40: 135577.972 | CZ40: 129936.6554 | DA40: 150210.7646 | DB40: 163140.8831 | DC40: 160596.8626 | DD40: 144243.044 | DE40: 151105.2146 | DF40: 150208.7915 | DG40: 174144.714 | DH40: 179899.697 | DI40: 156817.3227 | DJ40: 162005.9836 | DK40: 142017.0989 | DL40: 133926.4746 | DM40: 164769.2199 | DN40: 181590.802 | DO40: 183578.6544 | DP40: 192899.7098 | DQ40: 145150.2789 | DR40: 138574.2878 | DS40: 197196.475 | DT40: 204127.9516 | DU40: 183899.3125 | DV40: 195122.5498 | DW40: 172412.0149 | DX40: 154184.8246 | DY40: 182023.7835 | DZ40: 197958.5927 | EA40: 210309.9317 | EB40: 199364.9724 | EC40: 185635.4898 | ED40: 153114.3647 | EE40: 219013.4846 | EF40: 187426.2944 | EG40: 175800.2751 | EH40: 193721.0143 | EI40: 213703.6592 | EJ40: 187416.0594 | EK40: 218204.4114 | EL40: 213166.8343 | EM40: 210228.8651 | EN40: 196645.3843 | EO40: 197546.3349 | EP40: 185864.0952 | EQ40: 200487.2989 | ER40: 207346.3056 | ES40: 189368.2449 | ET40: 175682.7468 | EU40: 170602.7499 | EV40: 167768.2674 | EW40: 180027.7641 | EX40: 186024.3552 | EY40: 193449.5541 | EZ40: 169744.8096 | FA40: 181732.1607 | FB40: 201623.6286 | FC40: 186518.547 | FD40: 196785.5508 | FE40: 191683.6299 | FF40: 188154.279 | FG40: 179959.1166 | FH40: - | FI40: - | FJ40: - | FK40: - | FL40: - | FM40: - | FN40: - | FO40: -
C41: Ciclo combinado | D41: 98232.42 | E41: 84056.7 | F41: 61910.16 | G41: 108669.6 | H41: 120717.48 | I41: 131053.26 | J41: 146608.8 | K41: 160800.9 | L41: 156141.18 | M41: 168643.02 | N41: 159254.16 | O41: 169681.98 | P41: 158790.06 | Q41: 132865.2 | R41: 155496.12 | S41: 118652.04 | T41: 190260.72 | U41: 144596.4 | V41: 179006.1 | W41: 147597.84 | X41: 152524.32 | Y41: 179892.96 | Z41: 176931.3 | AA41: 169141.44 | AB41: 155833.86 | AC41: 130721.76 | AD41: 171349.62 | AE41: 168006.54 | AF41: 151561.02 | AG41: 187236.66 | AH41: 170546.22 | AI41: 172646.76 | AJ41: 178542 | AK41: 169869.96 | AL41: 171135.12 | AM41: 179737.74 | AN41: 170120.34 | AO41: 160038.84 | AP41: 173661.54 | AQ41: 154494.6 | AR41: 115893.96 | AS41: 157951.56 | AT41: 183058.2 | AU41: 165342.06 | AV41: 157361.1 | AW41: 180899.16 | AX41: 188445.66 | AY41: 183548.82 | AZ41: 179479.4539 | BA41: 158364.7322 | BB41: 178191.5288 | BC41: 168865.8925 | BD41: 150768.3434 | BE41: 148449.841 | BF41: 170572.0396 | BG41: 174953.486 | BH41: 183344.7486 | BI41: 208210.7867 | BJ41: 197949.8188 | BK41: 193409.2727 | BL41: 197087.0624 | BM41: 148718.6431 | BN41: 146057.8642 | BO41: 165530.6398 | BP41: 191509.1506 | BQ41: 214140.4902 | BR41: 172529.838 | BS41: 196670.7148 | BT41: 199697.5118 | BU41: 209346.3013 | BV41: 226359.3072 | BW41: 205761.114 | BX41: 201452.8495 | BY41: 181423.1718 | BZ41: 177498.2867 | CA41: 164543.6871 | CB41: 194106.7861 | CC41: 178216.8726 | CD41: 181477.5924 | CE41: 181552.4014 | CF41: 212533.2581 | CG41: 198026.3844 | CH41: 178736.117 | CI41: 189285.7013 | CJ41: 216865.864 | CK41: 172966.9523 | CL41: 190436.3222 | CM41: 189291.57 | CN41: 193685.3248 | CO41: 189748.5416 | CP41: 204435.1468 | CQ41: 209902.304 | CR41: 209839.7098 | CS41: 192406.3658 | CT41: 167250.3713 | CU41: 161168.8166 | CV41: 192795.3643 | CW41: 177001.5959 | CX41: 216893.3762 | CY41: 213090.7771 | CZ41: 216836.0197 | DA41: 194993.0744 | DB41: 209879.7964 | DC41: 204963.1015 | DD41: 246600.2058 | DE41: 223231.802 | DF41: 231530.8086 | DG41: 199845.601 | DH41: 198490.5452 | DI41: 175447.7033 | DJ41: 197346.4943 | DK41: 202090.3568 | DL41: 202175.0445 | DM41: 187919.8051 | DN41: 198923.5154 | DO41: 198387.9339 | DP41: 202441.7437 | DQ41: 272242.7066 | DR41: 241470.0109 | DS41: 209748.4358 | DT41: 191296.1357 | DU41: 169173.1844 | DV41: 180496.3259 | DW41: 191076.483 | DX41: 209536.7258 | DY41: 184272.9197 | DZ41: 186412.934 | EA41: 191356.4383 | EB41: 186187.2457 | EC41: 228073.4204 | ED41: 235912.769 | EE41: 192705.7361 | EF41: 218820.5003 | EG41: 182674.2824 | EH41: 194295.7903 | EI41: 170328.7872 | EJ41: 198064.5514 | EK41: 166431.266 | EL41: 179196.7414 | EM41: 202704.7378 | EN41: 183030.5217 | EO41: 225412.7881 | EP41: 219131.1424 | EQ41: 197862.9104 | ER41: 140340.975 | ES41: 129130.0632 | ET41: 156503.5086 | EU41: 147802.6098 | EV41: 149170.0734 | EW41: 140968.9416 | EX41: 138087.3576 | EY41: 151073.4312 | EZ41: 168884.8044 | FA41: 190241.4858 | FB41: 154018.1796 | FC41: 164391.5346 | FD41: 158704.3638 | FE41: 133178.8938 | FF41: 134713.6884 | FG41: 137816.1882 | FH41: - | FI41: - | FJ41: - | FK41: - | FL41: - | FM41: - | FN41: - | FO41: -
C42: Generación auxiliar | D42: - | E42: - | F42: - | G42: - | H42: - | I42: - | J42: - | K42: - | L42: - | M42: - | N42: - | O42: - | P42: 9006.54 | Q42: 8527.02 | R42: 8621.74 | S42: 8614.34 | T42: 8080.06 | U42: 6984.12 | V42: 7906.9 | W42: 9221.14 | X42: 8380.5 | Y42: 8830.42 | Z42: 7440.7 | AA42: 6688.12 | AB42: 7549.48 | AC42: 7147.66 | AD42: 8037.14 | AE42: 7423.68 | AF42: 5053.46 | AG42: 4743.4 | AH42: 5675.8 | AI42: 5814.92 | AJ42: 3804.34 | AK42: 3499.46 | AL42: 4060.38 | AM42: 3603.06 | AN42: 3244.9 | AO42: 2892.66 | AP42: 3449.14 | AQ42: 1913.64 | AR42: 2089.02 | AS42: 2373.92 | AT42: 3925.7 | AU42: 2479.74 | AV42: 1243.2 | AW42: 600.14 | AX42: 665.26 | AY42: 125.8 | AZ42: - | BA42: - | BB42: - | BC42: - | BD42: - | BE42: - | BF42: - | BG42: - | BH42: - | BI42: - | BJ42: - | BK42: - | BL42: - | BM42: - | BN42: - | BO42: - | BP42: - | BQ42: - | BR42: - | BS42: - | BT42: - | BU42: - | BV42: - | BW42: - | BX42: - | BY42: - | BZ42: - | CA42: - | CB42: - | CC42: - | CD42: - | CE42: - | CF42: - | CG42: - | CH42: - | CI42: - | CJ42: - | CK42: - | CL42: - | CM42: - | CN42: - | CO42: - | CP42: - | CQ42: - | CR42: - | CS42: - | CT42: - | CU42: - | CV42: - | CW42: - | CX42: - | CY42: - | CZ42: - | DA42: - | DB42: - | DC42: - | DD42: - | DE42: - | DF42: - | DG42: - | DH42: - | DI42: - | DJ42: - | DK42: - | DL42: - | DM42: - | DN42: - | DO42: - | DP42: - | DQ42: - | DR42: - | DS42: - | DT42: - | DU42: - | DV42: - | DW42: - | DX42: - | DY42: - | DZ42: - | EA42: - | EB42: - | EC42: - | ED42: - | EE42: - | EF42: - | EG42: - | EH42: - | EI42: - | EJ42: - | EK42: - | EL42: - | EM42: - | EN42: - | EO42: - | EP42: - | EQ42: - | ER42: - | ES42: - | ET42: - | EU42: - | EV42: - | EW42: - | EX42: - | EY42: - | EZ42: - | FA42: - | FB42: - | FC42: - | FD42: - | FE42: - | FF42: - | FG42: - | FH42: - | FI42: - | FJ42: - | FK42: - | FL42: - | FM42: - | FN42: - | FO42: -
C43: Térmica no renovable/Cogeneración y resto | D43: 1132.8748 | E43: - | F43: - | G43: - | H43: - | I43: - | J43: - | K43: - | L43: - | M43: - | N43: - | O43: - | P43: - | Q43: - | R43: - | S43: - | T43: - | U43: - | V43: - | W43: - | X43: - | Y43: - | Z43: - | AA43: - | AB43: - | AC43: - | AD43: - | AE43: - | AF43: - | AG43: - | AH43: - | AI43: - | AJ43: - | AK43: - | AL43: - | AM43: - | AN43: - | AO43: - | AP43: - | AQ43: - | AR43: 4 | AS43: 4 | AT43: - | AU43: - | AV43: - | AW43: - | AX43: - | AY43: - | AZ43: - | BA43: - | BB43: - | BC43: - | BD43: - | BE43: - | BF43: - | BG43: - | BH43: - | BI43: - | BJ43: - | BK43: - | BL43: 987.1388 | BM43: 2016.7812 | BN43: 2103.2368 | BO43: 1917.828 | BP43: 2467.61 | BQ43: 430.3516 | BR43: - | BS43: - | BT43: - | BU43: - | BV43: - | BW43: - | BX43: - | BY43: - | BZ43: - | CA43: - | CB43: - | CC43: - | CD43: - | CE43: - | CF43: - | CG43: - | CH43: - | CI43: - | CJ43: - | CK43: - | CL43: - | CM43: - | CN43: - | CO43: - | CP43: - | CQ43: - | CR43: - | CS43: - | CT43: - | CU43: - | CV43: - | CW43: - | CX43: - | CY43: - | CZ43: - | DA43: - | DB43: - | DC43: - | DD43: - | DE43: - | DF43: - | DG43: - | DH43: - | DI43: - | DJ43: - | DK43: - | DL43: - | DM43: - | DN43: - | DO43: - | DP43: - | DQ43: - | DR43: - | DS43: - | DT43: - | DU43: - | DV43: - | DW43: - | DX43: - | DY43: - | DZ43: - | EA43: - | EB43: - | EC43: - | ED43: - | EE43: - | EF43: - | EG43: - | EH43: - | EI43: - | EJ43: - | EK43: - | EL43: - | EM43: - | EN43: - | EO43: - | EP43: - | EQ43: - | ER43: - | ES43: - | ET43: - | EU43: - | EV43: - | EW43: - | EX43: - | EY43: - | EZ43: - | FA43: - | FB43: - | FC43: - | FD43: - | FE43: - | FF43: - | FG43: - | FH43: - | FI43: - | FJ43: - | FK43: - | FL43: - | FM43: - | FN43: - | FO43: -
C44: Cogeneración | D44: - | E44: - | F44: - | G44: - | H44: - | I44: - | J44: - | K44: - | L44: - | M44: - | N44: - | O44: - | P44: - | Q44: - | R44: - | S44: - | T44: - | U44: - | V44: - | W44: - | X44: - | Y44: - | Z44: - | AA44: - | AB44: - | AC44: - | AD44: - | AE44: - | AF44: - | AG44: - | AH44: - | AI44: - | AJ44: - | AK44: - | AL44: - | AM44: - | AN44: - | AO44: - | AP44: - | AQ44: - | AR44: - | AS44: - | AT44: - | AU44: - | AV44: - | AW44: - | AX44: - | AY44: - | AZ44: - | BA44: - | BB44: - | BC44: - | BD44: - | BE44: - | BF44: - | BG44: - | BH44: - | BI44: - | BJ44: - | BK44: - | BL44: - | BM44: - | BN44: - | BO44: - | BP44: - | BQ44: - | BR44: - | BS44: - | BT44: - | BU44: - | BV44: - | BW44: - | BX44: - | BY44: - | BZ44: - | CA44: - | CB44: - | CC44: - | CD44: - | CE44: - | CF44: - | CG44: - | CH44: - | CI44: - | CJ44: - | CK44: - | CL44: - | CM44: - | CN44: - | CO44: - | CP44: - | CQ44: - | CR44: - | CS44: - | CT44: - | CU44: - | CV44: - | CW44: - | CX44: - | CY44: - | CZ44: - | DA44: - | DB44: - | DC44: - | DD44: - | DE44: - | DF44: - | DG44: - | DH44: - | DI44: - | DJ44: - | DK44: - | DL44: - | DM44: - | DN44: - | DO44: - | DP44: - | DQ44: - | DR44: - | DS44: - | DT44: - | DU44: - | DV44: - | DW44: - | DX44: - | DY44: - | DZ44: - | EA44: - | EB44: - | EC44: - | ED44: - | EE44: - | EF44: - | EG44: - | EH44: - | EI44: - | EJ44: - | EK44: - | EL44: - | EM44: - | EN44: - | EO44: - | EP44: - | EQ44: - | ER44: - | ES44: - | ET44: - | EU44: - | EV44: - | EW44: - | EX44: - | EY44: - | EZ44: - | FA44: - | FB44: - | FC44: - | FD44: - | FE44: - | FF44: - | FG44: - | FH44: - | FI44: - | FJ44: - | FK44: - | FL44: - | FM44: - | FN44: - | FO44: -
C45: Emisiones (tCO2) | D45: 613839.5648 | E45: 553950.85 | F45: 621459.08 | G45: 571172.48 | H45: 580031.21 | I45: 596770.35 | J45: 604859.57 | K45: 633785.02 | L45: 658603.246 | M45: 656576.84 | N45: 626337.26 | O45: 620253.99 | P45: 643296.1 | Q45: 567567.68 | R45: 634453.16 | S45: 603158.87 | T45: 609187.9 | U45: 603695.89 | V45: 625186.4 | W45: 643072.25 | X45: 639802.15 | Y45: 669287.22 | Z45: 645311.88 | AA45: 646845.69 | AB45: 656382.27 | AC45: 604626.68 | AD45: 608884.01 | AE45: 599702.23 | AF45: 614954.14 | AG45: 596561.94 | AH45: 628783.02 | AI45: 625104.27 | AJ45: 653508.46 | AK45: 632682.55 | AL45: 604268.32 | AM45: 627488.56 | AN45: 615179.46 | AO45: 542888.89 | AP45: 600814.61 | AQ45: 526655.49 | AR45: 569215.39 | AS45: 580780.58 | AT45: 606634.29 | AU45: 607771.19 | AV45: 612410.1946 | AW45: 645543.49 | AX45: 594005.1956 | AY45: 600953.95 | AZ45: 596021.2637 | BA45: 532433.4396 | BB45: 588096.4728 | BC45: 537334.8327 | BD45: 550447.1752 | BE45: 552617.681 | BF45: 577329.4927 | BG45: 605729.5478 | BH45: 603738.0329 | BI45: 628054.0286 | BJ45: 605154.4035 | BK45: 617850.2245 | BL45: 610174.4163 | BM45: 537924.4433 | BN45: 600890.7365 | BO45: 554838.1733 | BP45: 573571.8593 | BQ45: 559949.7521 | BR45: 588247.6382 | BS45: 597974.4687 | BT45: 611841.4331 | BU45: 636367.9237 | BV45: 606980.1871 | BW45: 608803.3955 | BX45: 623128.7233 | BY45: 564846.0144 | BZ45: 593703.232 | CA45: 549795.9653 | CB45: 574145.2295 | CC45: 564821.7552 | CD45: 588194.6202 | CE45: 615430.541 | CF45: 630061.7861 | CG45: 634193.0989 | CH45: 593489.7864 | CI45: 600946.3621 | CJ45: 581884.0936 | CK45: 519295.7993 | CL45: 572051.5167 | CM45: 547302.0518 | CN45: 537333.5736 | CO45: 507485.6665 | CP45: 572543.5811 | CQ45: 592231.6389 | CR45: 567592.6833 | CS45: 583833.8486 | CT45: 540228.6412 | CU45: 543060.2358 | CV45: 568825.4113 | CW45: 513115.6824 | CX45: 526337.2898 | CY45: 517974.8747 | CZ45: 521008.8056 | DA45: 526332.472 | DB45: 552364.0488 | DC45: 548485.0062 | DD45: 605665.7098 | DE45: 568720.0384 | DF45: 565122.56 | DG45: 578986.4952 | DH45: 564620.728 | DI45: 506334.5703 | DJ45: 542193.0341 | DK45: 517983.9278 | DL45: 534704.6994 | DM45: 531550.5427 | DN45: 567830.0606 | DO45: 578092.2356 | DP45: 599802.9142 | DQ45: 604844.6701 | DR45: 557365.362 | DS45: 591851.1757 | DT45: 575993.974 | DU45: 521104.8815 | DV45: 554613.5634 | DW45: 534674.6228 | DX45: 535231.6836 | DY45: 527996.7648 | DZ45: 564841.7925 | EA45: 605483.2115 | EB45: 575771.0725 | EC45: 611199.2486 | ED45: 573785.1567 | EE45: 603929.6952 | EF45: 600749.9092 | EG45: 524981.5523 | EH45: 568047.6293 | EI45: 557524.3448 | EJ45: 569984.8101 | EK45: 560173.8288 | EL45: 583725.4443 | EM45: 617829.2199 | EN45: 577404.845 | EO45: 630732.8637 | EP45: 590908.5023 | EQ45: 583456.881 | ER45: 498112.4393 | ES45: 453807.0941 | ET45: 468317.9054 | EU45: 454520.4855 | EV45: 459339.563 | EW45: 453748.5897 | EX45: 458450.2085 | EY45: 497369.0927 | EZ45: 492188.4828 | FA45: 524095.0142 | FB45: 490864.0133 | FC45: 486907.8361 | FD45: 493340.7948 | FE45: 445428.322 | FF45: 448903.3903 | FG45: 442277.8081 | FH45: - | FI45: - | FJ45: - | FK45: - | FL45: - | FM45: - | FN45: - | FO45: -
C46: Factor de emision de CO2 (tCO2/MWh) | D46: 0.8505985744 | E46: 0.8514003243 | F46: 0.8608074532 | G46: 0.8259356283 | H46: 0.8140366184 | I46: 0.8320940307 | J46: 0.792492463 | K46: 0.8146368431 | L46: 0.8440643371 | M46: 0.8392635286 | N46: 0.8457502464 | O46: 0.8165803114 | P46: 0.8305642526 | Q46: 0.8265039194 | R46: 0.8292291325 | S46: 0.830437028 | T46: 0.808861941 | U46: 0.8141176129 | V46: 0.7772499027 | W46: 0.7956914376 | X46: 0.8234336088 | Y46: 0.8270738968 | Z46: 0.8285710911 | AA46: 0.8186552247 | AB46: 0.8289580786 | AC46: 0.8213451753 | AD46: 0.7844512626 | AE46: 0.7887414774 | AF46: 0.7987838615 | AG46: 0.7926153458 | AH46: 0.7929557948 | AI46: 0.7672608203 | AJ46: 0.8248141005 | AK46: 0.7938938008 | AL46: 0.7957128541 | AM46: 0.7941485813 | AN46: 0.7962725383 | AO46: 0.7877762171 | AP46: 0.798966223 | AQ46: 0.7401025439 | AR46: 0.7843273665 | AS46: 0.7893968551 | AT46: 0.7468823671 | AU46: 0.7505043609 | AV46: 0.7964482446 | AW46: 0.8033054508 | AX46: 0.7815718882 | AY46: 0.7847708189 | AZ46: 0.7915005905 | BA46: 0.792494763 | BB46: 0.7839244317 | BC46: 0.7561153988 | BD46: 0.763016764 | BE46: 0.7667963953 | BF46: 0.7635665398 | BG46: 0.7740544432 | BH46: 0.7864338262 | BI46: 0.8179564246 | BJ46: 0.8181594634 | BK46: 0.8203759146 | BL46: 0.8195562975 | BM46: 0.8040803166 | BN46: 0.8155685693 | BO46: 0.7958567902 | BP46: 0.7994358027 | BQ46: 0.770783304 | BR46: 0.771541987 | BS46: 0.7710958547 | BT46: 0.8036356752 | BU46: 0.815610753 | BV46: 0.8246697034 | BW46: 0.8052144353 | BX46: 0.8217424871 | BY46: 0.7983595816 | BZ46: 0.7990208948 | CA46: 0.7977727978 | CB46: 0.7947076687 | CC46: 0.777894227 | CD46: 0.7652477031 | CE46: 0.7742396127 | CF46: 0.8246334704 | CG46: 0.8285442669 | CH46: 0.8249360988 | CI46: 0.8252093859 | CJ46: 0.7947136958 | CK46: 0.7872617086 | CL46: 0.8052186282 | CM46: 0.7861661485 | CN46: 0.7647780481 | CO46: 0.7431562191 | CP46: 0.7657854706 | CQ46: 0.77125336 | CR46: 0.7873456586 | CS46: 0.7980599238 | CT46: 0.7958358707 | CU46: 0.8038080048 | CV46: 0.7884725933 | CW46: 0.7817602154 | CX46: 0.7463033019 | CY46: 0.7684645739 | CZ46: 0.7497281312 | DA46: 0.7668512993 | DB46: 0.7565525254 | DC46: 0.735880067 | DD46: 0.8121902584 | DE46: 0.8020070018 | DF46: 0.7998729845 | DG46: 0.8042159411 | DH46: 0.7752773817 | DI46: 0.7682087258 | DJ46: 0.7612907504 | DK46: 0.7709782262 | DL46: 0.7624489351 | DM46: 0.7786198304 | DN46: 0.7429896479 | DO46: 0.7566901848 | DP46: 0.8032645538 | DQ46: 0.7991852577 | DR46: 0.7814026933 | DS46: 0.8077269576 | DT46: 0.7946085154 | DU46: 0.767113805 | DV46: 0.7718781524 | DW46: 0.7762296312 | DX46: 0.7661973494 | DY46: 0.7475414977 | DZ46: 0.7412867002 | EA46: 0.7653865358 | EB46: 0.7694879801 | EC46: 0.8029451695 | ED46: 0.7953300834 | EE46: 0.8119851897 | EF46: 0.805935181 | EG46: 0.7892036328 | EH46: 0.7710548911 | EI46: 0.7901107196 | EJ46: 0.7818803639 | EK46: 0.7671963223 | EL46: 0.7582425849 | EM46: 0.7655274733 | EN46: 0.7607589204 | EO46: 0.7985360629 | EP46: 0.7944867312 | EQ46: 0.7785158351 | ER46: 0.6595006933 | ES46: 0.6649932741 | ET46: 0.6416221448 | EU46: 0.646336569 | EV46: 0.6415819466 | EW46: 0.6414174527 | EX46: 0.6039848968 | EY46: 0.635703246 | EZ46: 0.6435821462 | FA46: 0.6730662112 | FB46: 0.6806629738 | FC46: 0.6575405533 | FD46: 0.6531539241 | FE46: 0.6565618117 | FF46: 0.6083609336 | FG46: 0.6314997731 | FH46: - | FI46: - | FJ46: - | FK46: - | FL46: - | FM46: - | FN46: - | FO46: -
C48: Emisiones de CO2 asociadas a la generación mensual Ceuta | D48: 2007-01-01 | E48: 2007-02-01 | F48: 2007-03-01 | G48: 2007-04-01 | H48: 2007-05-01 | I48: 2007-06-01 | J48: 2007-07-01 | K48: 2007-08-01 | L48: 2007-09-01 | M48: 2007-10-01 | N48: 2007-11-01 | O48: 2007-12-01 | P48: 2008-01-01 | Q48: 2008-02-01 | R48: 2008-03-01 | S48: 2008-04-01 | T48: 2008-05-01 | U48: 2008-06-01 | V48: 2008-07-01 | W48: 2008-08-01 | X48: 2008-09-01 | Y48: 2008-10-01 | Z48: 2008-11-01 | AA48: 2008-12-01 | AB48: 2009-01-01 | AC48: 2009-02-01 | AD48: 2009-03-01 | AE48: 2009-04-01 | AF48: 2009-05-01 | AG48: 2009-06-01 | AH48: 2009-07-01 | AI48: 2009-08-01 | AJ48: 2009-09-01 | AK48: 2009-10-01 | AL48: 2009-11-01 | AM48: 2009-12-01 | AN48: 2010-01-01 | AO48: 2010-02-01 | AP48: 2010-03-01 | AQ48: 2010-04-01 | AR48: 2010-05-01 | AS48: 2010-06-01 | AT48: 2010-07-01 | AU48: 2010-08-01 | AV48: 2010-09-01 | AW48: 2010-10-01 | AX48: 2010-11-01 | AY48: 2010-12-01 | AZ48: 2011-01-01 | BA48: 2011-02-01 | BB48: 2011-03-01 | BC48: 2011-04-01 | BD48: 2011-05-01 | BE48: 2011-06-01 | BF48: 2011-07-01 | BG48: 2011-08-01 | BH48: 2011-09-01 | BI48: 2011-10-01 | BJ48: 2011-11-01 | BK48: 2011-12-01 | BL48: 2012-01-01 | BM48: 2012-02-01 | BN48: 2012-03-01 | BO48: 2012-04-01 | BP48: 2012-05-01 | BQ48: 2012-06-01 | BR48: 2012-07-01 | BS48: 2012-08-01 | BT48: 2012-09-01 | BU48: 2012-10-01 | BV48: 2012-11-01 | BW48: 2012-12-01 | BX48: 2013-01-01 | BY48: 2013-02-01 | BZ48: 2013-03-01 | CA48: 2013-04-01 | CB48: 2013-05-01 | CC48: 2013-06-01 | CD48: 2013-07-01 | CE48: 2013-08-01 | CF48: 2013-09-01 | CG48: 2013-10-01 | CH48: 2013-11-01 | CI48: 2013-12-01 | CJ48: 2014-01-01 | CK48: 2014-02-01 | CL48: 2014-03-01 | CM48: 2014-04-01 | CN48: 2014-05-01 | CO48: 2014-06-01 | CP48: 2014-07-01 | CQ48: 2014-08-01 | CR48: 2014-09-01 | CS48: 2014-10-01 | CT48: 2014-11-01 | CU48: 2014-12-01 | CV48: 2015-01-01 | CW48: 2015-02-01 | CX48: 2015-03-01 | CY48: 2015-04-01 | CZ48: 2015-05-01 | DA48: 2015-06-01 | DB48: 2015-07-01 | DC48: 2015-08-01 | DD48: 2015-09-01 | DE48: 2015-10-01 | DF48: 2015-11-01 | DG48: 2015-12-01 | DH48: 2016-01-01 | DI48: 2016-02-01 | DJ48: 2016-03-01 | DK48: 2016-04-01 | DL48: 2016-05-01 | DM48: 2016-06-01 | DN48: 2016-07-01 | DO48: 2016-08-01 | DP48: 2016-09-01 | DQ48: 2016-10-01 | DR48: 2016-11-01 | DS48: 2016-12-01 | DT48: 2017-01-01 | DU48: 2017-02-01 | DV48: 2017-03-01 | DW48: 2017-04-01 | DX48: 2017-05-01 | DY48: 2017-06-01 | DZ48: 2017-07-01 | EA48: 2017-08-01 | EB48: 2017-09-01 | EC48: 2017-10-01 | ED48: 2017-11-01 | EE48: 2017-12-01 | EF48: 2018-01-01 | EG48: 2018-02-01 | EH48: 2018-03-01 | EI48: 2018-04-01 | EJ48: 2018-05-01 | EK48: 2018-06-01 | EL48: 2018-07-01 | EM48: 2018-08-01 | EN48: 2018-09-01 | EO48: 2018-10-01 | EP48: 2018-11-01 | EQ48: 2018-12-01 | ER48: 2019-01-01 | ES48: 2019-02-01 | ET48: 2019-03-01 | EU48: 2019-04-01 | EV48: 2019-05-01 | EW48: 2019-06-01 | EX48: 2019-07-01 | EY48: 2019-08-01 | EZ48: 2019-09-01 | FA48: 2019-10-01 | FB48: 2019-11-01 | FC48: 2019-12-01
C49: Motores diesel | D49: 13849.99 | E49: 12373.13 | F49: 12866.7 | G49: 12072.06 | H49: 12601.82 | I49: 12493.25 | J49: 13414.17 | K49: 13406.47 | L49: 12945.24 | M49: 13304.83 | N49: 12972.19 | O49: 13736.03 | P49: 14130.27 | Q49: 13229.37 | R49: 12887.49 | S49: 12561.01 | T49: 12869.01 | U49: 12829.74 | V49: 13918.52 | W49: 13953.94 | X49: 13402.62 | Y49: 13219.36 | Z49: 13452.67 | AA49: 14992.67 | AB49: 14997.29 | AC49: 12950.63 | AD49: 13254.01 | AE49: 11885.72 | AF49: 12509.42 | AG49: 13329.47 | AH49: 14411.32 | AI49: 12870.55 | AJ49: 13819.96 | AK49: 14001.68 | AL49: 12393.15 | AM49: 13980.12 | AN49: 12963.28187 | AO49: 13034.84413 | AP49: 13432.34739 | AQ49: 12500.23929 | AR49: 13337.11995 | AS49: 13677.57853 | AT49: 14933.70571 | AU49: 15570.38945 | AV49: 14561.49233 | AW49: 14193.69875 | AX49: 13736.20787 | AY49: 13352.10261 | AZ49: 12880.09415 | BA49: 11716.92368 | BB49: 12650.60566 | BC49: 11530.56212 | BD49: 12282.56337 | BE49: 13340.52258 | BF49: 14341.54722 | BG49: 14208.81385 | BH49: 12850.26974 | BI49: 13644.13358 | BJ49: 12898.21764 | BK49: 13709.2417 | BL49: 14260.25601 | BM49: 13776.98784 | BN49: 13489.7994 | BO49: 12831.28 | BP49: 13371.05616 | BQ49: 13446.51077 | BR49: 13657.81186 | BS49: 14258.29405 | BT49: 13183.61429 | BU49: 13575.99628 | BV49: 13349.97972 | BW49: 13661.72115 | BX49: 13759.64821 | BY49: 11947.0043 | BZ49: 11868.22483 | CA49: 11197.45781 | CB49: 11999.00856 | CC49: 12130.32051 | CD49: 13757.36747 | CE49: 14593.99942 | CF49: 13341.72917 | CG49: 13046.35871 | CH49: 13455.74076 | CI49: 14216.29209 | CJ49: 14478.49403 | CK49: 13256.30768 | CL49: 13595.7129 | CM49: 11392.17772 | CN49: 13159.79511 | CO49: 13323.00123 | CP49: 14073.68501 | CQ49: 14341.98535 | CR49: 14255.087 | CS49: 14010.35405 | CT49: 13366.2298 | CU49: 14104.69137 | CV49: 14397.67945 | CW49: 12322.57334 | CX49: 12240.76007 | CY49: 11659.22219 | CZ49: 12765.78842 | DA49: 13002.57728 | DB49: 14637.31115 | DC49: 14329.72926 | DD49: 12771.30547 | DE49: 13063.67678 | DF49: 12158.45323 | DG49: 13159.05129 | DH49: 13329.17278 | DI49: 13075.293 | DJ49: 13044.00867 | DK49: 12539.98053 | DL49: 13050.05471 | DM49: 13045.73809 | DN49: 14085.09949 | DO49: 14772.56473 | DP49: 13945.03187 | DQ49: 13752.72206 | DR49: 13427.24383 | DS49: 14062.74408 | DT49: 14275.54821 | DU49: 12095.23007 | DV49: 12591.18476 | DW49: 11503.11162 | DX49: 12705.8932 | DY49: 13216.86982 | DZ49: 13535.35337 | EA49: 14378.22078 | EB49: 13124.30042 | EC49: 12286.71521 | ED49: 12573.08745 | EE49: 13753.70304 | EF49: 14278.50116 | EG49: 13162.15362 | EH49: 13538.03066 | EI49: 12562.63701 | EJ49: 12578.18793 | EK49: 12307.07093 | EL49: 13216.03899 | EM49: 13637.59705 | EN49: 13914.85634 | EO49: 13674.09967 | EP49: 13385.98569 | EQ49: 13316.66721 | ER49: 13729.0076 | ES49: 12334.51373 | ET49: 12780.15816 | EU49: 11719.27141 | EV49: - | EW49: - | EX49: - | EY49: - | EZ49: - | FA49: - | FB49: - | FC49: -
C50: Turbina de gas | D50: - | E50: - | F50: - | G50: - | H50: - | I50: - | J50: - | K50: - | L50: - | M50: - | N50: - | O50: - | P50: - | Q50: - | R50: - | S50: - | T50: - | U50: - | V50: - | W50: - | X50: - | Y50: - | Z50: - | AA50: - | AB50: - | AC50: - | AD50: - | AE50: - | AF50: - | AG50: - | AH50: 117.66 | AI50: 1375.66 | AJ50: - | AK50: - | AL50: 759.24 | AM50: 154.66 | AN50: 1512.0309 | AO50: 410.03474 | AP50: - | AQ50: 109.0057 | AR50: 89.59254 | AS50: - | AT50: - | AU50: - | AV50: - | AW50: - | AX50: - | AY50: 2.2977 | AZ50: 19.68326 | BA50: 23.45948 | BB50: - | BC50: - | BD50: 129.16478 | BE50: 23.70146 | BF50: 15.79974 | BG50: 0.70078 | BH50: - | BI50: 2.87934 | BJ50: 4.9691 | BK50: 6.0939 | BL50: - | BM50: 105.91176 | BN50: 81.46216 | BO50: 7.61238 | BP50: 100.122 | BQ50: 18.64356 | BR50: 12.62218 | BS50: 29.30178 | BT50: 1.67906 | BU50: 43.031 | BV50: 14.8444 | BW50: - | BX50: 26.83462 | BY50: 30.6545 | BZ50: 0.02368 | CA50: 24.494 | CB50: 87.21714 | CC50: 6.7599 | CD50: - | CE50: - | CF50: - | CG50: - | CH50: 8.19328 | CI50: 7.8847 | CJ50: 1.88774 | CK50: - | CL50: 58.33124 | CM50: - | CN50: 0.18722 | CO50: 0.16058 | CP50: - | CQ50: 0.1665 | CR50: 0.19018 | CS50: 0.23384 | CT50: 7.31638 | CU50: - | CV50: 0.12654 | CW50: 171.02584 | CX50: 0.40478 | CY50: 0.34928 | CZ50: 50.16608 | DA50: 7.18688 | DB50: 108.11844 | DC50: 0.72742 | DD50: 0.38184 | DE50: - | DF50: 227.96736 | DG50: 0.22348 | DH50: 0.40552 | DI50: 0.50246 | DJ50: 0.39294 | DK50: 0.3219 | DL50: 0.39294 | DM50: 0.14134 | DN50: 0.4736 | DO50: 0.71558 | DP50: 71.74374 | DQ50: 3.09912 | DR50: 12.38982 | DS50: 0.3996 | DT50: 0.28268 | DU50: 11.70902 | DV50: 0.3256 | DW50: 0.43586 | DX50: 0.42846 | DY50: 4.5066 | DZ50: 2.66326 | EA50: 0.3145 | EB50: 97.96564 | EC50: 5.78606 | ED50: 32.82862 | EE50: - | EF50: 0.40922 | EG50: 3.9664 | EH50: 2.30584 | EI50: 0.40922 | EJ50: 5.61956 | EK50: 0.38332 | EL50: 0.66896 | EM50: 0.44326 | EN50: 3.1043 | EO50: 70.7144 | EP50: 0.46694 | EQ50: 0.37222 | ER50: 0.26566 | ES50: 0.50172 | ET50: 0.46398 | EU50: 0.93314 | EV50: - | EW50: - | EX50: - | EY50: - | EZ50: - | FA50: - | FB50: - | FC50: -
C51: Emisiones (tCO2) | D51: 13849.99 | E51: 12373.13 | F51: 12866.7 | G51: 12072.06 | H51: 12601.82 | I51: 12493.25 | J51: 13414.17 | K51: 13406.47 | L51: 12945.24 | M51: 13304.83 | N51: 12972.19 | O51: 13736.03 | P51: 14130.27 | Q51: 13229.37 | R51: 12887.49 | S51: 12561.01 | T51: 12869.01 | U51: 12829.74 | V51: 13918.52 | W51: 13953.94 | X51: 13402.62 | Y51: 13219.36 | Z51: 13452.67 | AA51: 14992.67 | AB51: 14997.29 | AC51: 12950.63 | AD51: 13254.01 | AE51: 11885.72 | AF51: 12509.42 | AG51: 13329.47 | AH51: 14528.98 | AI51: 14246.21 | AJ51: 13819.96 | AK51: 14001.68 | AL51: 13152.39 | AM51: 14134.78 | AN51: 14475.31277 | AO51: 13444.87887 | AP51: 13432.34739 | AQ51: 12609.24499 | AR51: 13426.71249 | AS51: 13677.57853 | AT51: 14933.70571 | AU51: 15570.38945 | AV51: 14561.49233 | AW51: 14193.69875 | AX51: 13736.20787 | AY51: 13354.40031 | AZ51: 12899.77741 | BA51: 11740.38316 | BB51: 12650.60566 | BC51: 11530.56212 | BD51: 12411.72815 | BE51: 13364.22404 | BF51: 14357.34696 | BG51: 14209.51463 | BH51: 12850.26974 | BI51: 13647.01292 | BJ51: 12903.18674 | BK51: 13715.3356 | BL51: 14260.25601 | BM51: 13882.8996 | BN51: 13571.26156 | BO51: 12838.89238 | BP51: 13471.17816 | BQ51: 13465.15433 | BR51: 13670.43404 | BS51: 14287.59583 | BT51: 13185.29335 | BU51: 13619.02728 | BV51: 13364.82412 | BW51: 13661.72115 | BX51: 13786.48283 | BY51: 11977.6588 | BZ51: 11868.24851 | CA51: 11221.95181 | CB51: 12086.2257 | CC51: 12137.08041 | CD51: 13757.36747 | CE51: 14593.99942 | CF51: 13341.72917 | CG51: 13046.35871 | CH51: 13463.93404 | CI51: 14224.17679 | CJ51: 14480.38177 | CK51: 13256.30768 | CL51: 13654.04414 | CM51: 11392.17772 | CN51: 13159.98233 | CO51: 13323.16181 | CP51: 14073.68501 | CQ51: 14342.15185 | CR51: 14255.27718 | CS51: 14010.58789 | CT51: 13373.54618 | CU51: 14104.69137 | CV51: 14397.80599 | CW51: 12493.59918 | CX51: 12241.16485 | CY51: 11659.57147 | CZ51: 12815.9545 | DA51: 13009.76416 | DB51: 14745.42959 | DC51: 14330.45668 | DD51: 12771.68731 | DE51: 13063.67678 | DF51: 12386.42059 | DG51: 13159.27477 | DH51: 13329.5783 | DI51: 13075.79546 | DJ51: 13044.40161 | DK51: 12540.30243 | DL51: 13050.44765 | DM51: 13045.87943 | DN51: 14085.57309 | DO51: 14773.28031 | DP51: 14016.77561 | DQ51: 13755.82118 | DR51: 13439.63365 | DS51: 14063.14368 | DT51: 14275.83089 | DU51: 12106.93909 | DV51: 12591.51036 | DW51: 11503.54748 | DX51: 12706.32166 | DY51: 13221.37642 | DZ51: 13538.01663 | EA51: 14378.53528 | EB51: 13222.26606 | EC51: 12292.50127 | ED51: 12605.91607 | EE51: 13753.70304 | EF51: 14278.91038 | EG51: 13166.12002 | EH51: 13540.3365 | EI51: 12563.04623 | EJ51: 12583.80749 | EK51: 12307.45425 | EL51: 13216.70795 | EM51: 13638.04031 | EN51: 13917.96064 | EO51: 13744.81407 | EP51: 13386.45263 | EQ51: 13317.03943 | ER51: 13729.27326 | ES51: 12335.01545 | ET51: 12780.62214 | EU51: 11720.20455 | EV51: - | EW51: - | EX51: - | EY51: - | EZ51: - | FA51: - | FB51: - | FC51: -
C52: Factor de emision de CO2 (tCO2/MWh) | D52: 0.77 | E52: 0.77 | F52: 0.77 | G52: 0.77 | H52: 0.77 | I52: 0.77 | J52: 0.77 | K52: 0.77 | L52: 0.77 | M52: 0.77 | N52: 0.77 | O52: 0.77 | P52: 0.77 | Q52: 0.77 | R52: 0.77 | S52: 0.77 | T52: 0.77 | U52: 0.77 | V52: 0.77 | W52: 0.77 | X52: 0.77 | Y52: 0.77 | Z52: 0.77 | AA52: 0.77 | AB52: 0.77 | AC52: 0.77 | AD52: 0.77 | AE52: 0.77 | AF52: 0.77 | AG52: 0.77 | AH52: 0.7697472848 | AI52: 0.7669974157 | AJ52: 0.77 | AK52: 0.77 | AL52: 0.7682022078 | AM52: 0.7696585897 | AN52: 0.7667530339 | AO52: 0.7690491601 | AP52: 0.77 | AQ52: 0.7697302334 | AR52: 0.7697917596 | AS52: 0.77 | AT52: 0.77 | AU52: 0.77 | AV52: 0.77 | AW52: 0.77 | AX52: 0.77 | AY52: 0.7699946291 | AZ52: 0.7699523714 | BA52: 0.7699376292 | BB52: 0.77 | BC52: 0.77 | BD52: 0.7696752801 | BE52: 0.769944642 | BF52: 0.7699656492 | BG52: 0.7699984605 | BH52: 0.77 | BI52: 0.7699934138 | BJ52: 0.7699879786 | BK52: 0.7699861305 | BL52: 0.77 | BM52: 0.7697619271 | BN52: 0.7698126687 | BO52: 0.7699814919 | BP52: 0.7697680612 | BQ52: 0.7699567811 | BR52: 0.7699711785 | BS52: 0.7699359854 | BT52: 0.7699960248 | BU52: 0.7699013811 | BV52: 0.7699653295 | BW52: 0.77 | BX52: 0.7699392442 | BY52: 0.7699201164 | BZ52: 0.7699999377 | CA52: 0.7699318708 | CB52: 0.7697748021 | CC52: 0.7699826141 | CD52: 0.77 | CE52: 0.77 | CF52: 0.77 | CG52: 0.77 | CH52: 0.7699810043 | CI52: 0.7699826967 | CJ52: 0.7699959305 | CK52: 0.77 | CL52: 0.7698666648 | CM52: 0.77 | CN52: 0.7699995559 | CO52: 0.7699996238 | CP52: 0.77 | CQ52: 0.7699996376 | CR52: 0.7699995835 | CS52: 0.769999479 | CT52: 0.7699829227 | CU52: 0.77 | CV52: 0.7699997256 | CW52: 0.7695729158 | CX52: 0.7699989678 | CY52: 0.7699990649 | CZ52: 0.7698778283 | DA52: 0.7699827559 | DB52: 0.7697711802 | DC52: 0.7699984155 | DD52: 0.7699990667 | DE52: 0.77 | DF52: 0.7694259058 | DG52: 0.7699994699 | DH52: 0.7699990503 | DI52: 0.7699988005 | DJ52: 0.7699990597 | DK52: 0.7699991987 | DL52: 0.7699990601 | DM52: 0.7699996618 | DN52: 0.7699989504 | DO52: 0.769998488 | DP52: 0.7698402555 | DQ52: 0.7699929672 | DR52: 0.7699712233 | DS52: 0.769999113 | DT52: 0.7699993819 | DU52: 0.769969811 | DV52: 0.7699991928 | DW52: 0.7699988172 | DX52: 0.7699989474 | DY52: 0.7699893599 | DZ52: 0.7699938591 | EA52: 0.7699993172 | EB52: 0.7697687841 | EC52: 0.7699853069 | ED52: 0.7699187146 | EE52: 0.77 | EF52: 0.7699991054 | EG52: 0.769990596 | EH52: 0.7699946841 | EI52: 0.7699989832 | EJ52: 0.76998606 | EK52: 0.7699990278 | EL52: 0.76999842 | EM52: 0.7699989854 | EN52: 0.7699930375 | EO52: 0.7698394321 | EP52: 0.7699989111 | EQ52: 0.7699991275 | ER52: 0.769999396 | ES52: 0.7699987303 | ET52: 0.7699988667 | EU52: 0.7699975146 | EV52: - | EW52: - | EX52: - | EY52: - | EZ52: - | FA52: - | FB52: - | FC52: -
C54: Emisiones de CO2 asociadas a la generación mensual Melilla | D54: 2007-01-01 | E54: 2007-02-01 | F54: 2007-03-01 | G54: 2007-04-01 | H54: 2007-05-01 | I54: 2007-06-01 | J54: 2007-07-01 | K54: 2007-08-01 | L54: 2007-09-01 | M54: 2007-10-01 | N54: 2007-11-01 | O54: 2007-12-01 | P54: 2008-01-01 | Q54: 2008-02-01 | R54: 2008-03-01 | S54: 2008-04-01 | T54: 2008-05-01 | U54: 2008-06-01 | V54: 2008-07-01 | W54: 2008-08-01 | X54: 2008-09-01 | Y54: 2008-10-01 | Z54: 2008-11-01 | AA54: 2008-12-01 | AB54: 2009-01-01 | AC54: 2009-02-01 | AD54: 2009-03-01 | AE54: 2009-04-01 | AF54: 2009-05-01 | AG54: 2009-06-01 | AH54: 2009-07-01 | AI54: 2009-08-01 | AJ54: 2009-09-01 | AK54: 2009-10-01 | AL54: 2009-11-01 | AM54: 2009-12-01 | AN54: 2010-01-01 | AO54: 2010-02-01 | AP54: 2010-03-01 | AQ54: 2010-04-01 | AR54: 2010-05-01 | AS54: 2010-06-01 | AT54: 2010-07-01 | AU54: 2010-08-01 | AV54: 2010-09-01 | AW54: 2010-10-01 | AX54: 2010-11-01 | AY54: 2010-12-01 | AZ54: 2011-01-01 | BA54: 2011-02-01 | BB54: 2011-03-01 | BC54: 2011-04-01 | BD54: 2011-05-01 | BE54: 2011-06-01 | BF54: 2011-07-01 | BG54: 2011-08-01 | BH54: 2011-09-01 | BI54: 2011-10-01 | BJ54: 2011-11-01 | BK54: 2011-12-01 | BL54: 2012-01-01 | BM54: 2012-02-01 | BN54: 2012-03-01 | BO54: 2012-04-01 | BP54: 2012-05-01 | BQ54: 2012-06-01 | BR54: 2012-07-01 | BS54: 2012-08-01 | BT54: 2012-09-01 | BU54: 2012-10-01 | BV54: 2012-11-01 | BW54: 2012-12-01 | BX54: 2013-01-01 | BY54: 2013-02-01 | BZ54: 2013-03-01 | CA54: 2013-04-01 | CB54: 2013-05-01 | CC54: 2013-06-01 | CD54: 2013-07-01 | CE54: 2013-08-01 | CF54: 2013-09-01 | CG54: 2013-10-01 | CH54: 2013-11-01 | CI54: 2013-12-01 | CJ54: 2014-01-01 | CK54: 2014-02-01 | CL54: 2014-03-01 | CM54: 2014-04-01 | CN54: 2014-05-01 | CO54: 2014-06-01 | CP54: 2014-07-01 | CQ54: 2014-08-01 | CR54: 2014-09-01 | CS54: 2014-10-01 | CT54: 2014-11-01 | CU54: 2014-12-01 | CV54: 2015-01-01 | CW54: 2015-02-01 | CX54: 2015-03-01 | CY54: 2015-04-01 | CZ54: 2015-05-01 | DA54: 2015-06-01 | DB54: 2015-07-01 | DC54: 2015-08-01 | DD54: 2015-09-01 | DE54: 2015-10-01 | DF54: 2015-11-01 | DG54: 2015-12-01 | DH54: 2016-01-01 | DI54: 2016-02-01 | DJ54: 2016-03-01 | DK54: 2016-04-01 | DL54: 2016-05-01 | DM54: 2016-06-01 | DN54: 2016-07-01 | DO54: 2016-08-01 | DP54: 2016-09-01 | DQ54: 2016-10-01 | DR54: 2016-11-01 | DS54: 2016-12-01 | DT54: 2017-01-01 | DU54: 2017-02-01 | DV54: 2017-03-01 | DW54: 2017-04-01 | DX54: 2017-05-01 | DY54: 2017-06-01 | DZ54: 2017-07-01 | EA54: 2017-08-01 | EB54: 2017-09-01 | EC54: 2017-10-01 | ED54: 2017-11-01 | EE54: 2017-12-01 | EF54: 2018-01-01 | EG54: 2018-01-01 | EH54: 2018-03-01 | EI54: 2018-04-01 | EJ54: 2018-05-01 | EK54: 2018-06-01 | EL54: 2018-07-01 | EM54: 2018-08-01 | EN54: 2018-09-01 | EO54: 2018-10-01 | EP54: 2018-11-01 | EQ54: 2018-12-01 | ER54: 2019-01-01 | ES54: 2019-02-01 | ET54: 2019-03-01 | EU54: 2019-04-01 | EV54: 2019-05-01 | EW54: 2019-06-01 | EX54: 2019-07-01 | EY54: 2019-08-01 | EZ54: 2019-09-01 | FA54: 2019-10-01 | FB54: 2019-11-01 | FC54: 2019-12-01
C55: Motores diesel | D55: 10972.5 | E55: 9696.61 | F55: 10363.43 | G55: 10575.6035 | H55: 11573.1 | I55: 12102.1285 | J55: 13698.9622 | K55: 13117.5352 | L55: 12499.718 | M55: 12452.5324 | N55: 10933.23 | O55: 12052.81 | P55: 11962.72 | Q55: 11259.71 | R55: 11053.35 | S55: 11160.38 | T55: 11528.44 | U55: 12342.33 | V55: 13932.38 | W55: 14804.02 | X55: 12997.6 | Y55: 12132.89 | Z55: 11902.66 | AA55: 13629.77 | AB55: 13669.81 | AC55: 11695.53 | AD55: 11903.43 | AE55: 10915.52 | AF55: 11720.94 | AG55: 12460.91 | AH55: 14481.39 | AI55: 14921.83 | AJ55: 12660.34 | AK55: 13369.51 | AL55: 11879.56 | AM55: 12437.04 | AN55: 13053.23404 | AO55: 11746.72807 | AP55: 12618.59214 | AQ55: 11556.03757 | AR55: 12077.77263 | AS55: 12919.20784 | AT55: 14603.31565 | AU55: 15852.9525 | AV55: 13737.38828 | AW55: 12952.64971 | AX55: 12932.47648 | AY55: 13582.48276 | AZ55: 13188.66241 | BA55: 12059.42507 | BB55: 12577.70976 | BC55: 11464.13268 | BD55: 12492.5339 | BE55: 13378.69533 | BF55: 14423.28272 | BG55: 15540.91462 | BH55: 13876.35711 | BI55: 13453.63096 | BJ55: 12981.93281 | BK55: 14136.38688 | BL55: 14620.36191 | BM55: 14194.2031 | BN55: 13548.58813 | BO55: 12317.63456 | BP55: 13139.38626 | BQ55: 14067.88999 | BR55: 15433.88308 | BS55: 16150.39118 | BT55: 13620.93194 | BU55: 13440.64337 | BV55: 12037.27602 | BW55: 12824.96831 | BX55: 13175.35758 | BY55: 11957.1298 | BZ55: 12195.00128 | CA55: 11661.65924 | CB55: 12345.69105 | CC55: 12132.04839 | CD55: 13987.02536 | CE55: 15161.14908 | CF55: 13599.47897 | CG55: 12954.78723 | CH55: 12824.10283 | CI55: 13128.45842 | CJ55: 13177.75998 | CK55: 11695.34674 | CL55: 12374.18952 | CM55: 11491.5955 | CN55: 12228.98292 | CO55: 12673.33144 | CP55: 13872.5048 | CQ55: 14705.21129 | CR55: 13809.98157 | CS55: 12931.96058 | CT55: 12396.14453 | CU55: 12681.84379 | CV55: 13326.61561 | CW55: 12398.19966 | CX55: 12160.69855 | CY55: 11526.0145 | CZ55: 12212.19384 | DA55: 12671.61511 | DB55: 16114.35826 | DC55: 15783.18588 | DD55: 13126.60118 | DE55: 12751.28547 | DF55: 12346.73209 | DG55: 12598.66839 | DH55: 12380.95474 | DI55: 11771.53131 | DJ55: 12018.32247 | DK55: 11286.48059 | DL55: 12078.73821 | DM55: 12675.96946 | DN55: 13797.72933 | DO55: 15194.81656 | DP55: 13746.28948 | DQ55: 12770.16125 | DR55: 12496.78045 | DS55: 12434.96947 | DT55: 13597.91048 | DU55: 11350.83796 | DV55: 12008.68515 | DW55: 10959.78653 | DX55: 11968.51656 | DY55: 13192.34301 | DZ55: 14495.5195 | EA55: 15474.9518 | EB55: 13034.53536 | EC55: 12684.6027 | ED55: 12488.82173 | EE55: 12987.5515 | EF55: 13163.39563 | EG55: 12355.52318 | EH55: 12047.00805 | EI55: 11499.62121 | EJ55: 11966.39752 | EK55: 12449.75732 | EL55: 13995.69556 | EM55: 15761.26398 | EN55: 14294.3493 | EO55: 12960.48908 | EP55: 12620.97606 | EQ55: 12513.04593 | ER55: 13417.80748 | ES55: 11533.90084 | ET55: 11963.99666 | EU55: 11202.10707 | EV55: - | EW55: - | EX55: - | EY55: - | EZ55: - | FA55: - | FB55: - | FC55: -
C56: Turbina de gas | D56: 287.86 | E56: 148.74 | F56: 190.18 | G56: 78.033 | H56: 51.06 | I56: 0.703 | J56: 91.1236 | K56: 171.1176 | L56: 27.824 | M56: 36.1712 | N56: 358.16 | O56: 344.1 | P56: 620.12 | Q56: 320.42 | R56: 361.12 | S56: 126.54 | T56: 33.3 | U56: 100.64 | V56: 151.7 | W56: 56.24 | X56: 157.62 | Y56: 185 | Z56: 160.58 | AA56: 6.66 | AB56: 7.4 | AC56: 8.14 | AD56: 56.98 | AE56: 39.22 | AF56: 1.48 | AG56: 46.62 | AH56: - | AI56: 45.14 | AJ56: 57.72 | AK56: 5.18 | AL56: 93.24 | AM56: 42.18 | AN56: 12.37354 | AO56: 16.13718 | AP56: 2.40574 | AQ56: 17.86212 | AR56: 25.87484 | AS56: 68.45962 | AT56: 78.74858 | AU56: 25.345 | AV56: 27.91946 | AW56: 24.92986 | AX56: 39.75502 | AY56: 29.04648 | AZ56: 25.4042 | BA56: 1.72864 | BB56: 4.76486 | BC56: 33.6478 | BD56: 18.35274 | BE56: 27.06698 | BF56: 105.90288 | BG56: 27.3504 | BH56: 7.85362 | BI56: 98.73894 | BJ56: 36.34732 | BK56: 7.93354 | BL56: 3.49946 | BM56: - | BN56: - | BO56: 1.20324 | BP56: 3.60824 | BQ56: 6.69478 | BR56: 16.68182 | BS56: - | BT56: 54.70302 | BU56: 2.60776 | BV56: 1.36456 | BW56: 13.39992 | BX56: 3.10282 | BY56: 0.68376 | BZ56: - | CA56: - | CB56: 0.94572 | CC56: 0.26122 | CD56: 0.2812 | CE56: - | CF56: - | CG56: 52.46304 | CH56: - | CI56: 11.58618 | CJ56: 2.4124 | CK56: 34.94206 | CL56: 7.57908 | CM56: - | CN56: - | CO56: 50.07506 | CP56: 22.89782 | CQ56: - | CR56: 41.03966 | CS56: 72.71906 | CT56: 156.9059 | CU56: 178.49836 | CV56: 232.44732 | CW56: - | CX56: 41.2661 | CY56: - | CZ56: - | DA56: 1.52884 | DB56: 96.17336 | DC56: 0.69634 | DD56: - | DE56: - | DF56: 78.56654 | DG56: 1.83002 | DH56: - | DI56: 0.20276 | DJ56: 0.4218 | DK56: 84.69374 | DL56: 9.5682 | DM56: 22.58406 | DN56: 45.1474 | DO56: 11.43596 | DP56: 12.77832 | DQ56: - | DR56: - | DS56: 2.21482 | DT56: - | DU56: 3.03104 | DV56: 0.33522 | DW56: - | DX56: - | DY56: 0.09398 | DZ56: - | EA56: - | EB56: - | EC56: - | ED56: 7.40222 | EE56: 46.31956 | EF56: 32.78052 | EG56: 6.41506 | EH56: 0.36704 | EI56: 0.42846 | EJ56: 0.40774 | EK56: 0.91538 | EL56: 6.86424 | EM56: 0.6956 | EN56: 0.2553 | EO56: - | EP56: 0.24346 | EQ56: 0.28194 | ER56: 0.41514 | ES56: 0.37962 | ET56: 0.74888 | EU56: 1.14404 | EV56: - | EW56: - | EX56: - | EY56: - | EZ56: - | FA56: - | FB56: - | FC56: -
C57: Térmica no renovable/Cogeneración y resto | D57: 276.39 | E57: 256.78 | F57: 309.32 | G57: 242.72 | H57: 327.82 | I57: 312.65 | J57: 271.21 | K57: 297.85 | L57: 101.75 | M57: 226.07 | N57: 295.63 | O57: 315.61 | P57: 346.69 | Q57: 294.89 | R57: 314.13 | S57: 299.7 | T57: 279.35 | U57: 256.78 | V57: - | W57: - | X57: - | Y57: - | Z57: - | AA57: - | AB57: 303.03 | AC57: 268.62 | AD57: 289.34 | AE57: 328.56 | AF57: 303.03 | AG57: 276.39 | AH57: 289.71 | AI57: 268.99 | AJ57: 261.59 | AK57: 0.37 | AL57: - | AM57: 272.32 | AN57: 258.63 | AO57: 224.22 | AP57: 288.97 | AQ57: 298.96 | AR57: 340.77 | AS57: 262.7 | AT57: 285.64 | AU57: 294.89 | AV57: 331.89 | AW57: 179.82 | AX57: - | AY57: 203.87 | AZ57: - | BA57: - | BB57: - | BC57: - | BD57: - | BE57: - | BF57: - | BG57: - | BH57: - | BI57: - | BJ57: - | BK57: - | BL57: - | BM57: - | BN57: - | BO57: - | BP57: - | BQ57: - | BR57: - | BS57: - | BT57: - | BU57: - | BV57: - | BW57: - | BX57: - | BY57: - | BZ57: - | CA57: - | CB57: - | CC57: - | CD57: - | CE57: - | CF57: - | CG57: - | CH57: - | CI57: - | CJ57: - | CK57: - | CL57: - | CM57: - | CN57: - | CO57: - | CP57: - | CQ57: - | CR57: - | CS57: - | CT57: - | CU57: - | CV57: - | CW57: - | CX57: - | CY57: - | CZ57: - | DA57: - | DB57: - | DC57: - | DD57: - | DE57: - | DF57: - | DG57: - | DH57: - | DI57: - | DJ57: - | DK57: - | DL57: - | DM57: - | DN57: - | DO57: - | DP57: - | DQ57: - | DR57: - | DS57: - | DT57: - | DU57: - | DV57: - | DW57: - | DX57: - | DY57: - | DZ57: - | EA57: - | EB57: - | EC57: - | ED57: - | EE57: - | EF57: - | EG57: - | EH57: - | EI57: - | EJ57: - | EK57: - | EL57: - | EM57: - | EN57: - | EO57: - | EP57: - | EQ57: - | ER57: - | ES57: - | ET57: - | EU57: - | EV57: - | EW57: - | EX57: - | EY57: - | EZ57: - | FA57: - | FB57: - | FC57: -
C58: Residuos no renovables | D58: - | E58: - | F58: - | G58: - | H58: - | I58: - | J58: - | K58: - | L58: - | M58: - | N58: - | O58: - | P58: - | Q58: - | R58: - | S58: - | T58: - | U58: - | V58: - | W58: - | X58: - | Y58: - | Z58: - | AA58: - | AB58: - | AC58: - | AD58: - | AE58: - | AF58: - | AG58: - | AH58: - | AI58: - | AJ58: - | AK58: - | AL58: - | AM58: - | AN58: - | AO58: - | AP58: - | AQ58: - | AR58: - | AS58: - | AT58: - | AU58: - | AV58: - | AW58: - | AX58: - | AY58: - | AZ58: 111.43188 | BA58: 95.502 | BB58: 103.34316 | BC58: 89.60124 | BD58: 80.90748 | BE58: 80.37336 | BF58: 91.77372 | BG58: 81.12432 | BH58: 83.16432 | BI58: 25.101 | BJ58: 1.90404 | BK58: 0 | BL58: 0 | BM58: 0 | BN58: 0 | BO58: 7.50456 | BP58: 0 | BQ58: 0 | BR58: 0 | BS58: 20.48088 | BT58: 66.24708 | BU58: 5.67024 | BV58: 80.64504 | BW58: 96.52716 | BX58: 93.67824 | BY58: 77.78604 | BZ58: 72.6216 | CA58: 87.07248 | CB58: 75.28668 | CC58: 95.24364 | CD58: 81.45456 | CE58: 77.62584 | CF58: 73.34556 | CG58: 107.12088 | CH58: 19.76556 | CI58: 103.53456 | CJ58: 105.34596 | CK58: 102.4008 | CL58: 107.99736 | CM58: 94.03392 | CN58: 82.08576 | CO58: 78.6228 | CP58: 93.01188 | CQ58: 83.9706 | CR58: 86.44872 | CS58: 94.72152 | CT58: 21.48768 | CU58: 117.67068 | CV58: 97.57596 | CW58: 92.22048 | CX58: 95.8902 | CY58: 92.2998 | CZ58: 95.82972 | DA58: 87.04032 | DB58: 73.4466 | DC58: 79.3758 | DD58: 83.871 | DE58: 101.76588 | DF58: 26.55612 | DG58: 105.28764 | DH58: 116.87652 | DI58: 99.17676 | DJ58: 93.13668 | DK58: 107.97684 | DL58: 89.13924 | DM58: 97.55616 | DN58: 94.82112 | DO58: 96.642 | DP58: 99.43824 | DQ58: 121.04412 | DR58: 26.63796 | DS58: 121.56696 | DT58: 108.4848 | DU58: 102.26112 | DV58: 105.12204 | DW58: 100.99464 | DX58: 108.0642 | DY58: 104.32356 | DZ58: 102.15192 | EA58: 81.84144 | EB58: 107.72748 | EC58: 119.34252 | ED58: 20.94972 | EE58: 133.2132 | EF58: 125.05812 | EG58: 116.27532 | EH58: 125.81292 | EI58: 109.51068 | EJ58: 114.29376 | EK58: 100.91556 | EL58: 110.86728 | EM58: 113.01396 | EN58: 103.32096 | EO58: 99.40836 | EP58: 26.36904 | EQ58: 138.3954 | ER58: 131.86176 | ES58: 117.52728 | ET58: 129.22416 | EU58: 109.52232 | EV58: - | EW58: - | EX58: - | EY58: - | EZ58: - | FA58: - | FB58: - | FC58: -
EV59: - | EW59: - | EX59: - | EY59: - | EZ59: - | FA59: - | FB59: - | FC59: -
C60: Emisiones (tCO2) | D60: 11536.75 | E60: 10102.13 | F60: 10862.93 | G60: 10896.3565 | H60: 11951.98 | I60: 12415.4815 | J60: 14061.2958 | K60: 13586.5028 | L60: 12629.292 | M60: 12714.7736 | N60: 11587.02 | O60: 12712.52 | P60: 12929.53 | Q60: 11875.02 | R60: 11728.6 | S60: 11586.62 | T60: 11841.09 | U60: 12699.75 | V60: 14084.08 | W60: 14860.26 | X60: 13155.22 | Y60: 12317.89 | Z60: 12063.24 | AA60: 13636.43 | AB60: 13980.24 | AC60: 11972.29 | AD60: 12249.75 | AE60: 11283.3 | AF60: 12025.45 | AG60: 12783.92 | AH60: 14771.1 | AI60: 15235.96 | AJ60: 12979.65 | AK60: 13375.06 | AL60: 11972.8 | AM60: 12751.54 | AN60: 13324.23758 | AO60: 11987.08525 | AP60: 12909.96788 | AQ60: 11872.85969 | AR60: 12444.41747 | AS60: 13250.36746 | AT60: 14967.70423 | AU60: 16173.1875 | AV60: 14097.19774 | AW60: 13157.39957 | AX60: 12972.2315 | AY60: 13815.39924 | AZ60: 13325.49849 | BA60: 12156.65571 | BB60: 12685.81778 | BC60: 11587.38172 | BD60: 12591.79412 | BE60: 13486.13567 | BF60: 14620.95932 | BG60: 15649.38934 | BH60: 13967.37505 | BI60: 13577.4709 | BJ60: 13020.18417 | BK60: 14144.32042 | BL60: 14623.86137 | BM60: 14194.2031 | BN60: 13548.58813 | BO60: 12326.34236 | BP60: 13142.9945 | BQ60: 14074.58477 | BR60: 15450.5649 | BS60: 16170.87206 | BT60: 13741.88204 | BU60: 13448.92137 | BV60: 12119.28562 | BW60: 12934.89539 | BX60: 13272.13864 | BY60: 12035.5996 | BZ60: 12267.62288 | CA60: 11748.73172 | CB60: 12421.92345 | CC60: 12227.55325 | CD60: 14068.76112 | CE60: 15238.77492 | CF60: 13672.82453 | CG60: 13114.37115 | CH60: 12843.86839 | CI60: 13243.57916 | CJ60: 13285.51834 | CK60: 11832.6896 | CL60: 12489.76596 | CM60: 11585.62942 | CN60: 12311.06868 | CO60: 12802.0293 | CP60: 13988.4145 | CQ60: 14789.18189 | CR60: 13937.46995 | CS60: 13099.40116 | CT60: 12574.53811 | CU60: 12978.01283 | CV60: 13656.63889 | CW60: 12490.42014 | CX60: 12297.85485 | CY60: 11618.3143 | CZ60: 12308.02356 | DA60: 12760.18427 | DB60: 16283.97822 | DC60: 15863.25802 | DD60: 13210.47218 | DE60: 12853.05135 | DF60: 12451.85475 | DG60: 12705.78605 | DH60: 12497.83126 | DI60: 11870.91083 | DJ60: 12111.88095 | DK60: 11479.15117 | DL60: 12177.44565 | DM60: 12796.10968 | DN60: 13937.69785 | DO60: 15302.89452 | DP60: 13858.50604 | DQ60: 12891.20537 | DR60: 12523.41841 | DS60: 12558.75125 | DT60: 13706.39528 | DU60: 11456.13012 | DV60: 12114.14241 | DW60: 11060.78117 | DX60: 12076.58076 | DY60: 13296.76055 | DZ60: 14597.67142 | EA60: 15556.79324 | EB60: 13142.26284 | EC60: 12803.94522 | ED60: 12517.17367 | EE60: 13167.08426 | EF60: 13321.23427 | EG60: 12478.21356 | EH60: 12173.18801 | EI60: 11609.56035 | EJ60: 12081.09902 | EK60: 12551.58826 | EL60: 14113.42708 | EM60: 15874.97354 | EN60: 14397.92556 | EO60: 13059.89744 | EP60: 12647.58856 | EQ60: 12651.72327 | ER60: 13550.08438 | ES60: 11651.80774 | ET60: 12093.9697 | EU60: 11312.77343 | EV60: - | EW60: - | EX60: - | EY60: - | EZ60: - | FA60: - | FB60: - | FC60: -
C61: Factor de emision de CO2 (tCO2/MWh) | D61: 0.7498212661 | E61: 0.7489716785 | F61: 0.7464905168 | G61: 0.7516802221 | H61: 0.7476997185 | I61: 0.7495913482 | J61: 0.7540781788 | K61: 0.751798517 | L61: 0.7632836939 | M61: 0.7553929183 | N61: 0.7484188089 | O61: 0.7490731247 | P61: 0.7468536275 | Q61: 0.7490708383 | R61: 0.7474254397 | S61: 0.7487315024 | T61: 0.7507665483 | U61: 0.753247331 | V61: 0.7696218579 | W61: 0.7698419935 | X61: 0.7695811396 | Y61: 0.769531455 | Z61: 0.7695355958 | AA61: 0.7699847544 | AB61: 0.7520301237 | AC61: 0.7509433607 | AD61: 0.7496787026 | AE61: 0.7450181578 | AF61: 0.7491558684 | AG61: 0.7519510617 | AH61: 0.7537044596 | AI61: 0.7551900867 | AJ61: 0.7531420448 | AK61: 0.7696990275 | AL61: 0.7697569757 | AM61: 0.7524808214 | AN61: 0.7541036811 | AO61: 0.7544599963 | AP61: 0.7515393573 | AQ61: 0.7492191218 | AR61: 0.7473951785 | AS61: 0.7536451931 | AT61: 0.7539735883 | AU61: 0.7547512658 | AV61: 0.7505498732 | AW61: 0.7584690683 | AX61: 0.7696759438 | AY61: 0.7577206425 | AZ61: 0.7364281773 | BA61: 0.7382758696 | BB61: 0.7371686321 | BC61: 0.7386428696 | BD61: 0.7437229554 | BE61: 0.7455141171 | BF61: 0.7442020346 | BG61: 0.7486990232 | BH61: 0.7457109982 | BI61: 0.7619281304 | BJ61: 0.7691305929 | BK61: 0.7697939993 | BL61: 0.769793153 | BM61: 0.7697179849 | BN61: 0.7696941008 | BO61: 0.7670394971 | BP61: 0.7695850188 | BQ61: 0.7696212887 | BR61: 0.7696344963 | BS61: 0.7644606725 | BT61: 0.7500040273 | BU61: 0.767966248 | BV61: 0.7430370881 | BW61: 0.7398759944 | BX61: 0.741436235 | BY61: 0.7437014131 | BZ61: 0.7457431293 | CA61: 0.7399328182 | CB61: 0.7451012947 | CC61: 0.738427602 | CD61: 0.7462573315 | CE61: 0.7490287486 | CF61: 0.7479733688 | CG61: 0.7369886134 | CH61: 0.7634148859 | CI61: 0.7385262509 | CJ61: 0.7381009185 | CK61: 0.7351752401 | CL61: 0.735190488 | CM61: 0.7371676751 | CN61: 0.7427578455 | CO61: 0.7447064736 | CP61: 0.7428195091 | CQ61: 0.7467005969 | CR61: 0.7446254727 | CS61: 0.7405437377 | CT61: 0.7623628642 | CU61: 0.7333940537 | CV61: 0.7406250662 | CW61: 0.7401692732 | CX61: 0.73834423 | CY61: 0.7379402497 | CZ61: 0.7384639858 | DA61: 0.7421955438 | DB61: 0.7511533693 | DC61: 0.7494193675 | DD61: 0.7440923617 | DE61: 0.7380593183 | DF61: 0.7607824854 | DG61: 0.7367517728 | DH61: 0.7326910832 | DI61: 0.7364099568 | DJ61: 0.7388263885 | DK61: 0.732062951 | DL61: 0.7402252538 | DM61: 0.7390550746 | DN61: 0.7422610946 | DO61: 0.7442193976 | DP61: 0.7408903982 | DQ61: 0.7324783232 | DR61: 0.761015852 | DS61: 0.7314804487 | DT61: 0.7381613387 | DU61: 0.7342690363 | DV61: 0.7351098264 | DW61: 0.7333627212 | DX61: 0.7340602888 | DY61: 0.7382911697 | DZ61: 0.7415660166 | EA61: 0.748429381 | EB61: 0.7369506543 | EC61: 0.7327184222 | ED61: 0.7628386902 | EE61: 0.7297325257 | EF61: 0.7325004975 | EG61: 0.7327351034 | EH61: 0.7288464759 | EI61: 0.7322500132 | EJ61: 0.7321248123 | EK61: 0.7375909567 | EL61: 0.7383197809 | EM61: 0.7411103509 | EN61: 0.7409441678 | EO61: 0.7392569549 | EP61: 0.7611789799 | EQ61: 0.7267613114 | ER61: 0.7312438407 | ES61: 0.7298562118 | ET61: 0.7275837847 | EU61: 0.7312669879 | EV61: - | EW61: - | EX61: - | EY61: - | EZ61: - | FA61: - | FB61: - | FC61: -
C63: Emisiones de CO2 asociadas a la generación mensual nacional | D63: 2007-01-01 | E63: 2007-02-01 | F63: 2007-03-01 | G63: 2007-04-01 | H63: 2007-05-01 | I63: 2007-06-01 | J63: 2007-07-01 | K63: 2007-08-01 | L63: 2007-09-01 | M63: 2007-10-01 | N63: 2007-11-01 | O63: 2007-12-01 | P63: 2008-01-01 | Q63: 2008-02-01 | R63: 2008-03-01 | S63: 2008-04-01 | T63: 2008-05-01 | U63: 2008-06-01 | V63: 2008-07-01 | W63: 2008-08-01 | X63: 2008-09-01 | Y63: 2008-10-01 | Z63: 2008-11-01 | AA63: 2008-12-01 | AB63: 2009-01-01 | AC63: 2009-02-01 | AD63: 2009-03-01 | AE63: 2009-04-01 | AF63: 2009-05-01 | AG63: 2009-06-01 | AH63: 2009-07-01 | AI63: 2009-08-01 | AJ63: 2009-09-01 | AK63: 2009-10-01 | AL63: 2009-11-01 | AM63: 2009-12-01 | AN63: 2010-01-01 | AO63: 2010-02-01 | AP63: 2010-03-01 | AQ63: 2010-04-01 | AR63: 2010-05-01 | AS63: 2010-06-01 | AT63: 2010-07-01 | AU63: 2010-08-01 | AV63: 2010-09-01 | AW63: 2010-10-01 | AX63: 2010-11-01 | AY63: 2010-12-01 | AZ63: 2011-01-01 | BA63: 2011-02-01 | BB63: 2011-03-01 | BC63: 2011-04-01 | BD63: 2011-05-01 | BE63: 2011-06-01 | BF63: 2011-07-01 | BG63: 2011-08-01 | BH63: 2011-09-01 | BI63: 2011-10-01 | BJ63: 2011-11-01 | BK63: 2011-12-01 | BL63: 2012-01-01 | BM63: 2012-02-01 | BN63: 2012-03-01 | BO63: 2012-04-01 | BP63: 2012-05-01 | BQ63: 2012-06-01 | BR63: 2012-07-01 | BS63: 2012-08-01 | BT63: 2012-09-01 | BU63: 2012-10-01 | BV63: 2012-11-01 | BW63: 2012-12-01 | BX63: 2013-01-01 | BY63: 2013-02-01 | BZ63: 2013-03-01 | CA63: 2013-04-01 | CB63: 2013-05-01 | CC63: 2013-06-01 | CD63: 2013-07-01 | CE63: 2013-08-01 | CF63: 2013-09-01 | CG63: 2013-10-01 | CH63: 2013-11-01 | CI63: 2013-12-01 | CJ63: 2014-01-01 | CK63: 2014-02-01 | CL63: 2014-03-01 | CM63: 2014-04-01 | CN63: 2014-05-01 | CO63: 2014-06-01 | CP63: 2014-07-01 | CQ63: 2014-08-01 | CR63: 2014-09-01 | CS63: 2014-10-01 | CT63: 2014-11-01 | CU63: 2014-12-01 | CV63: 2015-01-01 | CW63: 2015-02-01 | CX63: 2015-03-01 | CY63: 2015-04-01 | CZ63: 2015-05-01 | DA63: 2015-06-01 | DB63: 2015-07-01 | DC63: 2015-08-01 | DD63: 2015-09-01 | DE63: 2015-10-01 | DF63: 2015-11-01 | DG63: 2015-12-01 | DH63: 2016-01-01 | DI63: 2016-02-01 | DJ63: 2016-03-01 | DK63: 2016-04-01 | DL63: 2016-05-01 | DM63: 2016-06-01 | DN63: 2016-07-01 | DO63: 2016-08-01 | DP63: 2016-09-01 | DQ63: 2016-10-01 | DR63: 2016-11-01 | DS63: 2016-12-01 | DT63: 2017-01-01 | DU63: 2017-02-01 | DV63: 2017-03-01 | DW63: 2017-04-01 | DX63: 2017-05-01 | DY63: 2017-06-01 | DZ63: 2017-07-01 | EA63: 2017-08-01 | EB63: 2017-09-01 | EC63: 2017-10-01 | ED63: 2017-11-01 | EE63: 2017-12-01 | EF63: 2018-01-01 | EG63: 2018-02-01 | EH63: 2018-03-01 | EI63: 2018-04-01 | EJ63: 2018-05-01 | EK63: 2018-06-01 | EL63: 2018-07-01 | EM63: 2018-08-01 | EN63: 2018-09-01 | EO63: 2018-10-01 | EP63: 2018-11-01 | EQ63: 2018-12-01 | ER63: 2019-01-01 | ES63: 2019-02-01 | ET63: 2019-03-01 | EU63: 2019-04-01 | EV63: 2019-05-01 | EW63: 2019-06-01 | EX63: 2019-07-01 | EY63: 2019-08-01 | EZ63: 2019-09-01 | FA63: 2019-10-01 | FB63: 2019-11-01 | FC63: 2019-12-01
C64: Carbón | D64: 6038132.55 | E64: 4866725.55 | F64: 4829808.55 | G64: 5793493.3 | H64: 5908934.45 | I64: 5696568.6 | J64: 5909379.05 | K64: 5869978.75 | L64: 5465916.2 | M64: 5299076.25 | N64: 5403579.1 | O64: 6017005.5 | P64: 5005149.1 | Q64: 4624218.1 | R64: 3731149.7 | S64: 3157107.45 | T64: 2300391.75 | U64: 2205061.15 | V64: 3778114.85 | W64: 3199432.8 | X64: 3545306.9 | Y64: 4126936.8 | Z64: 4100488.8 | AA64: 4409587.45 | AB64: 4532982.95 | AC64: 3118865.2 | AD64: 3035249.05 | AE64: 1926079.4 | AF64: 2376139.05 | AG64: 2608142.35 | AH64: 3335949.7 | AI64: 1997539.35 | AJ64: 2801942.35 | AK64: 3169201.9 | AL64: 2139241.35 | AM64: 2012041.1 | AN64: 1885486.816 | AO64: 1539386.115 | AP64: 1071923.393 | AQ64: 859258.9545 | AR64: 1000568.603 | AS64: 1521528.704 | AT64: 2605380.7 | AU64: 2966363.532 | AV64: 3093598.834 | AW64: 2094210.496 | AX64: 1728462.934 | AY64: 2149413.65 | AZ64: 2187933.322 | BA64: 2545958.559 | BB64: 2951923.081 | BC64: 2494435.642 | BD64: 3029504.398 | BE64: 2827083.313 | BF64: 4249530.869 | BG64: 4131764.955 | BH64: 4685631.211 | BI64: 4253643.618 | BJ64: 3841391.861 | BK64: 3819790.33 | BL64: 5147325.318 | BM64: 5226630.519 | BN64: 4438083.97 | BO64: 2581958.269 | BP64: 3809598.139 | BQ64: 5038888.729 | BR64: 4697754.691 | BS64: 4834690.495 | BT64: 3840721.965 | BU64: 4029177.128 | BV64: 3869990.637 | BW64: 3576076.753 | BX64: 2905011.6 | BY64: 2457215.374 | BZ64: 1351513.334 | CA64: 1008993.277 | CB64: 1975444.486 | CC64: 2527282.777 | CD64: 5197942.534 | CE64: 4390257.888 | CF64: 4529527.866 | CG64: 3987601.013 | CH64: 2540223.801 | CI64: 4598446.881 | CJ64: 2178501.546 | CK64: 839886.8557 | CL64: 1229530.615 | CM64: 1316286.005 | CN64: 3199362.113 | CO64: 4952543.499 | CP64: 5331067.069 | CQ64: 5025750.478 | CR64: 5615774.917 | CS64: 4318336.773 | CT64: 3068642.147 | CU64: 4008071.654 | CV64: 4814045.162 | CW64: 2938218.383 | CX64: 2601979.261 | CY64: 2855062.901 | CZ64: 2786907.318 | DA64: 5234087.605 | DB64: 5961647.129 | DC64: 5170384.423 | DD64: 4547331.735 | DE64: 4164867.709 | DF64: 4432571.374 | DG64: 4478550.717 | DH64: 2560302.525 | DI64: 1785959.313 | DJ64: 1679432.486 | DK64: 981604.428 | DL64: 1147398.193 | DM64: 2142741.083 | DN64: 3731347.67 | DO64: 3463228.597 | DP64: 4324795.557 | DQ64: 4272589.453 | DR64: 4397512.434 | DS64: 4961177.123 | DT64: 5110341.325 | DU64: 3327797.807 | DV64: 1845883.171 | DW64: 1961247.277 | DX64: 3561611.032 | DY64: 4317300.091 | DZ64: 4089164.577 | EA64: 3064952.825 | EB64: 2905639.482 | EC64: 3892767.164 | ED64: 4576310.833 | EE64: 4115433.789 | EF64: 3077550.106 | EG64: 3516686.283 | EH64: 1454960.678 | EI64: 1484768.731 | EJ64: 2338074.798 | EK64: 2377991.437 | EL64: 3567387.093 | EM64: 3591275.158 | EN64: 4162760.867 | EO64: 3392254.894 | EP64: 3792461.83 | EQ64: 2893237.548 | ER64: 3148919.216 | ES64: 2306341.907 | ET64: 931512.533 | EU64: 819323.1493 | EV64: - | EW64: - | EX64: - | EY64: - | EZ64: - | FA64: - | FB64: - | FC64: -
C65: Fuel + Gas | D65: 659060.24 | E65: 677555.39 | F65: 708925.09 | G65: 654182.5865 | H65: 651918.57 | I65: 636997.2415 | J65: 775851.0158 | K65: 786843.6328 | L65: 767189.032 | M65: 680656.3436 | N65: 704302.46 | O65: 697139.54 | P65: 701702.99 | Q65: 655052.95 | R65: 584083.33 | S65: 616759.12 | T65: 667380.55 | U65: 699851.99 | V65: 711129.3 | W65: 772546.04 | X65: 733985.85 | Y65: 704111.46 | Z65: 688026.65 | AA65: 688281.11 | AB65: 643408.17 | AC65: 558682.19 | AD65: 656108.86 | AE65: 557709.66 | AF65: 618032.13 | AG65: 647374.57 | AH65: 722854.83 | AI65: 714896.7 | AJ65: 684336.6646 | AK65: 637868.61 | AL65: 610216.3456 | AM65: 632139.96 | AN65: 630351.5301 | AO65: 561610.5595 | AP65: 528171.38 | AQ65: 532999.5141 | AR65: 615464.1827 | AS65: 634423.3425 | AT65: 652914.4392 | AU65: 662435.8419 | AV65: 641614.1474 | AW65: 610191.1556 | AX65: 618146.5822 | AY65: 633345.612 | AZ65: 511210.1953 | BA65: 473610.6992 | BB65: 548176.3658 | BC65: 473504.609 | BD65: 479224.2494 | BE65: 459104.8184 | BF65: 550991.7569 | BG65: 545630.2072 | BH65: 531726.0629 | BI65: 520668.2827 | BJ65: 463592.6731 | BK65: 494430.3848 | BL65: 517558.4962 | BM65: 481569.8604 | BN65: 506470.9158 | BO65: 468715.9053 | BP65: 476018.3469 | BQ65: 502584.5451 | BR65: 540584.3204 | BS65: 580432.1861 | BT65: 528636.3921 | BU65: 528738.1211 | BV65: 492181.6899 | BW65: 497516.5209 | BX65: 450345.3825 | BY65: 425550.5735 | BZ65: 460033.1666 | CA65: 433473.6397 | CB65: 433150.0391 | CC65: 413123.5504 | CD65: 494273.5962 | CE65: 511787.6283 | CF65: 462708.2628 | CG65: 479810.0535 | CH65: 449140.8297 | CI65: 468440.9389 | CJ65: 453474.2287 | CK65: 407064.1776 | CL65: 380304.0297 | CM65: 372519.0768 | CN65: 384324.04 | CO65: 423369.3024 | CP65: 452650.799 | CQ65: 461444.7869 | CR65: 464170.8141 | CS65: 429515.9769 | CT65: 404886.166 | CU65: 455524.8888 | CV65: 444840.8734 | CW65: 403333.6753 | CX65: 417942.0324 | CY65: 385770.3033 | CZ65: 416063.9489 | DA65: 436462.3064 | DB65: 494864.4074 | DC65: 501586.8814 | DD65: 493122.8313 | DE65: 412842.1648 | DF65: 383190.4022 | DG65: 455249.2621 | DH65: 456454.4007 | DI65: 422953.9895 | DJ65: 450095.7745 | DK65: 414918.8538 | DL65: 410002.7018 | DM65: 439998.2323 | DN65: 493488.0101 | DO65: 536035.1546 | DP65: 493815.6146 | DQ65: 469798.0701 | DR65: 409628.2723 | DS65: 484662.7663 | DT65: 464586.46 | DU65: 411628.9971 | DV65: 445228.9988 | DW65: 458326.3827 | DX65: 462696.4083 | DY65: 496745.5506 | DZ65: 526106.5027 | EA65: 540586.6018 | EB65: 488224.61 | EC65: 485186.9313 | ED65: 442928.4482 | EE65: 464270.4544 | EF65: 465609.9159 | EG65: 433203.1782 | EH65: 419473.1542 | EI65: 410042.1203 | EJ65: 432047.7403 | EK65: 451520.8919 | EL65: 496355.8453 | EM65: 525871.4907 | EN65: 472719.9376 | EO65: 451192.9309 | EP65: 436553.7675 | EQ65: 388808.0514 | ER65: 406774.3966 | ES65: 375396.0822 | ET65: 382902.1119 | EU65: 376283.7496 | EV65: - | EW65: - | EX65: - | EY65: - | EZ65: - | FA65: - | FB65: - | FC65: -
C66: Ciclo combinado | D66: 2436578.14 | E66: 1579698.4 | F66: 1619533.95 | G66: 1643547.1 | H66: 1833998.3 | I66: 2491711.01 | J66: 2683991.94 | K66: 2114062 | L66: 2290673.66 | M66: 2487242.19 | N66: 3042001.51 | O66: 2900755.61 | P66: 3149960.81 | Q66: 3122983.91 | R66: 2714010.34 | S66: 2765299.98 | T66: 2856641.01 | U66: 3037364.05 | V66: 3516186.12 | W66: 3281090.76 | X66: 3115919.83 | Y66: 2880540.65 | Z66: 2737996.8 | AA66: 2360155.14 | AB66: 2455511.92 | AC66: 1834674.01 | AD66: 2084881.37 | AE66: 2198460.81 | AF66: 2215083.78 | AG66: 3013529.05 | AH66: 3392034.53 | AI66: 3252746.01 | AJ66: 2934500.07 | AK66: 2627479.39 | AL66: 2242510.65 | AM66: 2477847.04 | AN66: 2174460.328 | AO66: 1952669.39 | AP66: 1716110.557 | AQ66: 1795477.298 | AR66: 1867857.803 | AS66: 2197288.817 | AT66: 2738986.65 | AU66: 2351533.702 | AV66: 2517861.72 | AW66: 2200633.498 | AX66: 2280180.058 | AY66: 2033012.491 | AZ66: 2083048.989 | BA66: 1892294.965 | BB66: 1672245.769 | BC66: 1219731.842 | BD66: 1752177.376 | BE66: 2033729.345 | BF66: 1878151.96 | BG66: 1978816.139 | BH66: 1889433.29 | BI66: 1618921.789 | BJ66: 1492971.141 | BK66: 1452925.276 | BL66: 1779406.714 | BM66: 1654851.861 | BN66: 1327366.84 | BO66: 999861.643 | BP66: 1094470.147 | BQ66: 1352251.611 | BR66: 1455159.359 | BS66: 1503288.294 | BT66: 1286923.519 | BU66: 1410824.113 | BV66: 1278334.55 | BW66: 1231139.128 | BX66: 1187430.095 | BY66: 908818.5704 | BZ66: 749126.9641 | CA66: 605694.5979 | CB66: 805256.4648 | CC66: 697035.5235 | CD66: 1032334.534 | CE66: 1090220.837 | CF66: 1031562.953 | CG66: 1144440.152 | CH66: 926134.0943 | CI66: 1197481.077 | CJ66: 771036.925 | CK66: 656399.0316 | CL66: 704242.4341 | CM66: 668553.8829 | CN66: 747252.8589 | CO66: 849825.1324 | CP66: 896652.9546 | CQ66: 1029507.627 | CR66: 1230133.41 | CS66: 1028052.122 | CT66: 968270.3812 | CU66: 947587.2083 | CV66: 1025775.284 | CW66: 812625.5991 | CX66: 806437.6712 | CY66: 854814.4882 | CZ66: 824629.2617 | DA66: 894933.3153 | DB66: 1482002.917 | DC66: 1067466.068 | DD66: 939660.7082 | DE66: 1087762.441 | DF66: 1039919.739 | DG66: 1211172.845 | DH66: 913782.576 | DI66: 688542.412 | DJ66: 710569.0215 | DK66: 637655.1477 | DL66: 764775.0391 | DM66: 881324.7339 | DN66: 1065306.784 | DO66: 941132.6301 | DP66: 982842.6898 | DQ66: 1448631.324 | DR66: 1512272.751 | DS66: 1418980.098 | DT66: 1310015.179 | DU66: 752694.9712 | DV66: 734447.6821 | DW66: 638589.6206 | DX66: 797306.6313 | DY66: 1343618.523 | DZ66: 1574518.851 | EA66: 1501577.83 | EB66: 1371010.722 | EC66: 1664366.959 | ED66: 1923699.44 | EE66: 1331419.359 | EF66: 987347.0598 | EG66: 870633.507 | EH66: 634448.6262 | EI66: 611746.5408 | EJ66: 896234.497 | EK66: 962685.1313 | EL66: 984960.1147 | EM66: 1162015.064 | EN66: 976641.7933 | EO66: 1134598.018 | EP66: 1368455.449 | EQ66: 1252044.115 | ER66: 1356347.521 | ES66: 1063637.181 | ET66: 956969.8982 | EU66: 1180349.358 | EV66: - | EW66: - | EX66: - | EY66: - | EZ66: - | FA66: - | FB66: - | FC66: -
C67: Térmica renovable | D67: 33220.89 | E67: 29047.56 | F67: 33483.54 | G67: 31300.06 | H67: 33509.38 | I67: 32851.99 | J67: 34518.84 | K67: 34450.33 | L67: 32516.41 | M67: 38152.93 | N67: 34706.69 | O67: 36107.83 | P67: 37111.68 | Q67: 36668.66 | R67: 38029 | S67: 37652.11 | T67: 37210.79 | U67: 37476.67 | V67: 37995.68 | W67: 37112.7 | X67: 35964.35 | Y67: 39053.25 | Z67: 38361.52 | AA67: 38116.72 | AB67: 41426.62 | AC67: 39313.01 | AD67: 42898.82 | AE67: 46800.49 | AF67: 42513.26 | AG67: 38951.42 | AH67: 40166.58 | AI67: 40096.03 | AJ67: 44892.92 | AK67: 55307.63 | AL67: 42331.7 | AM67: 42830.31 | AN67: 42659.8 | AO67: 38492.08 | AP67: 41819.66 | AQ67: 42969.37 | AR67: 46737.25 | AS67: 45723.37 | AT67: 45565.1 | AU67: 47396.68 | AV67: 44699.29 | AW67: 47478.79 | AX67: 45750.57 | AY67: 49913.87 | AZ67: - | BA67: - | BB67: - | BC67: - | BD67: - | BE67: - | BF67: - | BG67: - | BH67: - | BI67: - | BJ67: - | BK67: - | BL67: - | BM67: - | BN67: - | BO67: - | BP67: - | BQ67: - | BR67: - | BS67: - | BT67: - | BU67: - | BV67: - | BW67: - | BX67: - | BY67: - | BZ67: - | CA67: - | CB67: - | CC67: - | CD67: - | CE67: - | CF67: - | CG67: - | CH67: - | CI67: - | CJ67: - | CK67: - | CL67: - | CM67: - | CN67: - | CO67: - | CP67: - | CQ67: - | CR67: - | CS67: - | CT67: - | CU67: - | CV67: - | CW67: - | CX67: - | CY67: - | CZ67: - | DA67: - | DB67: - | DC67: - | DD67: - | DE67: - | DF67: - | DG67: - | DH67: - | DI67: - | DJ67: - | DK67: - | DL67: - | DM67: - | DN67: - | DO67: - | DP67: - | DQ67: - | DR67: - | DS67: - | DT67: - | DU67: - | DV67: - | DW67: - | DX67: - | DY67: - | DZ67: - | EA67: - | EB67: - | EC67: - | ED67: - | EE67: - | EF67: - | EG67: - | EH67: - | EI67: - | EJ67: - | EK67: - | EL67: - | EM67: - | EN67: - | EO67: - | EP67: - | EQ67: - | ER67: - | ES67: - | ET67: - | EU67: - | EV67: - | EW67: - | EX67: - | EY67: - | EZ67: - | FA67: - | FB67: - | FC67: -
C68: Térmica no renovable/Cogeneración y resto/Cogeneración | D68: 737226.24 | E68: 653288.6 | F68: 694031.74 | G68: 681045.34 | H68: 679511.32 | I68: 703667.44 | J68: 739025.82 | K68: 694179 | L68: 726342.74 | M68: 778513.32 | N68: 779417.47 | O68: 797877.44 | P68: 836417.28 | Q68: 827411.74 | R68: 844176.85 | S68: 828106.98 | T68: 782801.74 | U68: 772394.22 | V68: 823741.07 | W68: 749129.13 | X68: 808599.28 | Y68: 875887.29 | Z68: 859379.76 | AA68: 863343.64 | AB68: 899725.88 | AC68: 832454.84 | AD68: 891001.08 | AE68: 868430.63 | AF68: 873410.99 | AG68: 857793.34 | AH68: 889938.89 | AI68: 755782.01 | AJ68: 867999.03 | AK68: 914819.27 | AL68: 954478.4 | AM68: 962462.09 | AN68: 987719.71 | AO68: 919125.95 | AP68: 971422.24 | AQ68: 946842.98 | AR68: 958277.64 | AS68: 943424.07 | AT68: 970340.37 | AU68: 803024.67 | AV68: 940859.61 | AW68: 983192.27 | AX68: 988644.04 | AY68: 1027869.49 | AZ68: 977367.3527 | BA68: 915715.5482 | BB68: 1025729.644 | BC68: 947333.2444 | BD68: 965590.0982 | BE68: 920868.8355 | BF68: 924971.0993 | BG68: 769274.6379 | BH68: 927923.1772 | BI68: 969899.2787 | BJ68: 973559.0786 | BK68: 1002015.365 | BL68: 1045391.904 | BM68: 995670.1569 | BN68: 1057918.591 | BO68: 1003004.151 | BP68: 1013753.064 | BQ68: 966118.5888 | BR68: 1002780.792 | BS68: 842401.8934 | BT68: 981074.5885 | BU68: 1038910.651 | BV68: 1017652.087 | BW68: 1039709.022 | BX68: 1073745.102 | BY68: 959689.582 | BZ68: 1038125.567 | CA68: 1015148.734 | CB68: 1019613.013 | CC68: 955887.9726 | CD68: 952734.4078 | CE68: 737510.9042 | CF68: 889249.4275 | CG68: 915333.0818 | CH68: 915696.7226 | CI68: 936461.3827 | CJ68: 943671.0958 | CK68: 694140.7418 | CL68: 677536.4139 | CM68: 598905.4709 | CN68: 714534.7467 | CO68: 767859.56 | CP68: 784158.8551 | CQ68: 734694.5508 | CR68: 782054.8475 | CS68: 787159.7764 | CT68: 715878.4916 | CU68: 736105.686 | CV68: 800740.1742 | CW68: 712269.344 | CX68: 769862.6771 | CY68: 745033.0009 | CZ68: 768291.653 | DA68: 763559.6534 | DB68: 799432.8662 | DC68: 754568.6534 | DD68: 795932.6336 | DE68: 819312.2443 | DF68: 788107.131 | DG68: 807214.7424 | DH68: 788459.9571 | DI68: 729186.538 | DJ68: 766847.2381 | DK68: 738350.0546 | DL68: 782819.3977 | DM68: 803301.743 | DN68: 829801.6721 | DO68: 785706.1011 | DP68: 791087.2949 | DQ68: 858914.4976 | DR68: 850378.6113 | DS68: 861345.0113 | DT68: 907468.1372 | DU68: 817538.8927 | DV68: 885961.2282 | DW68: 827126.0967 | DX68: 861820.1128 | DY68: 857710.8506 | DZ68: 888419.5696 | EA68: 836624.0918 | EB68: 842034.8867 | EC68: 886636.5186 | ED68: 904528.6696 | EE68: 922499.4257 | EF68: 919003.0829 | EG68: 834206.7782 | EH68: 865039.9664 | EI68: 871563.1 | EJ68: 895727.1899 | EK68: 892285.4277 | EL68: 904624.2288 | EM68: 874979.2246 | EN68: 891905.1047 | EO68: 933356.046 | EP68: 915842.1914 | EQ68: 937293.2885 | ER68: 984098.5456 | ES68: 885626.3856 | ET68: 959124.9983 | EU68: 921773.1493 | EV68: - | EW68: - | EX68: - | EY68: - | EZ68: - | FA68: - | FB68: - | FC68: -
C69: Residuos no renovables | D69: - | E69: - | F69: - | G69: - | H69: - | I69: - | J69: - | K69: - | L69: - | M69: - | N69: - | O69: - | P69: - | Q69: - | R69: - | S69: - | T69: - | U69: - | V69: - | W69: - | X69: - | Y69: - | Z69: - | AA69: - | AB69: - | AC69: - | AD69: - | AE69: - | AF69: - | AG69: - | AH69: - | AI69: - | AJ69: - | AK69: - | AL69: - | AM69: - | AN69: - | AO69: - | AP69: - | AQ69: - | AR69: - | AS69: - | AT69: - | AU69: - | AV69: - | AW69: - | AX69: - | AY69: - | AZ69: 27351.9744 | BA69: 24501.71484 | BB69: 21438.83616 | BC69: 26937.55776 | BD69: 18336.26628 | BE69: 24221.23608 | BF69: 21454.422 | BG69: 23576.7228 | BH69: 26613.54792 | BI69: 32821.13028 | BJ69: 30385.89924 | BK69: 31425.60744 | BL69: 32430.1296 | BM69: 29089.0038 | BN69: 28751.82816 | BO69: 33003.95088 | BP69: 31443.07584 | BQ69: 27364.41504 | BR69: 30501.07596 | BS69: 33776.84136 | BT69: 34003.67796 | BU69: 35997.28356 | BV69: 30915.51672 | BW69: 34183.01568 | BX69: 35811.85548 | BY69: 34416.1776 | BZ69: 35489.62656 | CA69: 21070.45788 | CB69: 28784.27412 | CC69: 26997.69324 | CD69: 29207.80848 | CE69: 31476.94164 | CF69: 35639.2848 | CG69: 36675.37392 | CH69: 34539.04548 | CI69: 38028.10764 | CJ69: 34372.92528 | CK69: 29415.51468 | CL69: 26914.17792 | CM69: 33105.24912 | CN69: 38888.05344 | CO69: 39700.90104 | CP69: 41146.54812 | CQ69: 43535.31612 | CR69: 45767.89008 | CS69: 45729.6186 | CT69: 42792.567 | CU69: 50441.72904 | CV69: 47446.79196 | CW69: 42627.28992 | CX69: 49827.08628 | CY69: 40328.34996 | CZ69: 49892.9466 | DA69: 50488.41276 | DB69: 53605.30824 | DC69: 54383.7744 | DD69: 52210.27824 | DE69: 55338.6414 | DF69: 52251.66072 | DG69: 46825.61196 | DH69: 50378.68476 | DI69: 46316.93916 | DJ69: 52340.74776 | DK69: 46073.83908 | DL69: 36450.85632 | DM69: 50307.50352 | DN69: 61105.41456 | DO69: 61498.18344 | DP69: 60005.07408 | DQ69: 58609.14084 | DR69: 51528.9678 | DS69: 51055.95216 | DT69: 53964.74796 | DU69: 47648.25648 | DV69: 52820.6322 | DW69: 45065.84376 | DX69: 44938.45872 | DY69: 54202.32624 | DZ69: 51626.28948 | EA69: 55176.35352 | EB69: 54909.83364 | EC69: 58294.1868 | ED69: 52294.02696 | EE69: 54975.32784 | EF69: 56297.775 | EG69: 50196.12552 | EH69: 54508.69212 | EI69: 42857.80992 | EJ69: 35526.75528 | EK69: 45730.18344 | EL69: 51471.95952 | EM69: 50421.0066 | EN69: 48697.12044 | EO69: 51828.85224 | EP69: 47782.15128 | EQ69: 49070.97384 | ER69: 49609.2042 | ES69: 45143.75292 | ET69: 50976.23136 | EU69: 45421.269 | EV69: - | EW69: - | EX69: - | EY69: - | EZ69: - | FA69: - | FB69: - | FC69: -
EV70: - | EW70: - | EX70: - | EY70: - | EZ70: - | FA70: - | FB70: - | FC70: -
C71: Emisiones (tCO2) | D71: 9904218.06 | E71: 7806315.5 | F71: 7885782.87 | G71: 8803568.387 | H71: 9107872.02 | I71: 9561796.281 | J71: 10142766.67 | K71: 9499513.713 | L71: 9282638.042 | M71: 9283641.034 | N71: 9964007.23 | O71: 10448885.92 | P71: 9730341.86 | Q71: 9266335.36 | R71: 7911449.22 | S71: 7404925.64 | T71: 6644425.84 | U71: 6752148.08 | V71: 8867167.02 | W71: 8039311.43 | X71: 8239776.21 | Y71: 8626529.45 | Z71: 8424253.53 | AA71: 8359484.06 | AB71: 8573055.54 | AC71: 6383989.25 | AD71: 6710139.18 | AE71: 5597480.99 | AF71: 6125179.21 | AG71: 7165790.73 | AH71: 8380944.53 | AI71: 6761060.1 | AJ71: 7333671.035 | AK71: 7404676.8 | AL71: 5988778.446 | AM71: 6127320.5 | AN71: 5720678.184 | AO71: 5011284.094 | AP71: 4329447.23 | AQ71: 4177548.117 | AR71: 4488905.479 | AS71: 5342388.304 | AT71: 7013187.259 | AU71: 6830754.425 | AV71: 7238633.601 | AW71: 5935706.209 | AX71: 5661184.183 | AY71: 5893555.112 | AZ71: 5786911.833 | BA71: 5852081.487 | BB71: 6219513.696 | BC71: 5161942.895 | BD71: 6244832.388 | BE71: 6265007.549 | BF71: 7625100.107 | BG71: 7449062.662 | BH71: 8061327.289 | BI71: 7395954.099 | BJ71: 6801900.653 | BK71: 6800586.962 | BL71: 8522112.562 | BM71: 8387811.401 | BN71: 7358592.146 | BO71: 5086543.919 | BP71: 6425282.773 | BQ71: 7887207.889 | BR71: 7726780.239 | BS71: 7794589.711 | BT71: 6671360.142 | BU71: 7043647.296 | BV71: 6689074.481 | BW71: 6378624.44 | BX71: 5652344.035 | BY71: 4785690.278 | BZ71: 3634288.659 | CA71: 3084380.706 | CB71: 4262248.277 | CC71: 4620327.517 | CD71: 7706492.881 | CE71: 6761254.199 | CF71: 6948687.793 | CG71: 6563859.673 | CH71: 4865734.494 | CI71: 7238858.387 | CJ71: 4381056.721 | CK71: 2626906.321 | CL71: 3018527.671 | CM71: 2989369.685 | CN71: 5084361.812 | CO71: 7033298.395 | CP71: 7505676.225 | CQ71: 7294932.759 | CR71: 8137901.879 | CS71: 6608794.267 | CT71: 5200469.752 | CU71: 6197731.167 | CV71: 7132848.285 | CW71: 4909074.292 | CX71: 4646048.728 | CY71: 4881009.043 | CZ71: 4845785.129 | DA71: 7379531.293 | DB71: 8791552.628 | DC71: 7548389.8 | DD71: 6828258.186 | DE71: 6540123.201 | DF71: 6696040.307 | DG71: 6999013.179 | DH71: 4769378.144 | DI71: 3672959.192 | DJ71: 3659285.268 | DK71: 2818602.323 | DL71: 3141446.188 | DM71: 4317673.296 | DN71: 6181049.551 | DO71: 5787600.666 | DP71: 6652546.231 | DQ71: 7108542.486 | DR71: 7221321.037 | DS71: 7777220.951 | DT71: 7846375.85 | DU71: 5357308.924 | DV71: 3964341.712 | DW71: 3930355.221 | DX71: 5728372.643 | DY71: 7069577.342 | DZ71: 7129835.79 | EA71: 5998917.703 | EB71: 5661819.534 | EC71: 6987251.759 | ED71: 7899761.418 | EE71: 6888598.356 | EF71: 5505807.94 | EG71: 5704925.872 | EH71: 3428431.117 | EI71: 3420978.302 | EJ71: 4597610.98 | EK71: 4730213.071 | EL71: 6004799.241 | EM71: 6204561.944 | EN71: 6552724.823 | EO71: 5963230.741 | EP71: 6561095.389 | EQ71: 5520453.977 | ER71: 5945748.884 | ES71: 4676145.309 | ET71: 3281485.773 | EU71: 3343150.676 | EV71: - | EW71: - | EX71: - | EY71: - | EZ71: - | FA71: - | FB71: - | FC71: -
C72: Factor de emision de CO2 (tCO2/MWh) | D72: 0.3850861285 | E72: 0.3400772806 | F72: 0.3224989568 | G72: 0.4001066755 | H72: 0.3957723385 | I72: 0.4163428039 | J72: 0.406740289 | K72: 0.4083010614 | L72: 0.3960868034 | M72: 0.3867647772 | N72: 0.3953862549 | O72: 0.3979395093 | P72: 0.3652819224 | Q72: 0.3728027265 | R72: 0.31402802 | S72: 0.3055594024 | T72: 0.2864664175 | U72: 0.2846219295 | V72: 0.3427388855 | W72: 0.33187056 | X72: 0.3487645911 | Y72: 0.3620700105 | Z72: 0.3419452393 | AA72: 0.3228606376 | AB72: 0.3236946921 | AC72: 0.2784436878 | AD72: 0.2962689902 | AE72: 0.2638822943 | AF72: 0.2842729495 | AG72: 0.3137560671 | AH72: 0.3336971814 | AI72: 0.2850914159 | AJ72: 0.3231601982 | AK72: 0.3241631563 | AL72: 0.2590755309 | AM72: 0.2459156242 | AN72: 0.219242134 | AO72: 0.2076589844 | AP72: 0.1719522129 | AQ72: 0.188832838 | AR72: 0.2000668593 | AS72: 0.2351272706 | AT72: 0.2721368892 | AU72: 0.2858653184 | AV72: 0.3116708845 | AW72: 0.2537868926 | AX72: 0.234859135 | AY72: 0.2318985094 | AZ72: 0.2233430554 | BA72: 0.2529303765 | BB72: 0.2480633022 | BC72: 0.2380634354 | BD72: 0.2855654421 | BE72: 0.277893821 | BF72: 0.318271095 | BG72: 0.3188909789 | BH72: 0.3498248868 | BI72: 0.3325574626 | BJ72: 0.3005519533 | BK72: 0.2844721467 | BL72: 0.3369525273 | BM72: 0.3225829071 | BN72: 0.3083854503 | BO72: 0.2275231249 | BP72: 0.283585143 | BQ72: 0.3434804808 | BR72: 0.3223583678 | BS72: 0.3255265843 | BT72: 0.2953268478 | BU72: 0.3087623169 | BV72: 0.296543881 | BW72: 0.2645347857 | BX72: 0.2279387536 | BY72: 0.20953154 | BZ72: 0.1528040039 | CA72: 0.1410795342 | CB72: 0.2013574989 | CC72: 0.2195126677 | CD72: 0.3166111474 | CE72: 0.2968451502 | CF72: 0.3163653454 | CG72: 0.2988763016 | CH72: 0.2135343871 | CI72: 0.3033518391 | CJ72: 0.1822913604 | CK72: 0.1165850093 | CL72: 0.1324404288 | CM72: 0.1421372237 | CN72: 0.23858981 | CO72: 0.3286664266 | CP72: 0.3237592516 | CQ72: 0.3314403261 | CR72: 0.3675375871 | CS72: 0.3063012522 | CT72: 0.2455934505 | CU72: 0.2662567559 | CV72: 0.2900477121 | CW72: 0.2117477069 | CX72: 0.2002769528 | CY72: 0.2367586805 | CZ72: 0.2284147247 | DA72: 0.3394908483 | DB72: 0.3475111714 | DC72: 0.3299799959 | DD72: 0.3211229322 | DE72: 0.3129628389 | DF72: 0.3196469778 | DG72: 0.3235941167 | DH72: 0.2102626526 | DI72: 0.169523208 | DJ72: 0.1587883077 | DK72: 0.1297265418 | DL72: 0.1524493655 | DM72: 0.2094122521 | DN72: 0.2702990667 | DO72: 0.2626722049 | DP72: 0.314326665 | DQ72: 0.3267408857 | DR72: 0.3317804297 | DS72: 0.3550792337 | DT72: 0.3100797871 | DU72: 0.2551911447 | DV72: 0.1875052562 | DW72: 0.2024337546 | DX72: 0.2831158288 | DY72: 0.3200679716 | DZ72: 0.3127313683 | EA72: 0.2764570962 | EB72: 0.279635572 | EC72: 0.3265361337 | ED72: 0.3480972703 | EE72: 0.2835781514 | EF72: 0.240686248 | EG72: 0.2611465618 | EH72: 0.1410374568 | EI72: 0.164742969 | EJ72: 0.2281330164 | EK72: 0.2385601478 | EL72: 0.2751137707 | EM72: 0.2778379376 | EN72: 0.3114035636 | EO72: 0.2697103342 | EP72: 0.2951395076 | EQ72: 0.2549171637 | ER72: 0.2419274321 | ES72: 0.227386055 | ET72: 0.1572290344 | EU72: 0.168828771 | EV72: - | EW72: - | EX72: - | EY72: - | EZ72: - | FA72: - | FB72: - | FC72: -
C74: Emisiones de CO2 asociadas a la generación anual peninsular | D74: 1990 | E74: 1991 | F74: 1992 | G74: 1993 | H74: 1994 | I74: 1995 | J74: 1996 | K74: 1997 | L74: 1998 | M74: 1999 | N74: 2000 | O74: 2001 | P74: 2002 | Q74: 2003 | R74: 2004 | S74: 2005 | T74: 2006 | U74: 2007 | V74: 2008 | W74: 2009 | X74: 2010 | Y74: 2011 | Z74: 2012 | AA74: 2013 | AB74: 2014 | AC74: 2015 | AD74: 2016 | AE74: 2017 | AF74: 2018 | AG74: 2019 | AH74: 2020 | AI74: 2021
C75: Carbón | D75: 52571867.6 | E75: 53014091.65 | F75: 56834600.25 | G75: 54958543.1 | H75: 54315973.55 | I75: 58172976.4 | J75: 46995235.55 | K75: 55593815.7 | L75: 54079676.25 | M75: 64985351.35 | N75: 68616762.45 | O75: 61226458.8 | P75: 70827906.45 | Q75: 64878507.7 | R75: 68514100.7 | S75: 69344384.55 | T75: 59019761.75 | U75: 64301935.6 | V75: 41239060.15 | W75: 30041433.9 | X75: 19569293.04 | Y75: 38391855.86 | Z75: 48542457.74 | AA75: 35236352.45 | AB75: 39005364.83 | AC75: 48217054.79 | AD75: 33260364.29 | AE75: 40300794.13 | AF75: 33137558.21 | AG75: 6526007.738 | AH75: - | AI75: -
C76: Fuel + Gas | D76: 2006162.2 | E76: 2829179.5 | F76: 5224508.1 | G76: 1244002.9 | H76: 988529.5 | I76: 2562814.1 | J76: 1430331 | K76: 4586778.7 | L76: 3737216.7 | M76: 6545464.1 | N76: 6695709.3 | O76: 8105733.3 | P76: 10881977.4 | Q76: 5202149.4 | R76: 4962627.6 | S76: 6506022.6 | T76: 3777240.6 | U76: 1463535.5 | V76: 1452426.5 | W76: 1252713 | X76: 1096216.1 | Y76: - | Z76: - | AA76: - | AB76: - | AC76: - | AD76: - | AE76: - | AF76: - | AG76: - | AH76: - | AI76: -
C77: Ciclo combinado | D77: 0 | E77: 0 | F77: 0 | G77: 78.81 | H77: 0 | I77: 0 | J77: 0 | K77: 0 | L77: 0 | M77: 0 | N77: 0 | O77: 0 | P77: 1907599.01 | Q77: 5411651.82 | R77: 10475752.65 | S77: 17703311.93 | T77: 22985300.58 | U77: 24631961.16 | V77: 32967270.84 | W77: 28260335.08 | X77: 23293327.89 | Y77: 18201489.16 | Z77: 13807212.18 | AA77: 8926826.203 | AB77: 7814588.191 | AC77: 9262781.857 | AD77: 9421334.515 | AE77: 12449752.89 | AF77: 9769081.638 | AG77: 3883393.899 | AH77: - | AI77: -
C78: Térmica renovable | D78: 0 | E78: 145.18 | F78: 2813.33 | G78: 9999.74 | H78: 54816.5 | I78: 114115.73 | J78: 138563.6 | K78: 110223.75 | L78: 127286.8756 | M78: 154403.1249 | N78: 163388.7656 | O78: 295537.9328 | P78: 247012.5986 | Q78: 295297.0955 | R78: 309075.9174 | S78: 337935.8719 | T78: 371043.1359 | U78: 403866.45 | V78: 450753.13 | W78: 517528.79 | X78: 539205.83 | Y78: - | Z78: - | AA78: - | AB78: - | AC78: - | AD78: - | AE78: - | AF78: - | AG78: - | AH78: - | AI78: -
C79: Térmica no renovable/Cogeneración y resto/Cogeneración | D79: 242297.09 | E79: 531314.08 | F79: 704066.34 | G79: 1223776.48 | H79: 1965436.707 | I79: 2420078.61 | J79: 3326973.4 | K79: 4241167.92 | L79: 5242263.879 | M79: 6340790.726 | N79: 6430435.281 | O79: 6532974.628 | P79: 7707711.327 | Q79: 8452778.382 | R79: 8705620.555 | S79: 8607570.363 | T79: 8258007.565 | U79: 8631270.09 | V79: 9833111.12 | W79: 10532395.58 | X79: 11391949.24 | Y79: 11305390.95 | Z79: 11994581.72 | AA79: 11399679.19 | AB79: 8927367.88 | AC79: 9312651.374 | AD79: 9573358.63 | AE79: 10424958.11 | AF79: 10722885.08 | AG79: 3745810.171 | AH79: - | AI79: -
C80: Residuos no renovables | D80: - | E80: - | F80: - | G80: - | H80: - | I80: - | J80: - | K80: - | L80: - | M80: - | N80: - | O80: - | P80: - | Q80: - | R80: - | S80: - | T80: - | U80: - | V80: - | W80: - | X80: - | Y80: 278529.8006 | Z80: 351713.251 | AA80: 360036.1284 | AB80: 440002.4537 | AC80: 557931.5378 | AD80: 593114.0749 | AE80: 590190.9266 | AF80: 550524.3052 | AG80: 180831.7871 | AH80: - | AI80: -
C82: Emisiones (tCO2) | D82: 54820326.89 | E82: 56374730.41 | F82: 62765988.02 | G82: 57436401.03 | H82: 57324756.26 | I82: 63269984.84 | J82: 51891103.55 | K82: 64531986.07 | L82: 63186443.7 | M82: 78026009.3 | N82: 81906295.8 | O82: 76160704.66 | P82: 91572206.79 | Q82: 84240384.4 | R82: 92967177.42 | S82: 102499225.3 | T82: 94411353.63 | U82: 99432568.8 | V82: 85942621.74 | W82: 70604406.35 | X82: 55889992.1 | Y82: 68177265.77 | Z82: 74695964.89 | AA82: 55922893.97 | AB82: 56187323.36 | AC82: 67350419.55 | AD82: 52848171.51 | AE82: 63765696.06 | AF82: 54180049.23 | AG82: 14336043.6 | AH82: - | AI82: -
C83: Factor de emision de CO2 (tCO2/MWh) | D83: 0.4030362616 | E83: 0.3973304987 | F83: 0.4383389907 | G83: 0.404975508 | H83: 0.3933600693 | I83: 0.4237035027 | J83: 0.3312104331 | K83: 0.3859670761 | L83: 0.366857136 | M83: 0.4281037856 | N83: 0.4190502558 | O83: 0.3691948288 | P83: 0.4295352845 | Q83: 0.3674547718 | R83: 0.3816226754 | S83: 0.4037239913 | T83: 0.358158919 | U83: 0.3647315353 | V83: 0.3068855987 | W83: 0.2668945928 | X83: 0.2044874922 | Y83: 0.2579212381 | Z83: 0.2781404765 | AA83: 0.2151900682 | AB83: 0.2218522545 | AC83: 0.2652100498 | AD83: 0.2130115608 | AE83: 0.256990936 | AF83: 0.2194477396 | AG83: 0.1758157407 | AH83: - | AI83: -
C85: Emisiones de CO2 asociadas a la generación anual Islas Baleares | D85: 2006 | E85: 2007 | F85: 2008 | G85: 2009 | H85: 2010 | I85: 2011 | J85: 2012 | K85: 2013 | L85: 2014 | M85: 2015 | N85: 2016 | O85: 2017 | P85: 2018 | Q85: 2019 | R85: 2020 | S85: 2021
C86: Carbón | D86: 2923444.5 | E86: 2796662.25 | F86: 2943884.7 | G86: 3011939.85 | H86: 2946289.688 | I86: 2626735.303 | J86: 2548438.875 | K86: 2233108.384 | L86: 2078388.84 | M86: 1768598.933 | N86: 2187724.572 | O86: 2467655.245 | P86: 2511851.218 | Q86: 680089.0666 | R86: - | S86: -
C87: Motores diesel | D87: 742974.54 | E87: 774316.62 | F87: 806252.37 | G87: 748305.25 | H87: 791267.4354 | I87: 711066.0203 | J87: 690633.786 | K87: 531836.627 | L87: 413405.8072 | M87: 413240.8635 | N87: 547918.6674 | O87: 453712.9092 | P87: 425362.8632 | Q87: 72780.50071 | R87: - | S87: -
C88: Turbina de gas | D88: 216120.6645 | E88: 230466.34 | F88: 201651.48 | G88: 251133.06 | H88: 221566.6308 | I88: 213868.6663 | J88: 200865.3702 | K88: 267456.2738 | L88: 286840.0622 | M88: 299160.5425 | N88: 173276.7152 | O88: 283827.5327 | P88: 726749.0643 | Q88: 104353.0436 | R88: - | S88: -
C89: Ciclo combinado | D89: 496508.55 | E89: 586078.15 | F89: 563691.3 | G89: 478107.71 | H89: 420184.4771 | I89: 489550.0851 | J89: 327812.4934 | K89: 150712.3694 | L89: 155264.2544 | M89: 297734.1848 | N89: 197980.3751 | O89: 155558.8617 | P89: 242115.3127 | Q89: 109496.9259 | R89: - | S89: -
C90: Generación auxiliar | D90: 4699.1628 | E90: 9332.88 | F90: 4388.94 | G90: 4118.84 | H90: 4953.80568 | I90: 6454.07132 | J90: 6517.87338 | K90: 5002.2927 | L90: 5693.62956 | M90: 7828.0826 | N90: 7468.68606 | O90: 10912.3841 | P90: 8841.46956 | Q90: - | R90: - | S90: -
C91: Térmica no renovable/Cogeneración y resto | D91: 36169.34074 | E91: 29622.58 | F91: 36486.32 | G91: 33030.92 | H91: 45823.44 | I91: 4933.45938 | J91: 9803.7679 | K91: 9516.70414 | L91: 9332.35608 | M91: - | N91: - | O91: - | P91: - | Q91: - | R91: - | S91: -
C92: Cogeneración | D92: - | E92: - | F92: - | G92: - | H92: - | I92: - | J92: - | K92: - | L92: - | M92: 11673.39899 | N92: 12839.48729 | O92: 13410.36658 | P92: 12940.54502 | Q92: 4812.90746 | R92: - | S92: -
C93: Residuos no renovables | D93: - | E93: - | F93: - | G93: - | H93: - | I93: 29690.88804 | J93: 29469.48864 | K93: 27135.9828 | L93: 30740.23908 | M93: 36263.45508 | N93: 31393.21596 | O93: 34530.88032 | P93: 32581.85868 | Q93: 9830.53488 | R93: - | S93: -
C95: Emisiones (tCO2) | D95: 4419916.758 | E95: 4426478.82 | F95: 4556355.11 | G95: 4526635.63 | H95: 4430085.477 | I95: 4082298.493 | J95: 3813541.655 | K95: 3224768.634 | L95: 2979665.188 | M95: 2834499.46 | N95: 3158601.719 | O95: 3419608.18 | P95: 3960442.331 | Q95: 981362.9792 | R95: - | S95: -
C96: Factor de emision de CO2 (tCO2/MWh) | D96: 0.7584424434 | E96: 0.7403314607 | F96: 0.7442545057 | G96: 0.7553300576 | H96: 0.7585383492 | I96: 0.7112856352 | J96: 0.7269653208 | K96: 0.7331745728 | L96: 0.6963105886 | M96: 0.6366547681 | N96: 0.6907661014 | O96: 0.7069528339 | P96: 0.8216941157 | Q96: 0.7729043291 | R96: - | S96: -
C98: Emisiones de CO2 asociadas a la generación anual Islas Canarias | D98: 2006 | E98: 2007 | F98: 2008 | G98: 2009 | H98: 2010 | I98: 2011 | J98: 2012 | K98: 2013 | L98: 2014 | M98: 2015 | N98: 2016 | O98: 2017 | P98: 2018 | Q98: 2019 | R98: 2020 | S98: 2021
C99: Motores diesel | D99: 1646284.48 | E99: 1674441.64 | F99: 1725088.12 | G99: 1755373.18 | H99: 1790377.973 | I99: 1772272.883 | J99: 1728923.228 | K99: 1694586.681 | L99: 1753322.717 | M99: 1805916.768 | N99: 1822287.265 | O99: 1838705.867 | P99: 1378742.36 | Q99: 419382.1242 | R99: - | S99: -
C100: Turbina de gas | D100: 1071760.456 | E100: 909311 | F100: 615583.8 | G100: 444823.6702 | H100: 446266.1541 | I100: 687437.3064 | J100: 778271.403 | K100: 479480.0309 | L100: 468967.5835 | M100: 426146.8523 | N100: 358670.8112 | O100: 408649.4178 | P100: 318476.2661 | Q100: 89572.48048 | R100: - | S100: -
C101: Turbina de vapor | D101: 3052691.99 | E101: 2943056.45 | F101: 3038674.49 | G101: 2886828.92 | H101: 2645602.523 | I101: 2344522.654 | J101: 2386709.375 | K101: 2192779.329 | L101: 1842986.571 | M101: 1978426.005 | N101: 2257167.273 | O101: 2380210.527 | P101: 2209889.134 | Q101: 756582.5763 | R101: - | S101: -
C102: Ciclo combinado | D102: 1565769.66 | E102: 1905754.5 | F102: 2007187.26 | G102: 1990815.84 | H102: 2112559.944 | I102: 2273408.637 | J102: 2238853.108 | K102: 2297997.289 | L102: 2527661.523 | M102: 2486684.295 | N102: 2346500.318 | O102: 2337954.019 | P102: 1830612.965 | Q102: 564413.1342 | R102: - | S102: -
C103: Generación auxiliar | D103: - | E103: 98301.6 | F103: 66412.78 | G103: 25003.12 | H103: - | I103: - | J103: - | K103: - | L103: - | M103: - | N103: - | O103: - | P103: - | Q103: - | R103: - | S103: -
C104: Térmica no renovable/Cogeneración y resto | D104: 1132.8748 | E104: - | F104: - | G104: 8 | H104: - | I104: 9922.9464 | J104: - | K104: - | L104: - | M104: - | N104: - | O104: - | P104: - | Q104: - | R104: - | S104: -
C105: Cogeneración | D105: - | E105: - | F105: - | G105: - | H105: - | I105: - | J105: - | K105: - | L105: - | M105: - | N105: - | O105: - | P105: - | Q105: - | R105: - | S105: -
C106: Emisiones (tCO2) | D106: 7337639.461 | E106: 7530865.19 | F106: 7452946.45 | G106: 7102852.73 | H106: 6994806.595 | I106: 7087564.427 | J106: 7132757.114 | K106: 6664843.33 | L106: 6592938.394 | M106: 6697173.92 | N106: 6784625.667 | O106: 6965519.831 | P106: 5737720.725 | Q106: 1829950.315 | R106: - | S106: -
C107: Factor de emision de CO2 (tCO2/MWh) | D107: 0.8319796307 | E107: 0.8172341711 | F107: 0.7985187975 | G107: 0.7799226087 | H107: 0.7863966172 | I107: 0.7996816063 | J107: 0.8025846008 | K107: 0.7835168356 | L107: 0.7760856653 | M107: 0.775745213 | N107: 0.7759087522 | O107: 0.7799205773 | P107: 0.6490107418 | Q107: 0.637169919 | R107: - | S107: -
C109: Emisiones de CO2 asociadas a la generación anual Ceuta | D109: 2007 | E109: 2008 | F109: 2009 | G109: 2010 | H109: 2011 | I109: 2012 | J109: 2013 | K109: 2014 | L109: 2015 | M109: 2016 | N109: 2017 | O109: 2018 | P109: 2019 | Q109: 2020 | R109: 2021 | S109: 2022
C110: Motores diesel | D110: 156035.88 | E110: 161446.67 | F110: 160403.32 | G110: 165293.0079 | H110: 156053.4953 | I110: 162863.3075 | J110: 155313.1518 | K110: 163357.5212 | L110: 156508.1279 | M110: 162129.6538 | N110: 156039.2179 | O110: 159571.8263 | P110: 50562.9509 | Q110: - | R110: - | S110: -
C111: Turbina de gas | D111: - | E111: - | F111: 2407.22 | G111: 2122.96158 | H111: 226.45184 | I111: 415.23028 | J111: 192.06182 | K111: 68.47368 | L111: 566.67794 | M111: 90.97856 | N111: 157.2463 | O111: 88.86364 | P111: 2.1645 | Q111: - | R111: - | S111: -
C112: Emisiones (tCO2) | D112: 156035.88 | E112: 161446.67 | F112: 162810.54 | G112: 167415.9695 | H112: 156279.9471 | I112: 163278.5378 | J112: 155505.2137 | K112: 163425.9949 | L112: 157074.8059 | M112: 162220.6324 | N112: 156196.4642 | O112: 159660.6899 | P112: 50565.1154 | Q112: - | R112: - | S112: -
C113: Factor de emision de CO2 (tCO2/MWh) | D113: 0.77 | E113: 0.77 | F113: 0.769538732 | G113: 0.7696043581 | H113: 0.7699547699 | I113: 0.7699206229 | J113: 0.7699614473 | K113: 0.769986921 | L113: 0.7698873979 | M113: 0.7699824933 | N113: 0.7699685753 | O113: 0.7699826261 | P113: 0.7699986638 | Q113: - | R113: - | S113: -
C115: Emisiones de CO2 asociadas a la generación anual Melilla | D115: 2007 | E115: 2008 | F115: 2009 | G115: 2010 | H115: 2011 | I115: 2012 | J115: 2013 | K115: 2014 | L115: 2015 | M115: 2016 | N115: 2017 | O115: 2018 | P115: 2019 | Q115: 2020 | R115: 2021 | S115: 2022
C116: Motores diesel | D116: 140038.1598 | E116: 148706.25 | F116: 152115.81 | G116: 157632.8377 | H116: 159573.6643 | I116: 165396.1578 | J116: 155121.8892 | K116: 154038.8527 | L116: 157016.1685 | M116: 152652.7433 | N116: 154244.0623 | O116: 155627.5228 | P116: 48117.81205 | Q116: - | R116: - | S116: -
C117: Turbina de gas | D117: 1785.0724 | E117: 2279.94 | F117: 403.3 | G117: 368.85744 | H117: 395.09192 | I117: 103.7628 | J117: 69.32394 | K117: 567.0694 | L117: 452.50852 | M117: 189.04706 | N117: 57.18202 | O117: 49.65474 | P117: 2.68768 | Q117: - | R117: - | S117: -
C118: Térmica no renovable/Cogeneración y resto | D118: 3233.8 | E118: 1791.54 | F118: 2861.95 | G118: 2970.36 | H118: - | I118: - | J118: - | K118: - | L118: - | M118: - | N118: - | O118: - | P118: - | Q118: - | R118: - | S118: -
C119: Residuos no renovables | D119: - | E119: - | F119: - | G119: - | H119: 844.22652 | I119: 277.07496 | J119: 964.53564 | K119: 1067.79768 | L119: 1031.15952 | M119: 1164.0126 | N119: 1194.47664 | O119: 1283.24136 | P119: 488.13552 | Q119: - | R119: - | S119: -
C121: Emisiones (tCO2) | D121: 145057.0322 | E121: 152777.73 | F121: 155381.06 | G121: 160972.0551 | H121: 160812.9827 | I121: 165776.9956 | J121: 156155.7488 | K121: 155673.7197 | L121: 158499.8366 | M121: 154005.803 | N121: 155495.7209 | O121: 156960.4189 | P121: 48608.63525 | Q121: - | R121: - | S121: -
C122: Factor de emision de CO2 (tCO2/MWh) | D122: 0.7515129634 | E122: 0.759884061 | F122: 0.7544417955 | G122: 0.7546339986 | H122: 0.7483881086 | I122: 0.7627805225 | J122: 0.7447663137 | K122: 0.742013941 | L122: 0.7434272036 | M122: 0.7393958805 | N122: 0.7389600252 | O122: 0.7370796653 | P122: 0.7300028677 | Q122: - | R122: - | S122: -
C124: Emisiones de CO2 asociadas a la generación anual nacional | D124: 2007 | E124: 2008 | F124: 2009 | G124: 2010 | H124: 2011 | I124: 2012 | J124: 2013 | K124: 2014 | L124: 2015 | M124: 2016 | N124: 2017 | O124: 2018 | P124: 2019 | Q124: 2020 | R124: 2021 | S124: 2022
C125: Carbón | D125: 67098597.85 | E125: 44182944.85 | F125: 33053373.75 | G125: 22515582.73 | H125: 41018591.16 | I125: 51090896.61 | J125: 37469460.83 | K125: 41083753.67 | L125: 49985653.72 | M125: 35448088.86 | N125: 42768449.37 | O125: 35649409.42 | P125: 7206096.805 | Q125: - | R125: - | S125: -
C126: Fuel + Gas | D126: 8400621.142 | E126: 8222911.34 | F126: 7683628.69 | G126: 7321668.287 | H126: 6051870.305 | I126: 6120699.494 | J126: 5481837.661 | K126: 5089248.287 | L126: 5245262.596 | M126: 5481851.841 | N126: 5686516.346 | O126: 5383399.024 | P126: 1541356.34 | Q126: - | R126: - | S126: -
C127: Ciclo combinado | D127: 27123793.81 | E127: 35538149.4 | F127: 30729258.63 | G127: 25826072.31 | H127: 20964447.88 | I127: 16373877.78 | J127: 11375535.86 | K127: 10497513.97 | L127: 12047200.34 | M127: 11965815.21 | N127: 14943265.77 | O127: 11841809.92 | P127: 4557303.959 | Q127: - | R127: - | S127: -
C128: Térmica renovable | D128: 403866.45 | E128: 450753.13 | F128: 517528.79 | G128: 539205.83 | H128: - | I128: - | J128: - | K128: - | L128: - | M128: - | N128: - | O128: - | P128: - | Q128: - | R128: - | S128: -
C129: Térmica no renovable/Cogeneración y resto/Cogeneración | D129: 8664126.47 | E129: 9871388.98 | F129: 10568296.45 | G129: 11440743.04 | H129: 11320247.36 | I129: 12004385.49 | J129: 11409195.9 | K129: 8936700.236 | L129: 9324324.773 | M129: 9586198.117 | N129: 10438368.48 | O129: 10735825.63 | P129: 3750623.079 | Q129: - | R129: - | S129: -
C130: Residuos no renovables | D130: - | E130: - | F130: - | G130: - | H130: 309064.9152 | I130: 381459.8146 | J130: 388136.6468 | K130: 471810.4904 | L130: 595226.1524 | M130: 625671.3035 | N130: 625916.2836 | O130: 584389.4052 | P130: 191150.4575 | Q130: - | R130: - | S130: -
C132: Emisiones (tCO2) | D132: 111691005.7 | E132: 98266147.7 | F132: 82552086.31 | G132: 67643272.2 | H132: 79664221.62 | I132: 85971319.19 | J132: 66124166.9 | K132: 66079026.65 | L132: 77197667.58 | M132: 63107625.33 | N132: 74462516.25 | O132: 64194833.4 | P132: 17246530.64 | Q132: - | R132: - | S132: -
C133: Factor de emision de CO2 (tCO2/MWh) | D133: 0.3875357136 | E133: 0.332076734 | F133: 0.2947678332 | G133: 0.2344789822 | H133: 0.2851731936 | I133: 0.3036597246 | J133: 0.2420418982 | K133: 0.2479876259 | L133: 0.2886392084 | M133: 0.2410199502 | N133: 0.2838767886 | O133: 0.2459821042 | P133: 0.2009754381 | Q133: - | R133: - | S133: -

Sheet Año (hidden)
Y1: 1 | Z1: 1
B2: 1990 | C2: 1990-1997 | D2: 2006-2013 | E2: 2007-2014 | O2: Nacional | P2: Mensual
B3: 1991 | C3: 1998-2005 | D3: 2014-2021 | E3: 2015-2021 | O3: Peninsular | P3: Anual
B4: 1992 | C4: 2006-2013 | O4: Canarias
B5: 1993 | C5: 2014-2021 | O5: Baleares
B6: 1994 | O6: Ceuta
B7: 1995 | O7: Melilla
B8: 1996
B9: 1997
B10: 1998
B11: 1999
B12: 2000
B13: 2001
B14: 2002
B15: 2003
B16: 2004
B17: 2005
B18: 2006
B19: 2007
B20: 2008
B21: 2009
B22: 2010
B23: 2011
B24: 2012
B25: 2013
B26: 2014
B27: 2015
B28: 2016
B29: 2017
B30: 2018
B31: 2019
